Publisher Label,Publisher URI,"Directorate code","Directorate","Service code","Service","Revenue or capital code","Revenue capital","Cost centre","Cost centre description","Bvsub Category","Bvsub description","Bvsum code","Bvsum description","Account code","Account description","Transaction No","Period","Transaction Date","Amount","Classification code","Classification description","Supplier ID","Supplier description","Company registration number","Company registration number Uri","VAT registration number"
"London Borough of Redbridge","http://opendatacommunities.org/doc/london-borough-council/redbridge","3BNONSCHFUND","Non-School Funding","3CNONSCH","Non Schools","REV","Revenue","R3957","North Locality Children�s Centres","01-EMPLOYEES","Employees","01A","Direct employee expenses","4","Agency Staff - Pay","3449154","201708",02/11/2016 00:00:00,370.44,"31230","Employment and Recruitment Agencies","REDACTED DATA","ADECCO UK LIMITED","593232","http://opencorporates.com/companies/gb/593232","232347975"
"London Borough of Redbridge","http://opendatacommunities.org/doc/london-borough-council/redbridge","3BNONSCHFUND","Non-School Funding","3CNONSCH","Non Schools","REV","Revenue","R3957","North Locality Children�s Centres","01-EMPLOYEES","Employees","01A","Direct employee expenses","4","Agency Staff - Pay","3449154","201708",02/11/2016 00:00:00,484.12,"31230","Employment and Recruitment Agencies","REDACTED DATA","ADECCO UK LIMITED","593232","http://opencorporates.com/companies/gb/593232","232347975"
"London Borough of Redbridge","http://opendatacommunities.org/doc/london-borough-council/redbridge","3BNONSCHFUND","Non-School Funding","3CNONSCH","Non Schools","REV","Revenue","R3957","North Locality Children�s Centres","01-EMPLOYEES","Employees","01A","Direct employee expenses","4","Agency Staff - Pay","3449154","201708",02/11/2016 00:00:00,716.38,"31230","Employment and Recruitment Agencies","REDACTED DATA","ADECCO UK LIMITED","593232","http://opencorporates.com/companies/gb/593232","232347975"
"London Borough of Redbridge","http://opendatacommunities.org/doc/london-borough-council/redbridge","3BNONSCHFUND","Non-School Funding","3CNONSCH","Non Schools","REV","Revenue","R3957","North Locality Children�s Centres","01-EMPLOYEES","Employees","01A","Direct employee expenses","4","Agency Staff - Pay","3449154","201708",02/11/2016 00:00:00,227.24,"31230","Employment and Recruitment Agencies","REDACTED DATA","ADECCO UK LIMITED","593232","http://opencorporates.com/companies/gb/593232","232347975"
"London Borough of Redbridge","http://opendatacommunities.org/doc/london-borough-council/redbridge","3BNONSCHFUND","Non-School Funding","3CNONSCH","Non Schools","REV","Revenue","R3957","North Locality Children�s Centres","01-EMPLOYEES","Employees","01A","Direct employee expenses","4","Agency Staff - Pay","3449154","201708",02/11/2016 00:00:00,480.7,"31230","Employment and Recruitment Agencies","REDACTED DATA","ADECCO UK LIMITED","593232","http://opencorporates.com/companies/gb/593232","232347975"
"London Borough of Redbridge","http://opendatacommunities.org/doc/london-borough-council/redbridge","3BNONSCHFUND","Non-School Funding","3CNONSCH","Non Schools","REV","Revenue","R3957","North Locality Children�s Centres","01-EMPLOYEES","Employees","01A","Direct employee expenses","4","Agency Staff - Pay","3449154","201708",02/11/2016 00:00:00,363.09,"31230","Employment and Recruitment Agencies","REDACTED DATA","ADECCO UK LIMITED","593232","http://opencorporates.com/companies/gb/593232","232347975"
"London Borough of Redbridge","http://opendatacommunities.org/doc/london-borough-council/redbridge","3BNONSCHFUND","Non-School Funding","3CNONSCH","Non Schools","REV","Revenue","R3957","North Locality Children�s Centres","01-EMPLOYEES","Employees","01A","Direct employee expenses","4","Agency Staff - Pay","3449154","201708",02/11/2016 00:00:00,0,"31230","Employment and Recruitment Agencies","REDACTED DATA","ADECCO UK LIMITED","593232","http://opencorporates.com/companies/gb/593232","232347975"
"London Borough of Redbridge","http://opendatacommunities.org/doc/london-borough-council/redbridge","3BNONSCHFUND","Non-School Funding","3CNONSCH","Non Schools","REV","Revenue","R3957","North Locality Children�s Centres","01-EMPLOYEES","Employees","01A","Direct employee expenses","4","Agency Staff - Pay","3449154","201708",02/11/2016 00:00:00,635.04,"31230","Employment and Recruitment Agencies","REDACTED DATA","ADECCO UK LIMITED","593232","http://opencorporates.com/companies/gb/593232","232347975"
"London Borough of Redbridge","http://opendatacommunities.org/doc/london-borough-council/redbridge","3BNONSCHFUND","Non-School Funding","3CNONSCH","Non Schools","REV","Revenue","R3958","South Locality Children�s Centres","01-EMPLOYEES","Employees","01A","Direct employee expenses","4","Agency Staff - Pay","3449154","201708",02/11/2016 00:00:00,434.88,"31230","Employment and Recruitment Agencies","REDACTED DATA","ADECCO UK LIMITED","593232","http://opencorporates.com/companies/gb/593232","232347975"
"London Borough of Redbridge","http://opendatacommunities.org/doc/london-borough-council/redbridge","4BPUBLICTRAN","Public Transport","4CPARKING","Parking Services","REV","Revenue","R7031","CCTV Parking Enforcement","01-EMPLOYEES","Employees","01A","Direct employee expenses","4","Agency Staff - Pay","3449154","201708",02/11/2016 00:00:00,460.13,"31230","Employment and Recruitment Agencies","REDACTED DATA","ADECCO UK LIMITED","593232","http://opencorporates.com/companies/gb/593232","232347975"
"London Borough of Redbridge","http://opendatacommunities.org/doc/london-borough-council/redbridge","4BTRAFMGT&RS","Traffic Management & Road Safety","4CPUBLICTRAN","Public Transport","REV","Revenue","R4248","Blue Badges","01-EMPLOYEES","Employees","01A","Direct employee expenses","4","Agency Staff - Pay","3449154","201708",02/11/2016 00:00:00,284.34,"31230","Employment and Recruitment Agencies","REDACTED DATA","ADECCO UK LIMITED","593232","http://opencorporates.com/companies/gb/593232","232347975"
"London Borough of Redbridge","http://opendatacommunities.org/doc/london-borough-council/redbridge","4BTRANSPORT","Transport Planning, Policy & Strategy","4CMANGT&SUPP","Management & Support Services","REV","Revenue","R7000","Highways Executive","01-EMPLOYEES","Employees","01A","Direct employee expenses","4","Agency Staff - Pay","3449154","201708",02/11/2016 00:00:00,1216.25,"31230","Employment and Recruitment Agencies","REDACTED DATA","ADECCO UK LIMITED","593232","http://opencorporates.com/companies/gb/593232","232347975"
"London Borough of Redbridge","http://opendatacommunities.org/doc/london-borough-council/redbridge","4BTRANSPORT","Transport Planning, Policy & Strategy","4CMANGT&SUPP","Management & Support Services","REV","Revenue","R7000","Highways Executive","01-EMPLOYEES","Employees","01A","Direct employee expenses","4","Agency Staff - Pay","3449154","201708",02/11/2016 00:00:00,626.99,"31230","Employment and Recruitment Agencies","REDACTED DATA","ADECCO UK LIMITED","593232","http://opencorporates.com/companies/gb/593232","232347975"
"London Borough of Redbridge","http://opendatacommunities.org/doc/london-borough-council/redbridge","4BTRANSPORT","Transport Planning, Policy & Strategy","4CMANGT&SUPP","Management & Support Services","REV","Revenue","R7000","Highways Executive","01-EMPLOYEES","Employees","01A","Direct employee expenses","4","Agency Staff - Pay","3449154","201708",02/11/2016 00:00:00,940.95,"31230","Employment and Recruitment Agencies","REDACTED DATA","ADECCO UK LIMITED","593232","http://opencorporates.com/companies/gb/593232","232347975"
"London Borough of Redbridge","http://opendatacommunities.org/doc/london-borough-council/redbridge","4BTRANSPORT","Transport Planning, Policy & Strategy","4CMANGT&SUPP","Management & Support Services","REV","Revenue","R7000","Highways Executive","01-EMPLOYEES","Employees","01A","Direct employee expenses","4","Agency Staff - Pay","3449154","201708",02/11/2016 00:00:00,1275.2,"31230","Employment and Recruitment Agencies","REDACTED DATA","ADECCO UK LIMITED","593232","http://opencorporates.com/companies/gb/593232","232347975"
"London Borough of Redbridge","http://opendatacommunities.org/doc/london-borough-council/redbridge","4BTRANSPORT","Transport Planning, Policy & Strategy","4CMANGT&SUPP","Management & Support Services","REV","Revenue","R7000","Highways Executive","01-EMPLOYEES","Employees","01A","Direct employee expenses","4","Agency Staff - Pay","3449154","201708",02/11/2016 00:00:00,1254.13,"31230","Employment and Recruitment Agencies","REDACTED DATA","ADECCO UK LIMITED","593232","http://opencorporates.com/companies/gb/593232","232347975"
"London Borough of Redbridge","http://opendatacommunities.org/doc/london-borough-council/redbridge","4BTRANSPORT","Transport Planning, Policy & Strategy","4CMANGT&SUPP","Management & Support Services","REV","Revenue","R7000","Highways Executive","01-EMPLOYEES","Employees","01A","Direct employee expenses","4","Agency Staff - Pay","3449154","201708",02/11/2016 00:00:00,0,"31230","Employment and Recruitment Agencies","REDACTED DATA","ADECCO UK LIMITED","593232","http://opencorporates.com/companies/gb/593232","232347975"
"London Borough of Redbridge","http://opendatacommunities.org/doc/london-borough-council/redbridge","4BTRANSPORT","Transport Planning, Policy & Strategy","4CMANGT&SUPP","Management & Support Services","REV","Revenue","R7000","Highways Executive","01-EMPLOYEES","Employees","01A","Direct employee expenses","4","Agency Staff - Pay","3449154","201708",02/11/2016 00:00:00,589.89,"31230","Employment and Recruitment Agencies","REDACTED DATA","ADECCO UK LIMITED","593232","http://opencorporates.com/companies/gb/593232","232347975"
"London Borough of Redbridge","http://opendatacommunities.org/doc/london-borough-council/redbridge","5BGFHOUSING","General Fund Housing","5CHOMELESS","Homelessness","REV","Revenue","R5611","Homelessness","01-EMPLOYEES","Employees","01A","Direct employee expenses","4","Agency Staff - Pay","3449154","201708",02/11/2016 00:00:00,873.27,"31230","Employment and Recruitment Agencies","REDACTED DATA","ADECCO UK LIMITED","593232","http://opencorporates.com/companies/gb/593232","232347975"
"London Borough of Redbridge","http://opendatacommunities.org/doc/london-borough-council/redbridge","5BGFHOUSING","General Fund Housing","5CHOMELESS","Homelessness","REV","Revenue","R5611","Homelessness","01-EMPLOYEES","Employees","01A","Direct employee expenses","4","Agency Staff - Pay","3449154","201708",02/11/2016 00:00:00,1030.74,"31230","Employment and Recruitment Agencies","REDACTED DATA","ADECCO UK LIMITED","593232","http://opencorporates.com/companies/gb/593232","232347975"
"London Borough of Redbridge","http://opendatacommunities.org/doc/london-borough-council/redbridge","5BGFHOUSING","General Fund Housing","5CHOMELESS","Homelessness","REV","Revenue","R5611","Homelessness","01-EMPLOYEES","Employees","01A","Direct employee expenses","4","Agency Staff - Pay","3449154","201708",02/11/2016 00:00:00,1281.7,"31230","Employment and Recruitment Agencies","REDACTED DATA","ADECCO UK LIMITED","593232","http://opencorporates.com/companies/gb/593232","232347975"
"London Borough of Redbridge","http://opendatacommunities.org/doc/london-borough-council/redbridge","5BGFHOUSING","General Fund Housing","5CHOMELESS","Homelessness","REV","Revenue","R5611","Homelessness","01-EMPLOYEES","Employees","01A","Direct employee expenses","4","Agency Staff - Pay","3449154","201708",02/11/2016 00:00:00,798,"31230","Employment and Recruitment Agencies","REDACTED DATA","ADECCO UK LIMITED","593232","http://opencorporates.com/companies/gb/593232","232347975"
"London Borough of Redbridge","http://opendatacommunities.org/doc/london-borough-council/redbridge","5BGFHOUSING","General Fund Housing","5CHOMELESS","Homelessness","REV","Revenue","R5629","HAC Assessment","01-EMPLOYEES","Employees","01A","Direct employee expenses","4","Agency Staff - Pay","3449154","201708",02/11/2016 00:00:00,653.44,"31230","Employment and Recruitment Agencies","REDACTED DATA","ADECCO UK LIMITED","593232","http://opencorporates.com/companies/gb/593232","232347975"
"London Borough of Redbridge","http://opendatacommunities.org/doc/london-borough-council/redbridge","5BGFHOUSING","General Fund Housing","5CHOMELESS","Homelessness","REV","Revenue","R5629","HAC Assessment","01-EMPLOYEES","Employees","01A","Direct employee expenses","4","Agency Staff - Pay","3449154","201708",02/11/2016 00:00:00,146.3,"31230","Employment and Recruitment Agencies","REDACTED DATA","ADECCO UK LIMITED","593232","http://opencorporates.com/companies/gb/593232","232347975"
"London Borough of Redbridge","http://opendatacommunities.org/doc/london-borough-council/redbridge","5BGFHOUSING","General Fund Housing","5CHOMELESS","Homelessness","REV","Revenue","R5629","HAC Assessment","01-EMPLOYEES","Employees","01A","Direct employee expenses","4","Agency Staff - Pay","3449154","201708",02/11/2016 00:00:00,457.31,"31230","Employment and Recruitment Agencies","REDACTED DATA","ADECCO UK LIMITED","593232","http://opencorporates.com/companies/gb/593232","232347975"
"London Borough of Redbridge","http://opendatacommunities.org/doc/london-borough-council/redbridge","5BGFHOUSING","General Fund Housing","5CHOMELESS","Homelessness","REV","Revenue","R5629","HAC Assessment","01-EMPLOYEES","Employees","01A","Direct employee expenses","4","Agency Staff - Pay","3449154","201708",02/11/2016 00:00:00,161.98,"31230","Employment and Recruitment Agencies","REDACTED DATA","ADECCO UK LIMITED","593232","http://opencorporates.com/companies/gb/593232","232347975"
"London Borough of Redbridge","http://opendatacommunities.org/doc/london-borough-council/redbridge","5BGFHOUSING","General Fund Housing","5CHOMELESS","Homelessness","REV","Revenue","R5629","HAC Assessment","01-EMPLOYEES","Employees","01A","Direct employee expenses","4","Agency Staff - Pay","3449154","201708",02/11/2016 00:00:00,438.9,"31230","Employment and Recruitment Agencies","REDACTED DATA","ADECCO UK LIMITED","593232","http://opencorporates.com/companies/gb/593232","232347975"
"London Borough of Redbridge","http://opendatacommunities.org/doc/london-borough-council/redbridge","5BGFHOUSING","General Fund Housing","5CHOMELESS","Homelessness","REV","Revenue","R5629","HAC Assessment","01-EMPLOYEES","Employees","01A","Direct employee expenses","4","Agency Staff - Pay","3449154","201708",02/11/2016 00:00:00,726.39,"31230","Employment and Recruitment Agencies","REDACTED DATA","ADECCO UK LIMITED","593232","http://opencorporates.com/companies/gb/593232","232347975"
"London Borough of Redbridge","http://opendatacommunities.org/doc/london-borough-council/redbridge","5BGFHOUSING","General Fund Housing","5CHOMELESS","Homelessness","REV","Revenue","R5630","HAC Temporary Accomodation","01-EMPLOYEES","Employees","01A","Direct employee expenses","4","Agency Staff - Pay","3449154","201708",02/11/2016 00:00:00,40.8,"31230","Employment and Recruitment Agencies","REDACTED DATA","ADECCO UK LIMITED","593232","http://opencorporates.com/companies/gb/593232","232347975"
"London Borough of Redbridge","http://opendatacommunities.org/doc/london-borough-council/redbridge","5BGFHOUSING","General Fund Housing","5CHOMELESS","Homelessness","REV","Revenue","R5630","HAC Temporary Accomodation","01-EMPLOYEES","Employees","01A","Direct employee expenses","4","Agency Staff - Pay","3449154","201708",02/11/2016 00:00:00,603.13,"31230","Employment and Recruitment Agencies","REDACTED DATA","ADECCO UK LIMITED","593232","http://opencorporates.com/companies/gb/593232","232347975"
"London Borough of Redbridge","http://opendatacommunities.org/doc/london-borough-council/redbridge","5BGFHOUSING","General Fund Housing","5CHOMELESS","Homelessness","REV","Revenue","R5630","HAC Temporary Accomodation","01-EMPLOYEES","Employees","01A","Direct employee expenses","4","Agency Staff - Pay","3449154","201708",02/11/2016 00:00:00,1004.85,"31230","Employment and Recruitment Agencies","REDACTED DATA","ADECCO UK LIMITED","593232","http://opencorporates.com/companies/gb/593232","232347975"
"London Borough of Redbridge","http://opendatacommunities.org/doc/london-borough-council/redbridge","5BGFHOUSING","General Fund Housing","5CHOMELESS","Homelessness","REV","Revenue","R5630","HAC Temporary Accomodation","01-EMPLOYEES","Employees","01A","Direct employee expenses","4","Agency Staff - Pay","3449154","201708",02/11/2016 00:00:00,920.03,"31230","Employment and Recruitment Agencies","REDACTED DATA","ADECCO UK LIMITED","593232","http://opencorporates.com/companies/gb/593232","232347975"
"London Borough of Redbridge","http://opendatacommunities.org/doc/london-borough-council/redbridge","5BGFHOUSING","General Fund Housing","5CHOMELESS","Homelessness","REV","Revenue","R5630","HAC Temporary Accomodation","01-EMPLOYEES","Employees","01A","Direct employee expenses","4","Agency Staff - Pay","3449154","201708",02/11/2016 00:00:00,278.7,"31230","Employment and Recruitment Agencies","REDACTED DATA","ADECCO UK LIMITED","593232","http://opencorporates.com/companies/gb/593232","232347975"
"London Borough of Redbridge","http://opendatacommunities.org/doc/london-borough-council/redbridge","5BGFHOUSING","General Fund Housing","5CHOMELESS","Homelessness","REV","Revenue","R5630","HAC Temporary Accomodation","01-EMPLOYEES","Employees","01A","Direct employee expenses","4","Agency Staff - Pay","3449154","201708",02/11/2016 00:00:00,221.16,"31230","Employment and Recruitment Agencies","REDACTED DATA","ADECCO UK LIMITED","593232","http://opencorporates.com/companies/gb/593232","232347975"
"London Borough of Redbridge","http://opendatacommunities.org/doc/london-borough-council/redbridge","5BGFHOUSING","General Fund Housing","5CHOMELESS","Homelessness","REV","Revenue","R5631","Unlawful use of B&B grant","01-EMPLOYEES","Employees","01A","Direct employee expenses","4","Agency Staff - Pay","3449154","201708",02/11/2016 00:00:00,379.88,"31230","Employment and Recruitment Agencies","REDACTED DATA","ADECCO UK LIMITED","593232","http://opencorporates.com/companies/gb/593232","232347975"
"London Borough of Redbridge","http://opendatacommunities.org/doc/london-borough-council/redbridge","5BGFHOUSING","General Fund Housing","5CHOMELESS","Homelessness","REV","Revenue","R5632","Abury House Hostel","01-EMPLOYEES","Employees","01A","Direct employee expenses","4","Agency Staff - Pay","3449154","201708",02/11/2016 00:00:00,609.2,"31230","Employment and Recruitment Agencies","REDACTED DATA","ADECCO UK LIMITED","593232","http://opencorporates.com/companies/gb/593232","232347975"
"London Borough of Redbridge","http://opendatacommunities.org/doc/london-borough-council/redbridge","5BGFHOUSING","General Fund Housing","5CHOMELESS","Homelessness","REV","Revenue","R5633","Hylefords Hostel","01-EMPLOYEES","Employees","01A","Direct employee expenses","4","Agency Staff - Pay","3449154","201708",02/11/2016 00:00:00,487.36,"31230","Employment and Recruitment Agencies","REDACTED DATA","ADECCO UK LIMITED","593232","http://opencorporates.com/companies/gb/593232","232347975"
"London Borough of Redbridge","http://opendatacommunities.org/doc/london-borough-council/redbridge","5BGFHOUSING","General Fund Housing","5CHOMELESS","Homelessness","REV","Revenue","R5633","Hylefords Hostel","01-EMPLOYEES","Employees","01A","Direct employee expenses","4","Agency Staff - Pay","3449154","201708",02/11/2016 00:00:00,418.83,"31230","Employment and Recruitment Agencies","REDACTED DATA","ADECCO UK LIMITED","593232","http://opencorporates.com/companies/gb/593232","232347975"
"London Borough of Redbridge","http://opendatacommunities.org/doc/london-borough-council/redbridge","5BGFHOUSING","General Fund Housing","5CHOMELESS","Homelessness","REV","Revenue","R5637","GF Income Recovery Team","01-EMPLOYEES","Employees","01A","Direct employee expenses","4","Agency Staff - Pay","3449154","201708",02/11/2016 00:00:00,549.15,"31230","Employment and Recruitment Agencies","REDACTED DATA","ADECCO UK LIMITED","593232","http://opencorporates.com/companies/gb/593232","232347975"
"London Borough of Redbridge","http://opendatacommunities.org/doc/london-borough-council/redbridge","5BGFHOUSING","General Fund Housing","5CHOMELESS","Homelessness","REV","Revenue","R5637","GF Income Recovery Team","01-EMPLOYEES","Employees","01A","Direct employee expenses","4","Agency Staff - Pay","3449154","201708",02/11/2016 00:00:00,752.4,"31230","Employment and Recruitment Agencies","REDACTED DATA","ADECCO UK LIMITED","593232","http://opencorporates.com/companies/gb/593232","232347975"
"London Borough of Redbridge","http://opendatacommunities.org/doc/london-borough-council/redbridge","5BGFHOUSING","General Fund Housing","5CHOMELESS","Homelessness","REV","Revenue","R5637","GF Income Recovery Team","01-EMPLOYEES","Employees","01A","Direct employee expenses","4","Agency Staff - Pay","3449154","201708",02/11/2016 00:00:00,743.75,"31230","Employment and Recruitment Agencies","REDACTED DATA","ADECCO UK LIMITED","593232","http://opencorporates.com/companies/gb/593232","232347975"
"London Borough of Redbridge","http://opendatacommunities.org/doc/london-borough-council/redbridge","5BGFHOUSING","General Fund Housing","5CHOMELESS","Homelessness","REV","Revenue","R5637","GF Income Recovery Team","01-EMPLOYEES","Employees","01A","Direct employee expenses","4","Agency Staff - Pay","3449154","201708",02/11/2016 00:00:00,760.68,"31230","Employment and Recruitment Agencies","REDACTED DATA","ADECCO UK LIMITED","593232","http://opencorporates.com/companies/gb/593232","232347975"
"London Borough of Redbridge","http://opendatacommunities.org/doc/london-borough-council/redbridge","5BGFHOUSING","General Fund Housing","5CHOMELESS","Homelessness","REV","Revenue","R5637","GF Income Recovery Team","01-EMPLOYEES","Employees","01A","Direct employee expenses","4","Agency Staff - Pay","3449154","201708",02/11/2016 00:00:00,761.4,"31230","Employment and Recruitment Agencies","REDACTED DATA","ADECCO UK LIMITED","593232","http://opencorporates.com/companies/gb/593232","232347975"
"London Borough of Redbridge","http://opendatacommunities.org/doc/london-borough-council/redbridge","5BGFHOUSING","General Fund Housing","5CHOMELESS","Homelessness","REV","Revenue","R5637","GF Income Recovery Team","01-EMPLOYEES","Employees","01A","Direct employee expenses","4","Agency Staff - Pay","3449154","201708",02/11/2016 00:00:00,764.28,"31230","Employment and Recruitment Agencies","REDACTED DATA","ADECCO UK LIMITED","593232","http://opencorporates.com/companies/gb/593232","232347975"
"London Borough of Redbridge","http://opendatacommunities.org/doc/london-borough-council/redbridge","5BGFHOUSING","General Fund Housing","5CHOMELESS","Homelessness","REV","Revenue","R5644","Canterbury","01-EMPLOYEES","Employees","01A","Direct employee expenses","4","Agency Staff - Pay","3449154","201708",02/11/2016 00:00:00,305.97,"31230","Employment and Recruitment Agencies","REDACTED DATA","ADECCO UK LIMITED","593232","http://opencorporates.com/companies/gb/593232","232347975"
"London Borough of Redbridge","http://opendatacommunities.org/doc/london-borough-council/redbridge","5BGFHOUSING","General Fund Housing","5CHOMELESS","Homelessness","REV","Revenue","R5644","Canterbury","01-EMPLOYEES","Employees","01A","Direct employee expenses","4","Agency Staff - Pay","3449154","201708",02/11/2016 00:00:00,626.78,"31230","Employment and Recruitment Agencies","REDACTED DATA","ADECCO UK LIMITED","593232","http://opencorporates.com/companies/gb/593232","232347975"
"London Borough of Redbridge","http://opendatacommunities.org/doc/london-borough-council/redbridge","5BGFHOUSING","General Fund Housing","5CHOMELESS","Homelessness","REV","Revenue","R5644","Canterbury","01-EMPLOYEES","Employees","01A","Direct employee expenses","4","Agency Staff - Pay","3449154","201708",02/11/2016 00:00:00,1021.44,"31230","Employment and Recruitment Agencies","REDACTED DATA","ADECCO UK LIMITED","593232","http://opencorporates.com/companies/gb/593232","232347975"
"London Borough of Redbridge","http://opendatacommunities.org/doc/london-borough-council/redbridge","5BGFHOUSING","General Fund Housing","5CHOUMGTSUPP","Housing Management & Support Services","REV","Revenue","R5600","Housing Finance Team","01-EMPLOYEES","Employees","01A","Direct employee expenses","4","Agency Staff - Pay","3449154","201708",02/11/2016 00:00:00,1632.14,"31230","Employment and Recruitment Agencies","REDACTED DATA","ADECCO UK LIMITED","593232","http://opencorporates.com/companies/gb/593232","232347975"
"London Borough of Redbridge","http://opendatacommunities.org/doc/london-borough-council/redbridge","5BGFHOUSING","General Fund Housing","5CHOUMGTSUPP","Housing Management & Support Services","REV","Revenue","R5601","Housing Service Administration","01-EMPLOYEES","Employees","01A","Direct employee expenses","4","Agency Staff - Pay","3449154","201708",02/11/2016 00:00:00,481.68,"31230","Employment and Recruitment Agencies","REDACTED DATA","ADECCO UK LIMITED","593232","http://opencorporates.com/companies/gb/593232","232347975"
"London Borough of Redbridge","http://opendatacommunities.org/doc/london-borough-council/redbridge","5BGFHOUSING","General Fund Housing","5CHOUMGTSUPP","Housing Management & Support Services","REV","Revenue","R5601","Housing Service Administration","01-EMPLOYEES","Employees","01A","Direct employee expenses","4","Agency Staff - Pay","3449154","201708",02/11/2016 00:00:00,391.37,"31230","Employment and Recruitment Agencies","REDACTED DATA","ADECCO UK LIMITED","593232","http://opencorporates.com/companies/gb/593232","232347975"
"London Borough of Redbridge","http://opendatacommunities.org/doc/london-borough-council/redbridge","5BGFHOUSING","General Fund Housing","5CHOUSBENADM","Housing Benefits Administration","REV","Revenue","R5604","Housing Benefit Team","01-EMPLOYEES","Employees","01A","Direct employee expenses","4","Agency Staff - Pay","3449154","201708",02/11/2016 00:00:00,691.36,"31230","Employment and Recruitment Agencies","REDACTED DATA","ADECCO UK LIMITED","593232","http://opencorporates.com/companies/gb/593232","232347975"
"London Borough of Redbridge","http://opendatacommunities.org/doc/london-borough-council/redbridge","5BGFHOUSING","General Fund Housing","5CHOUSBENADM","Housing Benefits Administration","REV","Revenue","R5604","Housing Benefit Team","01-EMPLOYEES","Employees","01A","Direct employee expenses","4","Agency Staff - Pay","3449154","201708",02/11/2016 00:00:00,48.45,"31230","Employment and Recruitment Agencies","REDACTED DATA","ADECCO UK LIMITED","593232","http://opencorporates.com/companies/gb/593232","232347975"
"London Borough of Redbridge","http://opendatacommunities.org/doc/london-borough-council/redbridge","5BGFHOUSING","General Fund Housing","5CHOUSBENADM","Housing Benefits Administration","REV","Revenue","R5771","Benefits Administration","01-EMPLOYEES","Employees","01A","Direct employee expenses","4","Agency Staff - Pay","3449154","201708",02/11/2016 00:00:00,1087.18,"31230","Employment and Recruitment Agencies","REDACTED DATA","ADECCO UK LIMITED","593232","http://opencorporates.com/companies/gb/593232","232347975"
"London Borough of Redbridge","http://opendatacommunities.org/doc/london-borough-council/redbridge","5BGFHOUSING","General Fund Housing","5CHOUSBENADM","Housing Benefits Administration","REV","Revenue","R5771","Benefits Administration","01-EMPLOYEES","Employees","01A","Direct employee expenses","4","Agency Staff - Pay","3449154","201708",02/11/2016 00:00:00,1106.28,"31230","Employment and Recruitment Agencies","REDACTED DATA","ADECCO UK LIMITED","593232","http://opencorporates.com/companies/gb/593232","232347975"
"London Borough of Redbridge","http://opendatacommunities.org/doc/london-borough-council/redbridge","5BGFHOUSING","General Fund Housing","5CPRIVSECREN","Private Sector Housing Renewal","REV","Revenue","R5620","Private Sector Housing Standards","01-EMPLOYEES","Employees","01A","Direct employee expenses","4","Agency Staff - Pay","3449154","201708",02/11/2016 00:00:00,2050.75,"31230","Employment and Recruitment Agencies","REDACTED DATA","ADECCO UK LIMITED","593232","http://opencorporates.com/companies/gb/593232","232347975"
"London Borough of Redbridge","http://opendatacommunities.org/doc/london-borough-council/redbridge","5BHRAEXPEND","HRA Expenditure","5CHOUMGTSUPP","Housing Management & Support Services","REV","Revenue","R5044","Housing IT System","01-EMPLOYEES","Employees","01A","Direct employee expenses","4","Agency Staff - Pay","3449154","201708",02/11/2016 00:00:00,2296.05,"31230","Employment and Recruitment Agencies","REDACTED DATA","ADECCO UK LIMITED","593232","http://opencorporates.com/companies/gb/593232","232347975"
"London Borough of Redbridge","http://opendatacommunities.org/doc/london-borough-council/redbridge","6BADULTSOCIA","Adult Social Care","6CADMENHLTH","Adults Under 65 with Mental Health Needs","REV","Revenue","R4370","Access and Assessment Brief Intervention Team","01-EMPLOYEES","Employees","01A","Direct employee expenses","4","Agency Staff - Pay","3449154","201708",02/11/2016 00:00:00,544.08,"31230","Employment and Recruitment Agencies","REDACTED DATA","ADECCO UK LIMITED","593232","http://opencorporates.com/companies/gb/593232","232347975"
"London Borough of Redbridge","http://opendatacommunities.org/doc/london-borough-council/redbridge","6BADULTSOCIA","Adult Social Care","6CADMENHLTH","Adults Under 65 with Mental Health Needs","REV","Revenue","R4370","Access and Assessment Brief Intervention Team","01-EMPLOYEES","Employees","01A","Direct employee expenses","4","Agency Staff - Pay","3449154","201708",02/11/2016 00:00:00,789.53,"31230","Employment and Recruitment Agencies","REDACTED DATA","ADECCO UK LIMITED","593232","http://opencorporates.com/companies/gb/593232","232347975"
"London Borough of Redbridge","http://opendatacommunities.org/doc/london-borough-council/redbridge","6BADULTSOCIA","Adult Social Care","6CADMENHLTH","Adults Under 65 with Mental Health Needs","REV","Revenue","R4379","Redbridge Community Recovery Services","01-EMPLOYEES","Employees","01A","Direct employee expenses","4","Agency Staff - Pay","3449154","201708",02/11/2016 00:00:00,1263.24,"31230","Employment and Recruitment Agencies","REDACTED DATA","ADECCO UK LIMITED","593232","http://opencorporates.com/companies/gb/593232","232347975"
"London Borough of Redbridge","http://opendatacommunities.org/doc/london-borough-council/redbridge","6BADULTSOCIA","Adult Social Care","6CADMENHLTH","Adults Under 65 with Mental Health Needs","REV","Revenue","R4379","Redbridge Community Recovery Services","01-EMPLOYEES","Employees","01A","Direct employee expenses","4","Agency Staff - Pay","3449154","201708",02/11/2016 00:00:00,872.61,"31230","Employment and Recruitment Agencies","REDACTED DATA","ADECCO UK LIMITED","593232","http://opencorporates.com/companies/gb/593232","232347975"
"London Borough of Redbridge","http://opendatacommunities.org/doc/london-borough-council/redbridge","6BADULTSOCIA","Adult Social Care","6CADMENHLTH","Adults Under 65 with Mental Health Needs","REV","Revenue","R4379","Redbridge Community Recovery Services","01-EMPLOYEES","Employees","01A","Direct employee expenses","4","Agency Staff - Pay","3449154","201708",02/11/2016 00:00:00,1479.24,"31230","Employment and Recruitment Agencies","REDACTED DATA","ADECCO UK LIMITED","593232","http://opencorporates.com/companies/gb/593232","232347975"
"London Borough of Redbridge","http://opendatacommunities.org/doc/london-borough-council/redbridge","6BADULTSOCIA","Adult Social Care","6CADMENHLTH","Adults Under 65 with Mental Health Needs","REV","Revenue","R4379","Redbridge Community Recovery Services","01-EMPLOYEES","Employees","01A","Direct employee expenses","4","Agency Staff - Pay","3449154","201708",02/11/2016 00:00:00,1403.6,"31230","Employment and Recruitment Agencies","REDACTED DATA","ADECCO UK LIMITED","593232","http://opencorporates.com/companies/gb/593232","232347975"
"London Borough of Redbridge","http://opendatacommunities.org/doc/london-borough-council/redbridge","6BADULTSOCIA","Adult Social Care","6CADMENHLTH","Adults Under 65 with Mental Health Needs","REV","Revenue","R4379","Redbridge Community Recovery Services","01-EMPLOYEES","Employees","01A","Direct employee expenses","4","Agency Staff - Pay","3449154","201708",02/11/2016 00:00:00,11.84,"31230","Employment and Recruitment Agencies","REDACTED DATA","ADECCO UK LIMITED","593232","http://opencorporates.com/companies/gb/593232","232347975"
"London Borough of Redbridge","http://opendatacommunities.org/doc/london-borough-council/redbridge","6BADULTSOCIA","Adult Social Care","6CADMENHLTH","Adults Under 65 with Mental Health Needs","REV","Revenue","R4463","Mental Health Capacity Act and Safeguarding Adults","01-EMPLOYEES","Employees","01A","Direct employee expenses","4","Agency Staff - Pay","3449154","201708",02/11/2016 00:00:00,1333.15,"31230","Employment and Recruitment Agencies","REDACTED DATA","ADECCO UK LIMITED","593232","http://opencorporates.com/companies/gb/593232","232347975"
"London Borough of Redbridge","http://opendatacommunities.org/doc/london-borough-council/redbridge","6BADULTSOCIA","Adult Social Care","6CADMENHLTH","Adults Under 65 with Mental Health Needs","REV","Revenue","R4463","Mental Health Capacity Act and Safeguarding Adults","01-EMPLOYEES","Employees","01A","Direct employee expenses","4","Agency Staff - Pay","3449154","201708",02/11/2016 00:00:00,1088.15,"31230","Employment and Recruitment Agencies","REDACTED DATA","ADECCO UK LIMITED","593232","http://opencorporates.com/companies/gb/593232","232347975"
"London Borough of Redbridge","http://opendatacommunities.org/doc/london-borough-council/redbridge","6BADULTSOCIA","Adult Social Care","6CADMENHLTH","Adults Under 65 with Mental Health Needs","REV","Revenue","R4463","Mental Health Capacity Act and Safeguarding Adults","01-EMPLOYEES","Employees","01A","Direct employee expenses","4","Agency Staff - Pay","3449154","201708",02/11/2016 00:00:00,1088.15,"31230","Employment and Recruitment Agencies","REDACTED DATA","ADECCO UK LIMITED","593232","http://opencorporates.com/companies/gb/593232","232347975"
"London Borough of Redbridge","http://opendatacommunities.org/doc/london-borough-council/redbridge","6BADULTSOCIA","Adult Social Care","6CADMENHLTH","Adults Under 65 with Mental Health Needs","REV","Revenue","R4484","Multi- Disciplinary Team (Fairlop)","01-EMPLOYEES","Employees","01A","Direct employee expenses","4","Agency Staff - Pay","3449154","201708",02/11/2016 00:00:00,761.07,"31230","Employment and Recruitment Agencies","REDACTED DATA","ADECCO UK LIMITED","593232","http://opencorporates.com/companies/gb/593232","232347975"
"London Borough of Redbridge","http://opendatacommunities.org/doc/london-borough-council/redbridge","6BADULTSOCIA","Adult Social Care","6CADMENHLTH","Adults Under 65 with Mental Health Needs","REV","Revenue","R4484","Multi- Disciplinary Team (Fairlop)","01-EMPLOYEES","Employees","01A","Direct employee expenses","4","Agency Staff - Pay","3449154","201708",02/11/2016 00:00:00,347.45,"31230","Employment and Recruitment Agencies","REDACTED DATA","ADECCO UK LIMITED","593232","http://opencorporates.com/companies/gb/593232","232347975"
"London Borough of Redbridge","http://opendatacommunities.org/doc/london-borough-council/redbridge","6BADULTSOCIA","Adult Social Care","6CADMENHLTH","Adults Under 65 with Mental Health Needs","REV","Revenue","R4484","Multi- Disciplinary Team (Fairlop)","01-EMPLOYEES","Employees","01A","Direct employee expenses","4","Agency Staff - Pay","3449154","201708",02/11/2016 00:00:00,317,"31230","Employment and Recruitment Agencies","REDACTED DATA","ADECCO UK LIMITED","593232","http://opencorporates.com/companies/gb/593232","232347975"
"London Borough of Redbridge","http://opendatacommunities.org/doc/london-borough-council/redbridge","6BADULTSOCIA","Adult Social Care","6CADMENHLTH","Adults Under 65 with Mental Health Needs","REV","Revenue","R4484","Multi- Disciplinary Team (Fairlop)","01-EMPLOYEES","Employees","01A","Direct employee expenses","4","Agency Staff - Pay","3449154","201708",02/11/2016 00:00:00,903.24,"31230","Employment and Recruitment Agencies","REDACTED DATA","ADECCO UK LIMITED","593232","http://opencorporates.com/companies/gb/593232","232347975"
"London Borough of Redbridge","http://opendatacommunities.org/doc/london-borough-council/redbridge","6BADULTSOCIA","Adult Social Care","6CADMENHLTH","Adults Under 65 with Mental Health Needs","REV","Revenue","R4484","Multi- Disciplinary Team (Fairlop)","01-EMPLOYEES","Employees","01A","Direct employee expenses","4","Agency Staff - Pay","3449154","201708",02/11/2016 00:00:00,1119.24,"31230","Employment and Recruitment Agencies","REDACTED DATA","ADECCO UK LIMITED","593232","http://opencorporates.com/companies/gb/593232","232347975"
"London Borough of Redbridge","http://opendatacommunities.org/doc/london-borough-council/redbridge","6BADULTSOCIA","Adult Social Care","6CADMENHLTH","Adults Under 65 with Mental Health Needs","REV","Revenue","R4484","Multi- Disciplinary Team (Fairlop)","01-EMPLOYEES","Employees","01A","Direct employee expenses","4","Agency Staff - Pay","3449154","201708",02/11/2016 00:00:00,903.24,"31230","Employment and Recruitment Agencies","REDACTED DATA","ADECCO UK LIMITED","593232","http://opencorporates.com/companies/gb/593232","232347975"
"London Borough of Redbridge","http://opendatacommunities.org/doc/london-borough-council/redbridge","6BADULTSOCIA","Adult Social Care","6CADMENHLTH","Adults Under 65 with Mental Health Needs","REV","Revenue","R4484","Multi- Disciplinary Team (Fairlop)","01-EMPLOYEES","Employees","01A","Direct employee expenses","4","Agency Staff - Pay","3449154","201708",02/11/2016 00:00:00,1091.97,"31230","Employment and Recruitment Agencies","REDACTED DATA","ADECCO UK LIMITED","593232","http://opencorporates.com/companies/gb/593232","232347975"
"London Borough of Redbridge","http://opendatacommunities.org/doc/london-borough-council/redbridge","6BADULTSOCIA","Adult Social Care","6COLDINCMENT","Older People (65 or over) incl. Older Mentally Ill","REV","Revenue","R4333","George Davis Lodge Sheltered Unit","01-EMPLOYEES","Employees","01A","Direct employee expenses","4","Agency Staff - Pay","3449154","201708",02/11/2016 00:00:00,290.28,"31230","Employment and Recruitment Agencies","REDACTED DATA","ADECCO UK LIMITED","593232","http://opencorporates.com/companies/gb/593232","232347975"
"London Borough of Redbridge","http://opendatacommunities.org/doc/london-borough-council/redbridge","6BADULTSOCIA","Adult Social Care","6COLDINCMENT","Older People (65 or over) incl. Older Mentally Ill","REV","Revenue","R4333","George Davis Lodge Sheltered Unit","01-EMPLOYEES","Employees","01A","Direct employee expenses","4","Agency Staff - Pay","3449154","201708",02/11/2016 00:00:00,75.33,"31230","Employment and Recruitment Agencies","REDACTED DATA","ADECCO UK LIMITED","593232","http://opencorporates.com/companies/gb/593232","232347975"
"London Borough of Redbridge","http://opendatacommunities.org/doc/london-borough-council/redbridge","6BADULTSOCIA","Adult Social Care","6COLDINCMENT","Older People (65 or over) incl. Older Mentally Ill","REV","Revenue","R4333","George Davis Lodge Sheltered Unit","01-EMPLOYEES","Employees","01A","Direct employee expenses","4","Agency Staff - Pay","3449154","201708",02/11/2016 00:00:00,161.12,"31230","Employment and Recruitment Agencies","REDACTED DATA","ADECCO UK LIMITED","593232","http://opencorporates.com/companies/gb/593232","232347975"
"London Borough of Redbridge","http://opendatacommunities.org/doc/london-borough-council/redbridge","6BADULTSOCIA","Adult Social Care","6COLDINCMENT","Older People (65 or over) incl. Older Mentally Ill","REV","Revenue","R4333","George Davis Lodge Sheltered Unit","01-EMPLOYEES","Employees","01A","Direct employee expenses","4","Agency Staff - Pay","3449154","201708",02/11/2016 00:00:00,119.4,"31230","Employment and Recruitment Agencies","REDACTED DATA","ADECCO UK LIMITED","593232","http://opencorporates.com/companies/gb/593232","232347975"
"London Borough of Redbridge","http://opendatacommunities.org/doc/london-borough-council/redbridge","6BADULTSOCIA","Adult Social Care","6COLDINCMENT","Older People (65 or over) incl. Older Mentally Ill","REV","Revenue","R4333","George Davis Lodge Sheltered Unit","01-EMPLOYEES","Employees","01A","Direct employee expenses","4","Agency Staff - Pay","3449154","201708",02/11/2016 00:00:00,280.4,"31230","Employment and Recruitment Agencies","REDACTED DATA","ADECCO UK LIMITED","593232","http://opencorporates.com/companies/gb/593232","232347975"
"London Borough of Redbridge","http://opendatacommunities.org/doc/london-borough-council/redbridge","6BADULTSOCIA","Adult Social Care","6COLDINCMENT","Older People (65 or over) incl. Older Mentally Ill","REV","Revenue","R4333","George Davis Lodge Sheltered Unit","01-EMPLOYEES","Employees","01A","Direct employee expenses","4","Agency Staff - Pay","3449154","201708",02/11/2016 00:00:00,469.67,"31230","Employment and Recruitment Agencies","REDACTED DATA","ADECCO UK LIMITED","593232","http://opencorporates.com/companies/gb/593232","232347975"
"London Borough of Redbridge","http://opendatacommunities.org/doc/london-borough-council/redbridge","6BADULTSOCIA","Adult Social Care","6COLDINCMENT","Older People (65 or over) incl. Older Mentally Ill","REV","Revenue","R4340","Oakfield Lodge Sheltered Unit","01-EMPLOYEES","Employees","01A","Direct employee expenses","4","Agency Staff - Pay","3449154","201708",02/11/2016 00:00:00,307.8,"31230","Employment and Recruitment Agencies","REDACTED DATA","ADECCO UK LIMITED","593232","http://opencorporates.com/companies/gb/593232","232347975"
"London Borough of Redbridge","http://opendatacommunities.org/doc/london-borough-council/redbridge","6BADULTSOCIA","Adult Social Care","6COLDINCMENT","Older People (65 or over) incl. Older Mentally Ill","REV","Revenue","R4340","Oakfield Lodge Sheltered Unit","01-EMPLOYEES","Employees","01A","Direct employee expenses","4","Agency Staff - Pay","3449154","201708",02/11/2016 00:00:00,68.46,"31230","Employment and Recruitment Agencies","REDACTED DATA","ADECCO UK LIMITED","593232","http://opencorporates.com/companies/gb/593232","232347975"
"London Borough of Redbridge","http://opendatacommunities.org/doc/london-borough-council/redbridge","6BADULTSOCIA","Adult Social Care","6COLDINCMENT","Older People (65 or over) incl. Older Mentally Ill","REV","Revenue","R4340","Oakfield Lodge Sheltered Unit","01-EMPLOYEES","Employees","01A","Direct employee expenses","4","Agency Staff - Pay","3449154","201708",02/11/2016 00:00:00,88.74,"31230","Employment and Recruitment Agencies","REDACTED DATA","ADECCO UK LIMITED","593232","http://opencorporates.com/companies/gb/593232","232347975"
"London Borough of Redbridge","http://opendatacommunities.org/doc/london-borough-council/redbridge","6BADULTSOCIA","Adult Social Care","6COLDINCMENT","Older People (65 or over) incl. Older Mentally Ill","REV","Revenue","R4340","Oakfield Lodge Sheltered Unit","01-EMPLOYEES","Employees","01A","Direct employee expenses","4","Agency Staff - Pay","3449154","201708",02/11/2016 00:00:00,155.61,"31230","Employment and Recruitment Agencies","REDACTED DATA","ADECCO UK LIMITED","593232","http://opencorporates.com/companies/gb/593232","232347975"
"London Borough of Redbridge","http://opendatacommunities.org/doc/london-borough-council/redbridge","6BADULTSOCIA","Adult Social Care","6COLDINCMENT","Older People (65 or over) incl. Older Mentally Ill","REV","Revenue","R4340","Oakfield Lodge Sheltered Unit","01-EMPLOYEES","Employees","01A","Direct employee expenses","4","Agency Staff - Pay","3449154","201708",02/11/2016 00:00:00,93,"31230","Employment and Recruitment Agencies","REDACTED DATA","ADECCO UK LIMITED","593232","http://opencorporates.com/companies/gb/593232","232347975"
"London Borough of Redbridge","http://opendatacommunities.org/doc/london-borough-council/redbridge","6BADULTSOCIA","Adult Social Care","6COLDINCMENT","Older People (65 or over) incl. Older Mentally Ill","REV","Revenue","R4340","Oakfield Lodge Sheltered Unit","01-EMPLOYEES","Employees","01A","Direct employee expenses","4","Agency Staff - Pay","3449154","201708",02/11/2016 00:00:00,125.9,"31230","Employment and Recruitment Agencies","REDACTED DATA","ADECCO UK LIMITED","593232","http://opencorporates.com/companies/gb/593232","232347975"
"London Borough of Redbridge","http://opendatacommunities.org/doc/london-borough-council/redbridge","6BADULTSOCIA","Adult Social Care","6COLDINCMENT","Older People (65 or over) incl. Older Mentally Ill","REV","Revenue","R4340","Oakfield Lodge Sheltered Unit","01-EMPLOYEES","Employees","01A","Direct employee expenses","4","Agency Staff - Pay","3449154","201708",02/11/2016 00:00:00,312.72,"31230","Employment and Recruitment Agencies","REDACTED DATA","ADECCO UK LIMITED","593232","http://opencorporates.com/companies/gb/593232","232347975"
"London Borough of Redbridge","http://opendatacommunities.org/doc/london-borough-council/redbridge","6BADULTSOCIA","Adult Social Care","6COLDINCMENT","Older People (65 or over) incl. Older Mentally Ill","REV","Revenue","R4340","Oakfield Lodge Sheltered Unit","01-EMPLOYEES","Employees","01A","Direct employee expenses","4","Agency Staff - Pay","3449154","201708",02/11/2016 00:00:00,248.2,"31230","Employment and Recruitment Agencies","REDACTED DATA","ADECCO UK LIMITED","593232","http://opencorporates.com/companies/gb/593232","232347975"
"London Borough of Redbridge","http://opendatacommunities.org/doc/london-borough-council/redbridge","6BADULTSOCIA","Adult Social Care","6COLDINCMENT","Older People (65 or over) incl. Older Mentally Ill","REV","Revenue","R4340","Oakfield Lodge Sheltered Unit","01-EMPLOYEES","Employees","01A","Direct employee expenses","4","Agency Staff - Pay","3449154","201708",02/11/2016 00:00:00,424.8,"31230","Employment and Recruitment Agencies","REDACTED DATA","ADECCO UK LIMITED","593232","http://opencorporates.com/companies/gb/593232","232347975"
"London Borough of Redbridge","http://opendatacommunities.org/doc/london-borough-council/redbridge","6BADULTSOCIA","Adult Social Care","6COLDINCMENT","Older People (65 or over) incl. Older Mentally Ill","REV","Revenue","R4340","Oakfield Lodge Sheltered Unit","01-EMPLOYEES","Employees","01A","Direct employee expenses","4","Agency Staff - Pay","3449154","201708",02/11/2016 00:00:00,602.64,"31230","Employment and Recruitment Agencies","REDACTED DATA","ADECCO UK LIMITED","593232","http://opencorporates.com/companies/gb/593232","232347975"
"London Borough of Redbridge","http://opendatacommunities.org/doc/london-borough-council/redbridge","6BADULTSOCIA","Adult Social Care","6COLDINCMENT","Older People (65 or over) incl. Older Mentally Ill","REV","Revenue","R4341","Fernways Sheltered Unit","01-EMPLOYEES","Employees","01A","Direct employee expenses","4","Agency Staff - Pay","3449154","201708",02/11/2016 00:00:00,569.16,"31230","Employment and Recruitment Agencies","REDACTED DATA","ADECCO UK LIMITED","593232","http://opencorporates.com/companies/gb/593232","232347975"
"London Borough of Redbridge","http://opendatacommunities.org/doc/london-borough-council/redbridge","6BADULTSOCIA","Adult Social Care","6COLDINCMENT","Older People (65 or over) incl. Older Mentally Ill","REV","Revenue","R4341","Fernways Sheltered Unit","01-EMPLOYEES","Employees","01A","Direct employee expenses","4","Agency Staff - Pay","3449154","201708",02/11/2016 00:00:00,196.35,"31230","Employment and Recruitment Agencies","REDACTED DATA","ADECCO UK LIMITED","593232","http://opencorporates.com/companies/gb/593232","232347975"
"London Borough of Redbridge","http://opendatacommunities.org/doc/london-borough-council/redbridge","6BADULTSOCIA","Adult Social Care","6COLDINCMENT","Older People (65 or over) incl. Older Mentally Ill","REV","Revenue","R4341","Fernways Sheltered Unit","01-EMPLOYEES","Employees","01A","Direct employee expenses","4","Agency Staff - Pay","3449154","201708",02/11/2016 00:00:00,339.84,"31230","Employment and Recruitment Agencies","REDACTED DATA","ADECCO UK LIMITED","593232","http://opencorporates.com/companies/gb/593232","232347975"
"London Borough of Redbridge","http://opendatacommunities.org/doc/london-borough-council/redbridge","6BADULTSOCIA","Adult Social Care","6COLDINCMENT","Older People (65 or over) incl. Older Mentally Ill","REV","Revenue","R4360","Hospital and Health Team","01-EMPLOYEES","Employees","01A","Direct employee expenses","4","Agency Staff - Pay","3449154","201708",02/11/2016 00:00:00,426.16,"31230","Employment and Recruitment Agencies","REDACTED DATA","ADECCO UK LIMITED","593232","http://opencorporates.com/companies/gb/593232","232347975"
"London Borough of Redbridge","http://opendatacommunities.org/doc/london-borough-council/redbridge","6BADULTSOCIA","Adult Social Care","6COLDINCMENT","Older People (65 or over) incl. Older Mentally Ill","REV","Revenue","R4360","Hospital and Health Team","01-EMPLOYEES","Employees","01A","Direct employee expenses","4","Agency Staff - Pay","3449154","201708",02/11/2016 00:00:00,814.52,"31230","Employment and Recruitment Agencies","REDACTED DATA","ADECCO UK LIMITED","593232","http://opencorporates.com/companies/gb/593232","232347975"
"London Borough of Redbridge","http://opendatacommunities.org/doc/london-borough-council/redbridge","6BADULTSOCIA","Adult Social Care","6COLDINCMENT","Older People (65 or over) incl. Older Mentally Ill","REV","Revenue","R4360","Hospital and Health Team","01-EMPLOYEES","Employees","01A","Direct employee expenses","4","Agency Staff - Pay","3449154","201708",02/11/2016 00:00:00,477.26,"31230","Employment and Recruitment Agencies","REDACTED DATA","ADECCO UK LIMITED","593232","http://opencorporates.com/companies/gb/593232","232347975"
"London Borough of Redbridge","http://opendatacommunities.org/doc/london-borough-council/redbridge","6BADULTSOCIA","Adult Social Care","6COLDINCMENT","Older People (65 or over) incl. Older Mentally Ill","REV","Revenue","R4360","Hospital and Health Team","01-EMPLOYEES","Employees","01A","Direct employee expenses","4","Agency Staff - Pay","3449154","201708",02/11/2016 00:00:00,1018.15,"31230","Employment and Recruitment Agencies","REDACTED DATA","ADECCO UK LIMITED","593232","http://opencorporates.com/companies/gb/593232","232347975"
"London Borough of Redbridge","http://opendatacommunities.org/doc/london-borough-council/redbridge","6BADULTSOCIA","Adult Social Care","6COLDINCMENT","Older People (65 or over) incl. Older Mentally Ill","REV","Revenue","R4360","Hospital and Health Team","01-EMPLOYEES","Employees","01A","Direct employee expenses","4","Agency Staff - Pay","3449154","201708",02/11/2016 00:00:00,1119.24,"31230","Employment and Recruitment Agencies","REDACTED DATA","ADECCO UK LIMITED","593232","http://opencorporates.com/companies/gb/593232","232347975"
"London Borough of Redbridge","http://opendatacommunities.org/doc/london-borough-council/redbridge","6BADULTSOCIA","Adult Social Care","6COLDINCMENT","Older People (65 or over) incl. Older Mentally Ill","REV","Revenue","R4360","Hospital and Health Team","01-EMPLOYEES","Employees","01A","Direct employee expenses","4","Agency Staff - Pay","3449154","201708",02/11/2016 00:00:00,1299.24,"31230","Employment and Recruitment Agencies","REDACTED DATA","ADECCO UK LIMITED","593232","http://opencorporates.com/companies/gb/593232","232347975"
"London Borough of Redbridge","http://opendatacommunities.org/doc/london-borough-council/redbridge","6BADULTSOCIA","Adult Social Care","6COLDINCMENT","Older People (65 or over) incl. Older Mentally Ill","REV","Revenue","R4360","Hospital and Health Team","01-EMPLOYEES","Employees","01A","Direct employee expenses","4","Agency Staff - Pay","3449154","201708",02/11/2016 00:00:00,450.81,"31230","Employment and Recruitment Agencies","REDACTED DATA","ADECCO UK LIMITED","593232","http://opencorporates.com/companies/gb/593232","232347975"
"London Borough of Redbridge","http://opendatacommunities.org/doc/london-borough-council/redbridge","6BADULTSOCIA","Adult Social Care","6COLDINCMENT","Older People (65 or over) incl. Older Mentally Ill","REV","Revenue","R4460","HOS for Social Care","01-EMPLOYEES","Employees","01A","Direct employee expenses","4","Agency Staff - Pay","3449154","201708",02/11/2016 00:00:00,402.82,"31230","Employment and Recruitment Agencies","REDACTED DATA","ADECCO UK LIMITED","593232","http://opencorporates.com/companies/gb/593232","232347975"
"London Borough of Redbridge","http://opendatacommunities.org/doc/london-borough-council/redbridge","6BADULTSOCIA","Adult Social Care","6COLDINCMENT","Older People (65 or over) incl. Older Mentally Ill","REV","Revenue","R4482","Multi - Disciplinary Team (Cranbrook and Loxford)","01-EMPLOYEES","Employees","01A","Direct employee expenses","4","Agency Staff - Pay","3449154","201708",02/11/2016 00:00:00,7.65,"31230","Employment and Recruitment Agencies","REDACTED DATA","ADECCO UK LIMITED","593232","http://opencorporates.com/companies/gb/593232","232347975"
"London Borough of Redbridge","http://opendatacommunities.org/doc/london-borough-council/redbridge","6BADULTSOCIA","Adult Social Care","6COLDINCMENT","Older People (65 or over) incl. Older Mentally Ill","REV","Revenue","R4482","Multi - Disciplinary Team (Cranbrook and Loxford)","01-EMPLOYEES","Employees","01A","Direct employee expenses","4","Agency Staff - Pay","3449154","201708",02/11/2016 00:00:00,1025.97,"31230","Employment and Recruitment Agencies","REDACTED DATA","ADECCO UK LIMITED","593232","http://opencorporates.com/companies/gb/593232","232347975"
"London Borough of Redbridge","http://opendatacommunities.org/doc/london-borough-council/redbridge","6BADULTSOCIA","Adult Social Care","6COLDINCMENT","Older People (65 or over) incl. Older Mentally Ill","REV","Revenue","R4482","Multi - Disciplinary Team (Cranbrook and Loxford)","01-EMPLOYEES","Employees","01A","Direct employee expenses","4","Agency Staff - Pay","3449154","201708",02/11/2016 00:00:00,1011.24,"31230","Employment and Recruitment Agencies","REDACTED DATA","ADECCO UK LIMITED","593232","http://opencorporates.com/companies/gb/593232","232347975"
"London Borough of Redbridge","http://opendatacommunities.org/doc/london-borough-council/redbridge","6BADULTSOCIA","Adult Social Care","6COLDINCMENT","Older People (65 or over) incl. Older Mentally Ill","REV","Revenue","R4482","Multi - Disciplinary Team (Cranbrook and Loxford)","01-EMPLOYEES","Employees","01A","Direct employee expenses","4","Agency Staff - Pay","3449154","201708",02/11/2016 00:00:00,21.2,"31230","Employment and Recruitment Agencies","REDACTED DATA","ADECCO UK LIMITED","593232","http://opencorporates.com/companies/gb/593232","232347975"
"London Borough of Redbridge","http://opendatacommunities.org/doc/london-borough-council/redbridge","6BADULTSOCIA","Adult Social Care","6COLDINCMENT","Older People (65 or over) incl. Older Mentally Ill","REV","Revenue","R4482","Multi - Disciplinary Team (Cranbrook and Loxford)","01-EMPLOYEES","Employees","01A","Direct employee expenses","4","Agency Staff - Pay","3449154","201708",02/11/2016 00:00:00,1246.01,"31230","Employment and Recruitment Agencies","REDACTED DATA","ADECCO UK LIMITED","593232","http://opencorporates.com/companies/gb/593232","232347975"
"London Borough of Redbridge","http://opendatacommunities.org/doc/london-borough-council/redbridge","6BADULTSOCIA","Adult Social Care","6COLDINCMENT","Older People (65 or over) incl. Older Mentally Ill","REV","Revenue","R4482","Multi - Disciplinary Team (Cranbrook and Loxford)","01-EMPLOYEES","Employees","01A","Direct employee expenses","4","Agency Staff - Pay","3449154","201708",02/11/2016 00:00:00,628.71,"31230","Employment and Recruitment Agencies","REDACTED DATA","ADECCO UK LIMITED","593232","http://opencorporates.com/companies/gb/593232","232347975"
"London Borough of Redbridge","http://opendatacommunities.org/doc/london-borough-council/redbridge","6BADULTSOCIA","Adult Social Care","6COLDINCMENT","Older People (65 or over) incl. Older Mentally Ill","REV","Revenue","R4483","Multi-Disciplinary Team (Wanstead and Woodford)","01-EMPLOYEES","Employees","01A","Direct employee expenses","4","Agency Staff - Pay","3449154","201708",02/11/2016 00:00:00,1075.43,"31230","Employment and Recruitment Agencies","REDACTED DATA","ADECCO UK LIMITED","593232","http://opencorporates.com/companies/gb/593232","232347975"
"London Borough of Redbridge","http://opendatacommunities.org/doc/london-borough-council/redbridge","6BADULTSOCIA","Adult Social Care","6COLDINCMENT","Older People (65 or over) incl. Older Mentally Ill","REV","Revenue","R4483","Multi-Disciplinary Team (Wanstead and Woodford)","01-EMPLOYEES","Employees","01A","Direct employee expenses","4","Agency Staff - Pay","3449154","201708",02/11/2016 00:00:00,1191.24,"31230","Employment and Recruitment Agencies","REDACTED DATA","ADECCO UK LIMITED","593232","http://opencorporates.com/companies/gb/593232","232347975"
"London Borough of Redbridge","http://opendatacommunities.org/doc/london-borough-council/redbridge","6BADULTSOCIA","Adult Social Care","6COLDINCMENT","Older People (65 or over) incl. Older Mentally Ill","REV","Revenue","R4483","Multi-Disciplinary Team (Wanstead and Woodford)","01-EMPLOYEES","Employees","01A","Direct employee expenses","4","Agency Staff - Pay","3449154","201708",02/11/2016 00:00:00,1018.15,"31230","Employment and Recruitment Agencies","REDACTED DATA","ADECCO UK LIMITED","593232","http://opencorporates.com/companies/gb/593232","232347975"
"London Borough of Redbridge","http://opendatacommunities.org/doc/london-borough-council/redbridge","6BADULTSOCIA","Adult Social Care","6COLDINCMENT","Older People (65 or over) incl. Older Mentally Ill","REV","Revenue","R4483","Multi-Disciplinary Team (Wanstead and Woodford)","01-EMPLOYEES","Employees","01A","Direct employee expenses","4","Agency Staff - Pay","3449154","201708",02/11/2016 00:00:00,1088.15,"31230","Employment and Recruitment Agencies","REDACTED DATA","ADECCO UK LIMITED","593232","http://opencorporates.com/companies/gb/593232","232347975"
"London Borough of Redbridge","http://opendatacommunities.org/doc/london-borough-council/redbridge","6BADULTSOCIA","Adult Social Care","6COLDINCMENT","Older People (65 or over) incl. Older Mentally Ill","REV","Revenue","R4485","Multi-Disciplinary Team (Seven Kings)","01-EMPLOYEES","Employees","01A","Direct employee expenses","4","Agency Staff - Pay","3449154","201708",02/11/2016 00:00:00,992.7,"31230","Employment and Recruitment Agencies","REDACTED DATA","ADECCO UK LIMITED","593232","http://opencorporates.com/companies/gb/593232","232347975"
"London Borough of Redbridge","http://opendatacommunities.org/doc/london-borough-council/redbridge","6BADULTSOCIA","Adult Social Care","6COLDINCMENT","Older People (65 or over) incl. Older Mentally Ill","REV","Revenue","R4485","Multi-Disciplinary Team (Seven Kings)","01-EMPLOYEES","Employees","01A","Direct employee expenses","4","Agency Staff - Pay","3449154","201708",02/11/2016 00:00:00,1191.24,"31230","Employment and Recruitment Agencies","REDACTED DATA","ADECCO UK LIMITED","593232","http://opencorporates.com/companies/gb/593232","232347975"
"London Borough of Redbridge","http://opendatacommunities.org/doc/london-borough-council/redbridge","6BADULTSOCIA","Adult Social Care","6COLDINCMENT","Older People (65 or over) incl. Older Mentally Ill","REV","Revenue","R4485","Multi-Disciplinary Team (Seven Kings)","01-EMPLOYEES","Employees","01A","Direct employee expenses","4","Agency Staff - Pay","3449154","201708",02/11/2016 00:00:00,1191.24,"31230","Employment and Recruitment Agencies","REDACTED DATA","ADECCO UK LIMITED","593232","http://opencorporates.com/companies/gb/593232","232347975"
"London Borough of Redbridge","http://opendatacommunities.org/doc/london-borough-council/redbridge","6BADULTSOCIA","Adult Social Care","6COLDINCMENT","Older People (65 or over) incl. Older Mentally Ill","REV","Revenue","R4485","Multi-Disciplinary Team (Seven Kings)","01-EMPLOYEES","Employees","01A","Direct employee expenses","4","Agency Staff - Pay","3449154","201708",02/11/2016 00:00:00,1425.28,"31230","Employment and Recruitment Agencies","REDACTED DATA","ADECCO UK LIMITED","593232","http://opencorporates.com/companies/gb/593232","232347975"
"London Borough of Redbridge","http://opendatacommunities.org/doc/london-borough-council/redbridge","6BADULTSOCIA","Adult Social Care","6CSUPPSERMGT","Support Service & Management Costs","REV","Revenue","R4145","Placement and Brokerage Team","01-EMPLOYEES","Employees","01A","Direct employee expenses","4","Agency Staff - Pay","3449154","201708",02/11/2016 00:00:00,506.92,"31230","Employment and Recruitment Agencies","REDACTED DATA","ADECCO UK LIMITED","593232","http://opencorporates.com/companies/gb/593232","232347975"
"London Borough of Redbridge","http://opendatacommunities.org/doc/london-borough-council/redbridge","6BADULTSOCIA","Adult Social Care","6CSUPPSERMGT","Support Service & Management Costs","REV","Revenue","R4468","Contracts Team","01-EMPLOYEES","Employees","01A","Direct employee expenses","4","Agency Staff - Pay","3449154","201708",02/11/2016 00:00:00,1673.9,"31230","Employment and Recruitment Agencies","REDACTED DATA","ADECCO UK LIMITED","593232","http://opencorporates.com/companies/gb/593232","232347975"
"London Borough of Redbridge","http://opendatacommunities.org/doc/london-borough-council/redbridge","6BADULTSOCIA","Adult Social Care","6CSUPPSERMGT","Support Service & Management Costs","REV","Revenue","R4468","Contracts Team","01-EMPLOYEES","Employees","01A","Direct employee expenses","4","Agency Staff - Pay","3449154","201708",02/11/2016 00:00:00,1339.12,"31230","Employment and Recruitment Agencies","REDACTED DATA","ADECCO UK LIMITED","593232","http://opencorporates.com/companies/gb/593232","232347975"
"London Borough of Redbridge","http://opendatacommunities.org/doc/london-borough-council/redbridge","6BADULTSOCIA","Adult Social Care","6CSUPPSERMGT","Support Service & Management Costs","REV","Revenue","R4468","Contracts Team","01-EMPLOYEES","Employees","01A","Direct employee expenses","4","Agency Staff - Pay","3449154","201708",02/11/2016 00:00:00,657.92,"31230","Employment and Recruitment Agencies","REDACTED DATA","ADECCO UK LIMITED","593232","http://opencorporates.com/companies/gb/593232","232347975"
"London Borough of Redbridge","http://opendatacommunities.org/doc/london-borough-council/redbridge","6BADULTSOCIA","Adult Social Care","6CSUPPSERMGT","Support Service & Management Costs","REV","Revenue","R4474","Resources Team","01-EMPLOYEES","Employees","01A","Direct employee expenses","4","Agency Staff - Pay","3449154","201708",02/11/2016 00:00:00,829.08,"31230","Employment and Recruitment Agencies","REDACTED DATA","ADECCO UK LIMITED","593232","http://opencorporates.com/companies/gb/593232","232347975"
"London Borough of Redbridge","http://opendatacommunities.org/doc/london-borough-council/redbridge","6BADULTSOCIA","Adult Social Care","6CSUPPSERMGT","Support Service & Management Costs","REV","Revenue","R4475","Payments Team","01-EMPLOYEES","Employees","01A","Direct employee expenses","4","Agency Staff - Pay","3449154","201708",02/11/2016 00:00:00,593.25,"31230","Employment and Recruitment Agencies","REDACTED DATA","ADECCO UK LIMITED","593232","http://opencorporates.com/companies/gb/593232","232347975"
"London Borough of Redbridge","http://opendatacommunities.org/doc/london-borough-council/redbridge","6BADULTSOCIA","Adult Social Care","6CSUPPSERMGT","Support Service & Management Costs","REV","Revenue","R4475","Payments Team","01-EMPLOYEES","Employees","01A","Direct employee expenses","4","Agency Staff - Pay","3449154","201708",02/11/2016 00:00:00,5,"31230","Employment and Recruitment Agencies","REDACTED DATA","ADECCO UK LIMITED","593232","http://opencorporates.com/companies/gb/593232","232347975"
"London Borough of Redbridge","http://opendatacommunities.org/doc/london-borough-council/redbridge","6BADULTSOCIA","Adult Social Care","6CSUPPSERMGT","Support Service & Management Costs","REV","Revenue","R4475","Payments Team","01-EMPLOYEES","Employees","01A","Direct employee expenses","4","Agency Staff - Pay","3449154","201708",02/11/2016 00:00:00,634.36,"31230","Employment and Recruitment Agencies","REDACTED DATA","ADECCO UK LIMITED","593232","http://opencorporates.com/companies/gb/593232","232347975"
"London Borough of Redbridge","http://opendatacommunities.org/doc/london-borough-council/redbridge","6BSOCIALSERV","Social Services","6CCHILLOOKED","Children Looked After","REV","Revenue","R2115","SEN and CD - 10+ Integrated Team Social Care","01-EMPLOYEES","Employees","01A","Direct employee expenses","4","Agency Staff - Pay","3449154","201708",02/11/2016 00:00:00,778.89,"31230","Employment and Recruitment Agencies","REDACTED DATA","ADECCO UK LIMITED","593232","http://opencorporates.com/companies/gb/593232","232347975"
"London Borough of Redbridge","http://opendatacommunities.org/doc/london-borough-council/redbridge","6BSOCIALSERV","Social Services","6CCHILLOOKED","Children Looked After","REV","Revenue","R2115","SEN and CD - 10+ Integrated Team Social Care","01-EMPLOYEES","Employees","01A","Direct employee expenses","4","Agency Staff - Pay","3449154","201708",02/11/2016 00:00:00,1463,"31230","Employment and Recruitment Agencies","REDACTED DATA","ADECCO UK LIMITED","593232","http://opencorporates.com/companies/gb/593232","232347975"
"London Borough of Redbridge","http://opendatacommunities.org/doc/london-borough-council/redbridge","6BSOCIALSERV","Social Services","6CCHILLOOKED","Children Looked After","REV","Revenue","R2115","SEN and CD - 10+ Integrated Team Social Care","01-EMPLOYEES","Employees","01A","Direct employee expenses","4","Agency Staff - Pay","3449154","201708",02/11/2016 00:00:00,1333.15,"31230","Employment and Recruitment Agencies","REDACTED DATA","ADECCO UK LIMITED","593232","http://opencorporates.com/companies/gb/593232","232347975"
"London Borough of Redbridge","http://opendatacommunities.org/doc/london-borough-council/redbridge","6BSOCIALSERV","Social Services","6CCHILLOOKED","Children Looked After","REV","Revenue","R2115","SEN and CD - 10+ Integrated Team Social Care","01-EMPLOYEES","Employees","01A","Direct employee expenses","4","Agency Staff - Pay","3449154","201708",02/11/2016 00:00:00,1193.15,"31230","Employment and Recruitment Agencies","REDACTED DATA","ADECCO UK LIMITED","593232","http://opencorporates.com/companies/gb/593232","232347975"
"London Borough of Redbridge","http://opendatacommunities.org/doc/london-borough-council/redbridge","6BSOCIALSERV","Social Services","6CCHILLOOKED","Children Looked After","REV","Revenue","R2115","SEN and CD - 10+ Integrated Team Social Care","01-EMPLOYEES","Employees","01A","Direct employee expenses","4","Agency Staff - Pay","3449154","201708",02/11/2016 00:00:00,443.8,"31230","Employment and Recruitment Agencies","REDACTED DATA","ADECCO UK LIMITED","593232","http://opencorporates.com/companies/gb/593232","232347975"
"London Borough of Redbridge","http://opendatacommunities.org/doc/london-borough-council/redbridge","6BSOCIALSERV","Social Services","6CCHILLOOKED","Children Looked After","REV","Revenue","R2116","SEN and CD - Occupational Therapy Social Care","01-EMPLOYEES","Employees","01A","Direct employee expenses","4","Agency Staff - Pay","3449154","201708",02/11/2016 00:00:00,1186.88,"31230","Employment and Recruitment Agencies","REDACTED DATA","ADECCO UK LIMITED","593232","http://opencorporates.com/companies/gb/593232","232347975"
"London Borough of Redbridge","http://opendatacommunities.org/doc/london-borough-council/redbridge","6BSOCIALSERV","Social Services","6CCHILLOOKED","Children Looked After","REV","Revenue","R2116","SEN and CD - Occupational Therapy Social Care","01-EMPLOYEES","Employees","01A","Direct employee expenses","4","Agency Staff - Pay","3449154","201708",02/11/2016 00:00:00,1390.88,"31230","Employment and Recruitment Agencies","REDACTED DATA","ADECCO UK LIMITED","593232","http://opencorporates.com/companies/gb/593232","232347975"
"London Borough of Redbridge","http://opendatacommunities.org/doc/london-borough-council/redbridge","6BSOCIALSERV","Social Services","6CCHILLOOKED","Children Looked After","REV","Revenue","R2116","SEN and CD - Occupational Therapy Social Care","01-EMPLOYEES","Employees","01A","Direct employee expenses","4","Agency Staff - Pay","3449154","201708",02/11/2016 00:00:00,1026.88,"31230","Employment and Recruitment Agencies","REDACTED DATA","ADECCO UK LIMITED","593232","http://opencorporates.com/companies/gb/593232","232347975"
"London Borough of Redbridge","http://opendatacommunities.org/doc/london-borough-council/redbridge","6BSOCIALSERV","Social Services","6CCHILLOOKED","Children Looked After","REV","Revenue","R2116","SEN and CD - Occupational Therapy Social Care","01-EMPLOYEES","Employees","01A","Direct employee expenses","4","Agency Staff - Pay","3449154","201708",02/11/2016 00:00:00,866.43,"31230","Employment and Recruitment Agencies","REDACTED DATA","ADECCO UK LIMITED","593232","http://opencorporates.com/companies/gb/593232","232347975"
"London Borough of Redbridge","http://opendatacommunities.org/doc/london-borough-council/redbridge","6BSOCIALSERV","Social Services","6CCHILLOOKED","Children Looked After","REV","Revenue","R2127","Fostering and Adoption","01-EMPLOYEES","Employees","01A","Direct employee expenses","4","Agency Staff - Pay","3449154","201708",02/11/2016 00:00:00,473.9,"31230","Employment and Recruitment Agencies","REDACTED DATA","ADECCO UK LIMITED","593232","http://opencorporates.com/companies/gb/593232","232347975"
"London Borough of Redbridge","http://opendatacommunities.org/doc/london-borough-council/redbridge","6BSOCIALSERV","Social Services","6CCHILLOOKED","Children Looked After","REV","Revenue","R2140","CQ and F - Safeguarding and Care Planning Soc Care","01-EMPLOYEES","Employees","01A","Direct employee expenses","4","Agency Staff - Pay","3449154","201708",02/11/2016 00:00:00,1615.6,"31230","Employment and Recruitment Agencies","REDACTED DATA","ADECCO UK LIMITED","593232","http://opencorporates.com/companies/gb/593232","232347975"
"London Borough of Redbridge","http://opendatacommunities.org/doc/london-borough-council/redbridge","6BSOCIALSERV","Social Services","6CCHILLOOKED","Children Looked After","REV","Revenue","R2140","CQ and F - Safeguarding and Care Planning Soc Care","01-EMPLOYEES","Employees","01A","Direct employee expenses","4","Agency Staff - Pay","3449154","201708",02/11/2016 00:00:00,1648.15,"31230","Employment and Recruitment Agencies","REDACTED DATA","ADECCO UK LIMITED","593232","http://opencorporates.com/companies/gb/593232","232347975"
"London Borough of Redbridge","http://opendatacommunities.org/doc/london-borough-council/redbridge","6BSOCIALSERV","Social Services","6CCHILLOOKED","Children Looked After","REV","Revenue","R2140","CQ and F - Safeguarding and Care Planning Soc Care","01-EMPLOYEES","Employees","01A","Direct employee expenses","4","Agency Staff - Pay","3449154","201708",02/11/2016 00:00:00,1292.48,"31230","Employment and Recruitment Agencies","REDACTED DATA","ADECCO UK LIMITED","593232","http://opencorporates.com/companies/gb/593232","232347975"
"London Borough of Redbridge","http://opendatacommunities.org/doc/london-borough-council/redbridge","2BCULTUR&REL","Cultural & Related Services","2CREC&SPORT","Recreation & Sport","REV","Revenue","R6999","Leisure Client","05-THIRD","Third Party Payments","05H","Private contractors","6915","Contractor Payments","60324267","201707",21/10/2016 00:00:00,2517715.5,"48583","Local Government","REDACTED DATA","VISION REDBRIDGE CULTURE AND LEISURE","6032714","http://opencorporates.com/companies/gb/6032714","906429031"
"London Borough of Redbridge","http://opendatacommunities.org/doc/london-borough-council/redbridge","9BNONBVO","Outside the BVACOP Objective Structure","9CNONBVO","Outside the BVACOP Objective Structure","REV","Revenue","R0026","Collection Fund","05-THIRD","Third Party Payments","05E","Government departments","6752","GLA Council Tax � Precepts","60325025","201707",01/11/2016 00:00:00,2435875.9,"48583","Local Government","REDACTED DATA","GREATER LONDON AUTHORITY","",,""
"London Borough of Redbridge","http://opendatacommunities.org/doc/london-borough-council/redbridge","9BNONBVO","Outside the BVACOP Objective Structure","9CNONBVO","Outside the BVACOP Objective Structure","CAP","Capital","C4281","Ilford County High School","99-NONBV","Capital, Balance Sheet and Control","50E","Capital - Contract Payments","9163","Main Building / structure","60327111","201708",18/11/2016 00:00:00,796100,"21555","Construction Contractors - General","REDACTED DATA","KIER CONSTRUCTION LTD T/AS KIER CONSTRUCTION LONDON","2099533","http://opencorporates.com/companies/gb/2099533","882852191"
"London Borough of Redbridge","http://opendatacommunities.org/doc/london-borough-council/redbridge","9BNONBVO","Outside the BVACOP Objective Structure","9CNONBVO","Outside the BVACOP Objective Structure","REV","Revenue","R0026","Collection Fund","05-THIRD","Third Party Payments","05I","Other agencies","6958","Business Rate Retention payable to GLA","60325029","201707",01/11/2016 00:00:00,883228,"48583","Local Government","REDACTED DATA","GREATER LONDON AUTHORITY","",,""
"London Borough of Redbridge","http://opendatacommunities.org/doc/london-borough-council/redbridge","9BNONBVO","Outside the BVACOP Objective Structure","9CNONBVO","Outside the BVACOP Objective Structure","BAL","Balance Sheet","B0132","Better Care Fund","99-NONBV","Capital, Balance Sheet and Control","50Q","Other Balances & Reserves","9912","Personal Account - Creditor","60325515","201708",02/11/2016 00:00:00,803536,"42200","Health Authorities","REDACTED DATA","REDBRIDGE CLINICAL COMMISSIONING GROUP","",,"654446033"
"London Borough of Redbridge","http://opendatacommunities.org/doc/london-borough-council/redbridge","9BNONBVO","Outside the BVACOP Objective Structure","9CNONBVO","Outside the BVACOP Objective Structure","CAP","Capital","C4282","Woodford County High School","99-NONBV","Capital, Balance Sheet and Control","50E","Capital - Contract Payments","9163","Main Building / structure","60326960","201708",14/11/2016 00:00:00,438450,"21555","Construction Contractors - General","REDACTED DATA","KIER CONSTRUCTION LTD T/AS KIER CONSTRUCTION LONDON","2099533","http://opencorporates.com/companies/gb/2099533","882852191"
"London Borough of Redbridge","http://opendatacommunities.org/doc/london-borough-council/redbridge","9BNONBVO","Outside the BVACOP Objective Structure","9CNONBVO","Outside the BVACOP Objective Structure","REV","Revenue","R5131","Repairs and Maintenance - MFS","02-PREMISES","Premises","02A","Repairs, alteration and maintenance of buildings","3027","Miscellaneous Maintenance","70089901","201708",01/11/2016 00:00:00,412681.39,"61961","Property Maintenance and Repairs","REDACTED DATA","MORRISONS FACILITIES SERVICES LTD","SC120550","http://opencorporates.com/companies/gb/SC120550","297280913"
"London Borough of Redbridge","http://opendatacommunities.org/doc/london-borough-council/redbridge","1BCENTRALPUB","Central Services to the Public","1CLOCALTAXCO","Local Tax Collection","REV","Revenue","R5760","Local Tax Collection","01-EMPLOYEES","Employees","01A","Direct employee expenses","4","Agency Staff - Pay","3450134","201708",09/11/2016 00:00:00,899.06,"31230","Employment and Recruitment Agencies","REDACTED DATA","ADECCO UK LIMITED","593232","http://opencorporates.com/companies/gb/593232","232347975"
"London Borough of Redbridge","http://opendatacommunities.org/doc/london-borough-council/redbridge","1BCENTRALPUB","Central Services to the Public","1CLOCALTAXCO","Local Tax Collection","REV","Revenue","R5760","Local Tax Collection","01-EMPLOYEES","Employees","01A","Direct employee expenses","4","Agency Staff - Pay","3450134","201708",09/11/2016 00:00:00,855.36,"31230","Employment and Recruitment Agencies","REDACTED DATA","ADECCO UK LIMITED","593232","http://opencorporates.com/companies/gb/593232","232347975"
"London Borough of Redbridge","http://opendatacommunities.org/doc/london-borough-council/redbridge","1BCENTRALPUB","Central Services to the Public","1CLOCALTAXCO","Local Tax Collection","REV","Revenue","R5760","Local Tax Collection","01-EMPLOYEES","Employees","01A","Direct employee expenses","4","Agency Staff - Pay","3450134","201708",09/11/2016 00:00:00,855.36,"31230","Employment and Recruitment Agencies","REDACTED DATA","ADECCO UK LIMITED","593232","http://opencorporates.com/companies/gb/593232","232347975"
"London Borough of Redbridge","http://opendatacommunities.org/doc/london-borough-council/redbridge","6BSOCIALSERV","Social Services","6CCHILLOOKED","Children Looked After","REV","Revenue","R2140","CQ and F - Safeguarding and Care Planning Soc Care","01-EMPLOYEES","Employees","01A","Direct employee expenses","4","Agency Staff - Pay","3449154","201708",02/11/2016 00:00:00,1615.6,"31230","Employment and Recruitment Agencies","REDACTED DATA","ADECCO UK LIMITED","593232","http://opencorporates.com/companies/gb/593232","232347975"
"London Borough of Redbridge","http://opendatacommunities.org/doc/london-borough-council/redbridge","6BSOCIALSERV","Social Services","6CCHILLOOKED","Children Looked After","REV","Revenue","R2140","CQ and F - Safeguarding and Care Planning Soc Care","01-EMPLOYEES","Employees","01A","Direct employee expenses","4","Agency Staff - Pay","3449154","201708",02/11/2016 00:00:00,1333.15,"31230","Employment and Recruitment Agencies","REDACTED DATA","ADECCO UK LIMITED","593232","http://opencorporates.com/companies/gb/593232","232347975"
"London Borough of Redbridge","http://opendatacommunities.org/doc/london-borough-council/redbridge","6BSOCIALSERV","Social Services","6CCHILLOOKED","Children Looked After","REV","Revenue","R2140","CQ and F - Safeguarding and Care Planning Soc Care","01-EMPLOYEES","Employees","01A","Direct employee expenses","4","Agency Staff - Pay","3449154","201708",02/11/2016 00:00:00,1066.52,"31230","Employment and Recruitment Agencies","REDACTED DATA","ADECCO UK LIMITED","593232","http://opencorporates.com/companies/gb/593232","232347975"
"London Borough of Redbridge","http://opendatacommunities.org/doc/london-borough-council/redbridge","6BSOCIALSERV","Social Services","6CCHILLOOKED","Children Looked After","REV","Revenue","R2147","CQ and F - Child Death Review Processes","01-EMPLOYEES","Employees","01A","Direct employee expenses","4","Agency Staff - Pay","3449154","201708",02/11/2016 00:00:00,1635.06,"31230","Employment and Recruitment Agencies","REDACTED DATA","ADECCO UK LIMITED","593232","http://opencorporates.com/companies/gb/593232","232347975"
"London Borough of Redbridge","http://opendatacommunities.org/doc/london-borough-council/redbridge","6BSOCIALSERV","Social Services","6CCHILLOOKED","Children Looked After","REV","Revenue","R2158","CSW Service","01-EMPLOYEES","Employees","01A","Direct employee expenses","4","Agency Staff - Pay","3449154","201708",02/11/2016 00:00:00,1333.15,"31230","Employment and Recruitment Agencies","REDACTED DATA","ADECCO UK LIMITED","593232","http://opencorporates.com/companies/gb/593232","232347975"
"London Borough of Redbridge","http://opendatacommunities.org/doc/london-borough-council/redbridge","6BSOCIALSERV","Social Services","6CCHILLOOKED","Children Looked After","REV","Revenue","R2158","CSW Service","01-EMPLOYEES","Employees","01A","Direct employee expenses","4","Agency Staff - Pay","3449154","201708",02/11/2016 00:00:00,1298.15,"31230","Employment and Recruitment Agencies","REDACTED DATA","ADECCO UK LIMITED","593232","http://opencorporates.com/companies/gb/593232","232347975"
"London Borough of Redbridge","http://opendatacommunities.org/doc/london-borough-council/redbridge","6BSOCIALSERV","Social Services","6CCHILLOOKED","Children Looked After","REV","Revenue","R2158","CSW Service","01-EMPLOYEES","Employees","01A","Direct employee expenses","4","Agency Staff - Pay","3449154","201708",02/11/2016 00:00:00,1298.15,"31230","Employment and Recruitment Agencies","REDACTED DATA","ADECCO UK LIMITED","593232","http://opencorporates.com/companies/gb/593232","232347975"
"London Borough of Redbridge","http://opendatacommunities.org/doc/london-borough-council/redbridge","6BSOCIALSERV","Social Services","6CCHILLOOKED","Children Looked After","REV","Revenue","R2158","CSW Service","01-EMPLOYEES","Employees","01A","Direct employee expenses","4","Agency Staff - Pay","3449154","201708",02/11/2016 00:00:00,30,"31230","Employment and Recruitment Agencies","REDACTED DATA","ADECCO UK LIMITED","593232","http://opencorporates.com/companies/gb/593232","232347975"
"London Borough of Redbridge","http://opendatacommunities.org/doc/london-borough-council/redbridge","6BSOCIALSERV","Social Services","6CCHILLOOKED","Children Looked After","REV","Revenue","R2158","CSW Service","01-EMPLOYEES","Employees","01A","Direct employee expenses","4","Agency Staff - Pay","3449154","201708",02/11/2016 00:00:00,2.64,"31230","Employment and Recruitment Agencies","REDACTED DATA","ADECCO UK LIMITED","593232","http://opencorporates.com/companies/gb/593232","232347975"
"London Borough of Redbridge","http://opendatacommunities.org/doc/london-borough-council/redbridge","6BSOCIALSERV","Social Services","6CCHILLOOKED","Children Looked After","REV","Revenue","R2158","CSW Service","01-EMPLOYEES","Employees","01A","Direct employee expenses","4","Agency Staff - Pay","3449154","201708",02/11/2016 00:00:00,2.12,"31230","Employment and Recruitment Agencies","REDACTED DATA","ADECCO UK LIMITED","593232","http://opencorporates.com/companies/gb/593232","232347975"
"London Borough of Redbridge","http://opendatacommunities.org/doc/london-borough-council/redbridge","6BSOCIALSERV","Social Services","6CCHILLOOKED","Children Looked After","REV","Revenue","R2158","CSW Service","01-EMPLOYEES","Employees","01A","Direct employee expenses","4","Agency Staff - Pay","3449154","201708",02/11/2016 00:00:00,1333.15,"31230","Employment and Recruitment Agencies","REDACTED DATA","ADECCO UK LIMITED","593232","http://opencorporates.com/companies/gb/593232","232347975"
"London Borough of Redbridge","http://opendatacommunities.org/doc/london-borough-council/redbridge","6BSOCIALSERV","Social Services","6CCHILLOOKED","Children Looked After","REV","Revenue","R2158","CSW Service","01-EMPLOYEES","Employees","01A","Direct employee expenses","4","Agency Staff - Pay","3449154","201708",02/11/2016 00:00:00,1298.15,"31230","Employment and Recruitment Agencies","REDACTED DATA","ADECCO UK LIMITED","593232","http://opencorporates.com/companies/gb/593232","232347975"
"London Borough of Redbridge","http://opendatacommunities.org/doc/london-borough-council/redbridge","6BSOCIALSERV","Social Services","6CCHILLOOKED","Children Looked After","REV","Revenue","R2158","CSW Service","01-EMPLOYEES","Employees","01A","Direct employee expenses","4","Agency Staff - Pay","3449154","201708",02/11/2016 00:00:00,45,"31230","Employment and Recruitment Agencies","REDACTED DATA","ADECCO UK LIMITED","593232","http://opencorporates.com/companies/gb/593232","232347975"
"London Borough of Redbridge","http://opendatacommunities.org/doc/london-borough-council/redbridge","6BSOCIALSERV","Social Services","6CCHILLOOKED","Children Looked After","REV","Revenue","R2158","CSW Service","01-EMPLOYEES","Employees","01A","Direct employee expenses","4","Agency Staff - Pay","3449154","201708",02/11/2016 00:00:00,82.35,"31230","Employment and Recruitment Agencies","REDACTED DATA","ADECCO UK LIMITED","593232","http://opencorporates.com/companies/gb/593232","232347975"
"London Borough of Redbridge","http://opendatacommunities.org/doc/london-borough-council/redbridge","6BSOCIALSERV","Social Services","6CCHILLOOKED","Children Looked After","REV","Revenue","R2158","CSW Service","01-EMPLOYEES","Employees","01A","Direct employee expenses","4","Agency Staff - Pay","3449154","201708",02/11/2016 00:00:00,1348.9,"31230","Employment and Recruitment Agencies","REDACTED DATA","ADECCO UK LIMITED","593232","http://opencorporates.com/companies/gb/593232","232347975"
"London Borough of Redbridge","http://opendatacommunities.org/doc/london-borough-council/redbridge","6BSOCIALSERV","Social Services","6CCHILLOOKED","Children Looked After","REV","Revenue","R2158","CSW Service","01-EMPLOYEES","Employees","01A","Direct employee expenses","4","Agency Staff - Pay","3449154","201708",02/11/2016 00:00:00,1348.9,"31230","Employment and Recruitment Agencies","REDACTED DATA","ADECCO UK LIMITED","593232","http://opencorporates.com/companies/gb/593232","232347975"
"London Borough of Redbridge","http://opendatacommunities.org/doc/london-borough-council/redbridge","6BSOCIALSERV","Social Services","6CCHILLOOKED","Children Looked After","REV","Revenue","R2158","CSW Service","01-EMPLOYEES","Employees","01A","Direct employee expenses","4","Agency Staff - Pay","3449154","201708",02/11/2016 00:00:00,1348.9,"31230","Employment and Recruitment Agencies","REDACTED DATA","ADECCO UK LIMITED","593232","http://opencorporates.com/companies/gb/593232","232347975"
"London Borough of Redbridge","http://opendatacommunities.org/doc/london-borough-council/redbridge","6BSOCIALSERV","Social Services","6CCHILLOOKED","Children Looked After","REV","Revenue","R2158","CSW Service","01-EMPLOYEES","Employees","01A","Direct employee expenses","4","Agency Staff - Pay","3449154","201708",02/11/2016 00:00:00,1348.9,"31230","Employment and Recruitment Agencies","REDACTED DATA","ADECCO UK LIMITED","593232","http://opencorporates.com/companies/gb/593232","232347975"
"London Borough of Redbridge","http://opendatacommunities.org/doc/london-borough-council/redbridge","6BSOCIALSERV","Social Services","6CCHILLOOKED","Children Looked After","REV","Revenue","R2158","CSW Service","01-EMPLOYEES","Employees","01A","Direct employee expenses","4","Agency Staff - Pay","3449154","201708",02/11/2016 00:00:00,616.64,"31230","Employment and Recruitment Agencies","REDACTED DATA","ADECCO UK LIMITED","593232","http://opencorporates.com/companies/gb/593232","232347975"
"London Borough of Redbridge","http://opendatacommunities.org/doc/london-borough-council/redbridge","6BSOCIALSERV","Social Services","6CCHILLOOKED","Children Looked After","REV","Revenue","R2158","CSW Service","01-EMPLOYEES","Employees","01A","Direct employee expenses","4","Agency Staff - Pay","3449154","201708",02/11/2016 00:00:00,617.4,"31230","Employment and Recruitment Agencies","REDACTED DATA","ADECCO UK LIMITED","593232","http://opencorporates.com/companies/gb/593232","232347975"
"London Borough of Redbridge","http://opendatacommunities.org/doc/london-borough-council/redbridge","6BSOCIALSERV","Social Services","6CCHILLOOKED","Children Looked After","REV","Revenue","R2158","CSW Service","01-EMPLOYEES","Employees","01A","Direct employee expenses","4","Agency Staff - Pay","3449154","201708",02/11/2016 00:00:00,9.45,"31230","Employment and Recruitment Agencies","REDACTED DATA","ADECCO UK LIMITED","593232","http://opencorporates.com/companies/gb/593232","232347975"
"London Borough of Redbridge","http://opendatacommunities.org/doc/london-borough-council/redbridge","6BSOCIALSERV","Social Services","6CCHILLOOKED","Children Looked After","REV","Revenue","R2158","CSW Service","01-EMPLOYEES","Employees","01A","Direct employee expenses","4","Agency Staff - Pay","3449154","201708",02/11/2016 00:00:00,1333.15,"31230","Employment and Recruitment Agencies","REDACTED DATA","ADECCO UK LIMITED","593232","http://opencorporates.com/companies/gb/593232","232347975"
"London Borough of Redbridge","http://opendatacommunities.org/doc/london-borough-council/redbridge","6BSOCIALSERV","Social Services","6CCHILLOOKED","Children Looked After","REV","Revenue","R2158","CSW Service","01-EMPLOYEES","Employees","01A","Direct employee expenses","4","Agency Staff - Pay","3449154","201708",02/11/2016 00:00:00,1368.15,"31230","Employment and Recruitment Agencies","REDACTED DATA","ADECCO UK LIMITED","593232","http://opencorporates.com/companies/gb/593232","232347975"
"London Borough of Redbridge","http://opendatacommunities.org/doc/london-borough-council/redbridge","6BSOCIALSERV","Social Services","6CCHILLOOKED","Children Looked After","REV","Revenue","R2158","CSW Service","01-EMPLOYEES","Employees","01A","Direct employee expenses","4","Agency Staff - Pay","3449154","201708",02/11/2016 00:00:00,1508.15,"31230","Employment and Recruitment Agencies","REDACTED DATA","ADECCO UK LIMITED","593232","http://opencorporates.com/companies/gb/593232","232347975"
"London Borough of Redbridge","http://opendatacommunities.org/doc/london-borough-council/redbridge","6BSOCIALSERV","Social Services","6CCHILLOOKED","Children Looked After","REV","Revenue","R2158","CSW Service","01-EMPLOYEES","Employees","01A","Direct employee expenses","4","Agency Staff - Pay","3449154","201708",02/11/2016 00:00:00,954.52,"31230","Employment and Recruitment Agencies","REDACTED DATA","ADECCO UK LIMITED","593232","http://opencorporates.com/companies/gb/593232","232347975"
"London Borough of Redbridge","http://opendatacommunities.org/doc/london-borough-council/redbridge","6BSOCIALSERV","Social Services","6CCHILLOOKED","Children Looked After","REV","Revenue","R2158","CSW Service","01-EMPLOYEES","Employees","01A","Direct employee expenses","4","Agency Staff - Pay","3449154","201708",02/11/2016 00:00:00,1558.9,"31230","Employment and Recruitment Agencies","REDACTED DATA","ADECCO UK LIMITED","593232","http://opencorporates.com/companies/gb/593232","232347975"
"London Borough of Redbridge","http://opendatacommunities.org/doc/london-borough-council/redbridge","6BSOCIALSERV","Social Services","6CCHILLOOKED","Children Looked After","REV","Revenue","R2158","CSW Service","01-EMPLOYEES","Employees","01A","Direct employee expenses","4","Agency Staff - Pay","3449154","201708",02/11/2016 00:00:00,1228.15,"31230","Employment and Recruitment Agencies","REDACTED DATA","ADECCO UK LIMITED","593232","http://opencorporates.com/companies/gb/593232","232347975"
"London Borough of Redbridge","http://opendatacommunities.org/doc/london-borough-council/redbridge","6BSOCIALSERV","Social Services","6CCHILLOOKED","Children Looked After","REV","Revenue","R2158","CSW Service","01-EMPLOYEES","Employees","01A","Direct employee expenses","4","Agency Staff - Pay","3449154","201708",02/11/2016 00:00:00,1228.15,"31230","Employment and Recruitment Agencies","REDACTED DATA","ADECCO UK LIMITED","593232","http://opencorporates.com/companies/gb/593232","232347975"
"London Borough of Redbridge","http://opendatacommunities.org/doc/london-borough-council/redbridge","6BSOCIALSERV","Social Services","6CCHILLOOKED","Children Looked After","REV","Revenue","R2158","CSW Service","01-EMPLOYEES","Employees","01A","Direct employee expenses","4","Agency Staff - Pay","3449154","201708",02/11/2016 00:00:00,519.26,"31230","Employment and Recruitment Agencies","REDACTED DATA","ADECCO UK LIMITED","593232","http://opencorporates.com/companies/gb/593232","232347975"
"London Borough of Redbridge","http://opendatacommunities.org/doc/london-borough-council/redbridge","6BSOCIALSERV","Social Services","6CCHILLOOKED","Children Looked After","REV","Revenue","R2158","CSW Service","01-EMPLOYEES","Employees","01A","Direct employee expenses","4","Agency Staff - Pay","3449154","201708",02/11/2016 00:00:00,579.95,"31230","Employment and Recruitment Agencies","REDACTED DATA","ADECCO UK LIMITED","593232","http://opencorporates.com/companies/gb/593232","232347975"
"London Borough of Redbridge","http://opendatacommunities.org/doc/london-borough-council/redbridge","6BSOCIALSERV","Social Services","6CCHILLOOKED","Children Looked After","REV","Revenue","R2158","CSW Service","01-EMPLOYEES","Employees","01A","Direct employee expenses","4","Agency Staff - Pay","3449154","201708",02/11/2016 00:00:00,1298.15,"31230","Employment and Recruitment Agencies","REDACTED DATA","ADECCO UK LIMITED","593232","http://opencorporates.com/companies/gb/593232","232347975"
"London Borough of Redbridge","http://opendatacommunities.org/doc/london-borough-council/redbridge","6BSOCIALSERV","Social Services","6CCHILLOOKED","Children Looked After","REV","Revenue","R2158","CSW Service","01-EMPLOYEES","Employees","01A","Direct employee expenses","4","Agency Staff - Pay","3449154","201708",02/11/2016 00:00:00,1348.9,"31230","Employment and Recruitment Agencies","REDACTED DATA","ADECCO UK LIMITED","593232","http://opencorporates.com/companies/gb/593232","232347975"
"London Borough of Redbridge","http://opendatacommunities.org/doc/london-borough-council/redbridge","6BSOCIALSERV","Social Services","6CCHILLOOKED","Children Looked After","REV","Revenue","R2166","Child Protection Assmt Service Soc Care","01-EMPLOYEES","Employees","01A","Direct employee expenses","4","Agency Staff - Pay","3449154","201708",02/11/2016 00:00:00,647.5,"31230","Employment and Recruitment Agencies","REDACTED DATA","ADECCO UK LIMITED","593232","http://opencorporates.com/companies/gb/593232","232347975"
"London Borough of Redbridge","http://opendatacommunities.org/doc/london-borough-council/redbridge","6BSOCIALSERV","Social Services","6CCHILLOOKED","Children Looked After","REV","Revenue","R2166","Child Protection Assmt Service Soc Care","01-EMPLOYEES","Employees","01A","Direct employee expenses","4","Agency Staff - Pay","3449154","201708",02/11/2016 00:00:00,1208.9,"31230","Employment and Recruitment Agencies","REDACTED DATA","ADECCO UK LIMITED","593232","http://opencorporates.com/companies/gb/593232","232347975"
"London Borough of Redbridge","http://opendatacommunities.org/doc/london-borough-council/redbridge","6BSOCIALSERV","Social Services","6CCHILLOOKED","Children Looked After","REV","Revenue","R2166","Child Protection Assmt Service Soc Care","01-EMPLOYEES","Employees","01A","Direct employee expenses","4","Agency Staff - Pay","3449154","201708",02/11/2016 00:00:00,1558.9,"31230","Employment and Recruitment Agencies","REDACTED DATA","ADECCO UK LIMITED","593232","http://opencorporates.com/companies/gb/593232","232347975"
"London Borough of Redbridge","http://opendatacommunities.org/doc/london-borough-council/redbridge","6BSOCIALSERV","Social Services","6CCHILLOOKED","Children Looked After","REV","Revenue","R2166","Child Protection Assmt Service Soc Care","01-EMPLOYEES","Employees","01A","Direct employee expenses","4","Agency Staff - Pay","3449154","201708",02/11/2016 00:00:00,1418.9,"31230","Employment and Recruitment Agencies","REDACTED DATA","ADECCO UK LIMITED","593232","http://opencorporates.com/companies/gb/593232","232347975"
"London Borough of Redbridge","http://opendatacommunities.org/doc/london-borough-council/redbridge","6BSOCIALSERV","Social Services","6CCHILLOOKED","Children Looked After","REV","Revenue","R2166","Child Protection Assmt Service Soc Care","01-EMPLOYEES","Employees","01A","Direct employee expenses","4","Agency Staff - Pay","3449154","201708",02/11/2016 00:00:00,1163.12,"31230","Employment and Recruitment Agencies","REDACTED DATA","ADECCO UK LIMITED","593232","http://opencorporates.com/companies/gb/593232","232347975"
"London Borough of Redbridge","http://opendatacommunities.org/doc/london-borough-council/redbridge","6BSOCIALSERV","Social Services","6CCHILLOOKED","Children Looked After","REV","Revenue","R2166","Child Protection Assmt Service Soc Care","01-EMPLOYEES","Employees","01A","Direct employee expenses","4","Agency Staff - Pay","3449154","201708",02/11/2016 00:00:00,2056.86,"31230","Employment and Recruitment Agencies","REDACTED DATA","ADECCO UK LIMITED","593232","http://opencorporates.com/companies/gb/593232","232347975"
"London Borough of Redbridge","http://opendatacommunities.org/doc/london-borough-council/redbridge","6BSOCIALSERV","Social Services","6CCHILLOOKED","Children Looked After","REV","Revenue","R2166","Child Protection Assmt Service Soc Care","01-EMPLOYEES","Employees","01A","Direct employee expenses","4","Agency Staff - Pay","3449154","201708",02/11/2016 00:00:00,1418.9,"31230","Employment and Recruitment Agencies","REDACTED DATA","ADECCO UK LIMITED","593232","http://opencorporates.com/companies/gb/593232","232347975"
"London Borough of Redbridge","http://opendatacommunities.org/doc/london-borough-council/redbridge","6BSOCIALSERV","Social Services","6CCHILLOOKED","Children Looked After","REV","Revenue","R2166","Child Protection Assmt Service Soc Care","01-EMPLOYEES","Employees","01A","Direct employee expenses","4","Agency Staff - Pay","3449154","201708",02/11/2016 00:00:00,1277.01,"31230","Employment and Recruitment Agencies","REDACTED DATA","ADECCO UK LIMITED","593232","http://opencorporates.com/companies/gb/593232","232347975"
"London Borough of Redbridge","http://opendatacommunities.org/doc/london-borough-council/redbridge","6BSOCIALSERV","Social Services","6CCHILLOOKED","Children Looked After","REV","Revenue","R2166","Child Protection Assmt Service Soc Care","01-EMPLOYEES","Employees","01A","Direct employee expenses","4","Agency Staff - Pay","3449154","201708",02/11/2016 00:00:00,1392.44,"31230","Employment and Recruitment Agencies","REDACTED DATA","ADECCO UK LIMITED","593232","http://opencorporates.com/companies/gb/593232","232347975"
"London Borough of Redbridge","http://opendatacommunities.org/doc/london-borough-council/redbridge","6BSOCIALSERV","Social Services","6CCHILLOOKED","Children Looked After","REV","Revenue","R2166","Child Protection Assmt Service Soc Care","01-EMPLOYEES","Employees","01A","Direct employee expenses","4","Agency Staff - Pay","3449154","201708",02/11/2016 00:00:00,1740.55,"31230","Employment and Recruitment Agencies","REDACTED DATA","ADECCO UK LIMITED","593232","http://opencorporates.com/companies/gb/593232","232347975"
"London Borough of Redbridge","http://opendatacommunities.org/doc/london-borough-council/redbridge","6BSOCIALSERV","Social Services","6CCHILLOOKED","Children Looked After","REV","Revenue","R2166","Child Protection Assmt Service Soc Care","01-EMPLOYEES","Employees","01A","Direct employee expenses","4","Agency Staff - Pay","3449154","201708",02/11/2016 00:00:00,1740.55,"31230","Employment and Recruitment Agencies","REDACTED DATA","ADECCO UK LIMITED","593232","http://opencorporates.com/companies/gb/593232","232347975"
"London Borough of Redbridge","http://opendatacommunities.org/doc/london-borough-council/redbridge","6BSOCIALSERV","Social Services","6CCHILLOOKED","Children Looked After","REV","Revenue","R2166","Child Protection Assmt Service Soc Care","01-EMPLOYEES","Employees","01A","Direct employee expenses","4","Agency Staff - Pay","3449154","201708",02/11/2016 00:00:00,1321.6,"31230","Employment and Recruitment Agencies","REDACTED DATA","ADECCO UK LIMITED","593232","http://opencorporates.com/companies/gb/593232","232347975"
"London Borough of Redbridge","http://opendatacommunities.org/doc/london-borough-council/redbridge","6BSOCIALSERV","Social Services","6CCHILLOOKED","Children Looked After","REV","Revenue","R2166","Child Protection Assmt Service Soc Care","01-EMPLOYEES","Employees","01A","Direct employee expenses","4","Agency Staff - Pay","3449154","201708",02/11/2016 00:00:00,1418.9,"31230","Employment and Recruitment Agencies","REDACTED DATA","ADECCO UK LIMITED","593232","http://opencorporates.com/companies/gb/593232","232347975"
"London Borough of Redbridge","http://opendatacommunities.org/doc/london-borough-council/redbridge","6BSOCIALSERV","Social Services","6CCHILLOOKED","Children Looked After","REV","Revenue","R2166","Child Protection Assmt Service Soc Care","01-EMPLOYEES","Employees","01A","Direct employee expenses","4","Agency Staff - Pay","3449154","201708",02/11/2016 00:00:00,1208.9,"31230","Employment and Recruitment Agencies","REDACTED DATA","ADECCO UK LIMITED","593232","http://opencorporates.com/companies/gb/593232","232347975"
"London Borough of Redbridge","http://opendatacommunities.org/doc/london-borough-council/redbridge","6BSOCIALSERV","Social Services","6CCHILLOOKED","Children Looked After","REV","Revenue","R2166","Child Protection Assmt Service Soc Care","01-EMPLOYEES","Employees","01A","Direct employee expenses","4","Agency Staff - Pay","3449154","201708",02/11/2016 00:00:00,1438.15,"31230","Employment and Recruitment Agencies","REDACTED DATA","ADECCO UK LIMITED","593232","http://opencorporates.com/companies/gb/593232","232347975"
"London Borough of Redbridge","http://opendatacommunities.org/doc/london-borough-council/redbridge","6BSOCIALSERV","Social Services","6CCHILLOOKED","Children Looked After","REV","Revenue","R2166","Child Protection Assmt Service Soc Care","01-EMPLOYEES","Employees","01A","Direct employee expenses","4","Agency Staff - Pay","3449154","201708",02/11/2016 00:00:00,1333.15,"31230","Employment and Recruitment Agencies","REDACTED DATA","ADECCO UK LIMITED","593232","http://opencorporates.com/companies/gb/593232","232347975"
"London Borough of Redbridge","http://opendatacommunities.org/doc/london-borough-council/redbridge","6BSOCIALSERV","Social Services","6CCHILLOOKED","Children Looked After","REV","Revenue","R2166","Child Protection Assmt Service Soc Care","01-EMPLOYEES","Employees","01A","Direct employee expenses","4","Agency Staff - Pay","3449154","201708",02/11/2016 00:00:00,1333.15,"31230","Employment and Recruitment Agencies","REDACTED DATA","ADECCO UK LIMITED","593232","http://opencorporates.com/companies/gb/593232","232347975"
"London Borough of Redbridge","http://opendatacommunities.org/doc/london-borough-council/redbridge","6BSOCIALSERV","Social Services","6CCHILLOOKED","Children Looked After","REV","Revenue","R2166","Child Protection Assmt Service Soc Care","01-EMPLOYEES","Employees","01A","Direct employee expenses","4","Agency Staff - Pay","3449154","201708",02/11/2016 00:00:00,491.26,"31230","Employment and Recruitment Agencies","REDACTED DATA","ADECCO UK LIMITED","593232","http://opencorporates.com/companies/gb/593232","232347975"
"London Borough of Redbridge","http://opendatacommunities.org/doc/london-borough-council/redbridge","6BSOCIALSERV","Social Services","6CCHILLOOKED","Children Looked After","REV","Revenue","R2166","Child Protection Assmt Service Soc Care","01-EMPLOYEES","Employees","01A","Direct employee expenses","4","Agency Staff - Pay","3449154","201708",02/11/2016 00:00:00,1453.9,"31230","Employment and Recruitment Agencies","REDACTED DATA","ADECCO UK LIMITED","593232","http://opencorporates.com/companies/gb/593232","232347975"
"London Borough of Redbridge","http://opendatacommunities.org/doc/london-borough-council/redbridge","6BSOCIALSERV","Social Services","6CCHILLOOKED","Children Looked After","REV","Revenue","R2166","Child Protection Assmt Service Soc Care","01-EMPLOYEES","Employees","01A","Direct employee expenses","4","Agency Staff - Pay","3449154","201708",02/11/2016 00:00:00,1193.15,"31230","Employment and Recruitment Agencies","REDACTED DATA","ADECCO UK LIMITED","593232","http://opencorporates.com/companies/gb/593232","232347975"
"London Borough of Redbridge","http://opendatacommunities.org/doc/london-borough-council/redbridge","6BSOCIALSERV","Social Services","6CCHILLOOKED","Children Looked After","REV","Revenue","R2199","Court Team CSWLAC","01-EMPLOYEES","Employees","01A","Direct employee expenses","4","Agency Staff - Pay","3449154","201708",02/11/2016 00:00:00,1066.52,"31230","Employment and Recruitment Agencies","REDACTED DATA","ADECCO UK LIMITED","593232","http://opencorporates.com/companies/gb/593232","232347975"
"London Borough of Redbridge","http://opendatacommunities.org/doc/london-borough-council/redbridge","6BSOCIALSERV","Social Services","6CCHILLOOKED","Children Looked After","REV","Revenue","R2199","Court Team CSWLAC","01-EMPLOYEES","Employees","01A","Direct employee expenses","4","Agency Staff - Pay","3449154","201708",02/11/2016 00:00:00,1333.15,"31230","Employment and Recruitment Agencies","REDACTED DATA","ADECCO UK LIMITED","593232","http://opencorporates.com/companies/gb/593232","232347975"
"London Borough of Redbridge","http://opendatacommunities.org/doc/london-borough-council/redbridge","6BSOCIALSERV","Social Services","6CCHILLOOKED","Children Looked After","REV","Revenue","R2199","Court Team CSWLAC","01-EMPLOYEES","Employees","01A","Direct employee expenses","4","Agency Staff - Pay","3449154","201708",02/11/2016 00:00:00,266.63,"31230","Employment and Recruitment Agencies","REDACTED DATA","ADECCO UK LIMITED","593232","http://opencorporates.com/companies/gb/593232","232347975"
"London Borough of Redbridge","http://opendatacommunities.org/doc/london-borough-council/redbridge","6BSOCIALSERV","Social Services","6CCHILLOOKED","Children Looked After","REV","Revenue","R2199","Court Team CSWLAC","01-EMPLOYEES","Employees","01A","Direct employee expenses","4","Agency Staff - Pay","3449154","201708",02/11/2016 00:00:00,28.35,"31230","Employment and Recruitment Agencies","REDACTED DATA","ADECCO UK LIMITED","593232","http://opencorporates.com/companies/gb/593232","232347975"
"London Borough of Redbridge","http://opendatacommunities.org/doc/london-borough-council/redbridge","6BSOCIALSERV","Social Services","6CCHILLOOKED","Children Looked After","REV","Revenue","R2199","Court Team CSWLAC","01-EMPLOYEES","Employees","01A","Direct employee expenses","4","Agency Staff - Pay","3449154","201708",02/11/2016 00:00:00,60,"31230","Employment and Recruitment Agencies","REDACTED DATA","ADECCO UK LIMITED","593232","http://opencorporates.com/companies/gb/593232","232347975"
"London Borough of Redbridge","http://opendatacommunities.org/doc/london-borough-council/redbridge","6BSOCIALSERV","Social Services","6CCHILLOOKED","Children Looked After","REV","Revenue","R2199","Court Team CSWLAC","01-EMPLOYEES","Employees","01A","Direct employee expenses","4","Agency Staff - Pay","3449154","201708",02/11/2016 00:00:00,1298.15,"31230","Employment and Recruitment Agencies","REDACTED DATA","ADECCO UK LIMITED","593232","http://opencorporates.com/companies/gb/593232","232347975"
"London Borough of Redbridge","http://opendatacommunities.org/doc/london-borough-council/redbridge","6BSOCIALSERV","Social Services","6CCHILLOOKED","Children Looked After","REV","Revenue","R2199","Court Team CSWLAC","01-EMPLOYEES","Employees","01A","Direct employee expenses","4","Agency Staff - Pay","3449154","201708",02/11/2016 00:00:00,28,"31230","Employment and Recruitment Agencies","REDACTED DATA","ADECCO UK LIMITED","593232","http://opencorporates.com/companies/gb/593232","232347975"
"London Borough of Redbridge","http://opendatacommunities.org/doc/london-borough-council/redbridge","6BSOCIALSERV","Social Services","6CCHILLOOKED","Children Looked After","REV","Revenue","R2199","Court Team CSWLAC","01-EMPLOYEES","Employees","01A","Direct employee expenses","4","Agency Staff - Pay","3449154","201708",02/11/2016 00:00:00,46.52,"31230","Employment and Recruitment Agencies","REDACTED DATA","ADECCO UK LIMITED","593232","http://opencorporates.com/companies/gb/593232","232347975"
"London Borough of Redbridge","http://opendatacommunities.org/doc/london-borough-council/redbridge","6BSOCIALSERV","Social Services","6CCHILLOOKED","Children Looked After","REV","Revenue","R2199","Court Team CSWLAC","01-EMPLOYEES","Employees","01A","Direct employee expenses","4","Agency Staff - Pay","3449154","201708",02/11/2016 00:00:00,5.8,"31230","Employment and Recruitment Agencies","REDACTED DATA","ADECCO UK LIMITED","593232","http://opencorporates.com/companies/gb/593232","232347975"
"London Borough of Redbridge","http://opendatacommunities.org/doc/london-borough-council/redbridge","6BSOCIALSERV","Social Services","6COTHC&FSERV","Other Children's & Families' Services","REV","Revenue","R2123","LAC Service","01-EMPLOYEES","Employees","01A","Direct employee expenses","4","Agency Staff - Pay","3449154","201708",02/11/2016 00:00:00,1335.24,"31230","Employment and Recruitment Agencies","REDACTED DATA","ADECCO UK LIMITED","593232","http://opencorporates.com/companies/gb/593232","232347975"
"London Borough of Redbridge","http://opendatacommunities.org/doc/london-borough-council/redbridge","6BSOCIALSERV","Social Services","6COTHC&FSERV","Other Children's & Families' Services","REV","Revenue","R2169","Emergency Duty Team (EDT)","01-EMPLOYEES","Employees","01A","Direct employee expenses","4","Agency Staff - Pay","3449154","201708",02/11/2016 00:00:00,340.48,"31230","Employment and Recruitment Agencies","REDACTED DATA","ADECCO UK LIMITED","593232","http://opencorporates.com/companies/gb/593232","232347975"
"London Borough of Redbridge","http://opendatacommunities.org/doc/london-borough-council/redbridge","6BSOCIALSERV","Social Services","6COTHC&FSERV","Other Children's & Families' Services","REV","Revenue","R2169","Emergency Duty Team (EDT)","01-EMPLOYEES","Employees","01A","Direct employee expenses","4","Agency Staff - Pay","3449154","201708",02/11/2016 00:00:00,489.33,"31230","Employment and Recruitment Agencies","REDACTED DATA","ADECCO UK LIMITED","593232","http://opencorporates.com/companies/gb/593232","232347975"
"London Borough of Redbridge","http://opendatacommunities.org/doc/london-borough-council/redbridge","6BSOCIALSERV","Social Services","6CSERVSTRAT","Service Strategy","REV","Revenue","R2136","CQ and F - Quality Assurance Safeguarding Children","01-EMPLOYEES","Employees","01A","Direct employee expenses","4","Agency Staff - Pay","3449154","201708",02/11/2016 00:00:00,793.56,"31230","Employment and Recruitment Agencies","REDACTED DATA","ADECCO UK LIMITED","593232","http://opencorporates.com/companies/gb/593232","232347975"
"London Borough of Redbridge","http://opendatacommunities.org/doc/london-borough-council/redbridge","6BSOCIALSERV","Social Services","6CSERVSTRAT","Service Strategy","REV","Revenue","R2136","CQ and F - Quality Assurance Safeguarding Children","01-EMPLOYEES","Employees","01A","Direct employee expenses","4","Agency Staff - Pay","3449154","201708",02/11/2016 00:00:00,1333.15,"31230","Employment and Recruitment Agencies","REDACTED DATA","ADECCO UK LIMITED","593232","http://opencorporates.com/companies/gb/593232","232347975"
"London Borough of Redbridge","http://opendatacommunities.org/doc/london-borough-council/redbridge","6BSOCIALSERV","Social Services","6CSERVSTRAT","Service Strategy","REV","Revenue","R2136","CQ and F - Quality Assurance Safeguarding Children","01-EMPLOYEES","Employees","01A","Direct employee expenses","4","Agency Staff - Pay","3449154","201708",02/11/2016 00:00:00,1333.15,"31230","Employment and Recruitment Agencies","REDACTED DATA","ADECCO UK LIMITED","593232","http://opencorporates.com/companies/gb/593232","232347975"
"London Borough of Redbridge","http://opendatacommunities.org/doc/london-borough-council/redbridge","6BSOCIALSERV","Social Services","6CSERVSTRAT","Service Strategy","REV","Revenue","R2136","CQ and F - Quality Assurance Safeguarding Children","01-EMPLOYEES","Employees","01A","Direct employee expenses","4","Agency Staff - Pay","3449154","201708",02/11/2016 00:00:00,1333.15,"31230","Employment and Recruitment Agencies","REDACTED DATA","ADECCO UK LIMITED","593232","http://opencorporates.com/companies/gb/593232","232347975"
"London Borough of Redbridge","http://opendatacommunities.org/doc/london-borough-council/redbridge","7BCDC","Corporate & Democratic Core","7CCORPMGT","Corporate Management","REV","Revenue","R6900","CLOSED - Performance and Improvment Unit","01-EMPLOYEES","Employees","01A","Direct employee expenses","4","Agency Staff - Pay","3449154","201708",02/11/2016 00:00:00,2519.2,"31230","Employment and Recruitment Agencies","REDACTED DATA","ADECCO UK LIMITED","593232","http://opencorporates.com/companies/gb/593232","232347975"
"London Borough of Redbridge","http://opendatacommunities.org/doc/london-borough-council/redbridge","7BCDC","Corporate & Democratic Core","7CCORPMGT","Corporate Management","REV","Revenue","R8502","Management Board Project","01-EMPLOYEES","Employees","01A","Direct employee expenses","4","Agency Staff - Pay","3449154","201708",02/11/2016 00:00:00,2305.05,"31230","Employment and Recruitment Agencies","REDACTED DATA","ADECCO UK LIMITED","593232","http://opencorporates.com/companies/gb/593232","232347975"
"London Borough of Redbridge","http://opendatacommunities.org/doc/london-borough-council/redbridge","7BCDC","Corporate & Democratic Core","7CCORPMGT","Corporate Management","REV","Revenue","R8502","Management Board Project","01-EMPLOYEES","Employees","01A","Direct employee expenses","4","Agency Staff - Pay","3449154","201708",02/11/2016 00:00:00,2115.36,"31230","Employment and Recruitment Agencies","REDACTED DATA","ADECCO UK LIMITED","593232","http://opencorporates.com/companies/gb/593232","232347975"
"London Borough of Redbridge","http://opendatacommunities.org/doc/london-borough-council/redbridge","7BCDC","Corporate & Democratic Core","7CCORPMGT","Corporate Management","REV","Revenue","R8502","Management Board Project","01-EMPLOYEES","Employees","01A","Direct employee expenses","4","Agency Staff - Pay","3449154","201708",02/11/2016 00:00:00,1266,"31230","Employment and Recruitment Agencies","REDACTED DATA","ADECCO UK LIMITED","593232","http://opencorporates.com/companies/gb/593232","232347975"
"London Borough of Redbridge","http://opendatacommunities.org/doc/london-borough-council/redbridge","7BCDC","Corporate & Democratic Core","7CCORPMGT","Corporate Management","REV","Revenue","R8502","Management Board Project","01-EMPLOYEES","Employees","01A","Direct employee expenses","4","Agency Staff - Pay","3449154","201708",02/11/2016 00:00:00,2317.55,"31230","Employment and Recruitment Agencies","REDACTED DATA","ADECCO UK LIMITED","593232","http://opencorporates.com/companies/gb/593232","232347975"
"London Borough of Redbridge","http://opendatacommunities.org/doc/london-borough-council/redbridge","7BCDC","Corporate & Democratic Core","7CCORPMGT","Corporate Management","REV","Revenue","R8505","Transformation Holding Account","01-EMPLOYEES","Employees","01A","Direct employee expenses","4","Agency Staff - Pay","3449154","201708",02/11/2016 00:00:00,2017.55,"31230","Employment and Recruitment Agencies","REDACTED DATA","ADECCO UK LIMITED","593232","http://opencorporates.com/companies/gb/593232","232347975"
"London Borough of Redbridge","http://opendatacommunities.org/doc/london-borough-council/redbridge","7BCDC","Corporate & Democratic Core","7CCORPMGT","Corporate Management","REV","Revenue","R8505","Transformation Holding Account","01-EMPLOYEES","Employees","01A","Direct employee expenses","4","Agency Staff - Pay","3449154","201708",02/11/2016 00:00:00,869.56,"31230","Employment and Recruitment Agencies","REDACTED DATA","ADECCO UK LIMITED","593232","http://opencorporates.com/companies/gb/593232","232347975"
"London Borough of Redbridge","http://opendatacommunities.org/doc/london-borough-council/redbridge","7BCDC","Corporate & Democratic Core","7CCORPMGT","Corporate Management","REV","Revenue","R8505","Transformation Holding Account","01-EMPLOYEES","Employees","01A","Direct employee expenses","4","Agency Staff - Pay","3449154","201708",02/11/2016 00:00:00,961.95,"31230","Employment and Recruitment Agencies","REDACTED DATA","ADECCO UK LIMITED","593232","http://opencorporates.com/companies/gb/593232","232347975"
"London Borough of Redbridge","http://opendatacommunities.org/doc/london-borough-council/redbridge","7BCDC","Corporate & Democratic Core","7CCORPMGT","Corporate Management","REV","Revenue","R8505","Transformation Holding Account","01-EMPLOYEES","Employees","01A","Direct employee expenses","4","Agency Staff - Pay","3449154","201708",02/11/2016 00:00:00,2017.55,"31230","Employment and Recruitment Agencies","REDACTED DATA","ADECCO UK LIMITED","593232","http://opencorporates.com/companies/gb/593232","232347975"
"London Borough of Redbridge","http://opendatacommunities.org/doc/london-borough-council/redbridge","7BCDC","Corporate & Democratic Core","7CCORPMGT","Corporate Management","REV","Revenue","R8515","Transformation Smart","01-EMPLOYEES","Employees","01A","Direct employee expenses","4","Agency Staff - Pay","3449154","201708",02/11/2016 00:00:00,1839.36,"31230","Employment and Recruitment Agencies","REDACTED DATA","ADECCO UK LIMITED","593232","http://opencorporates.com/companies/gb/593232","232347975"
"London Borough of Redbridge","http://opendatacommunities.org/doc/london-borough-council/redbridge","7BCDC","Corporate & Democratic Core","7CCORPMGT","Corporate Management","REV","Revenue","R9827","Pub Rels and Infn","01-EMPLOYEES","Employees","01A","Direct employee expenses","4","Agency Staff - Pay","3449154","201708",02/11/2016 00:00:00,944.34,"31230","Employment and Recruitment Agencies","REDACTED DATA","ADECCO UK LIMITED","593232","http://opencorporates.com/companies/gb/593232","232347975"
"London Borough of Redbridge","http://opendatacommunities.org/doc/london-borough-council/redbridge","7BCDC","Corporate & Democratic Core","7CCORPMGT","Corporate Management","REV","Revenue","R9827","Pub Rels and Infn","01-EMPLOYEES","Employees","01A","Direct employee expenses","4","Agency Staff - Pay","3449154","201708",02/11/2016 00:00:00,1673.9,"31230","Employment and Recruitment Agencies","REDACTED DATA","ADECCO UK LIMITED","593232","http://opencorporates.com/companies/gb/593232","232347975"
"London Borough of Redbridge","http://opendatacommunities.org/doc/london-borough-council/redbridge","9BNONBVO","Outside the BVACOP Objective Structure","9CNONBVO","Outside the BVACOP Objective Structure","REV","Revenue","R5214","Environmental Services Team","01-EMPLOYEES","Employees","01A","Direct employee expenses","4","Agency Staff - Pay","3449154","201708",02/11/2016 00:00:00,446.76,"31230","Employment and Recruitment Agencies","REDACTED DATA","ADECCO UK LIMITED","593232","http://opencorporates.com/companies/gb/593232","232347975"
"London Borough of Redbridge","http://opendatacommunities.org/doc/london-borough-council/redbridge","9BNONBVO","Outside the BVACOP Objective Structure","9CNONBVO","Outside the BVACOP Objective Structure","REV","Revenue","R5214","Environmental Services Team","01-EMPLOYEES","Employees","01A","Direct employee expenses","4","Agency Staff - Pay","3449154","201708",02/11/2016 00:00:00,446.76,"31230","Employment and Recruitment Agencies","REDACTED DATA","ADECCO UK LIMITED","593232","http://opencorporates.com/companies/gb/593232","232347975"
"London Borough of Redbridge","http://opendatacommunities.org/doc/london-borough-council/redbridge","9BNONBVO","Outside the BVACOP Objective Structure","9CNONBVO","Outside the BVACOP Objective Structure","REV","Revenue","R5214","Environmental Services Team","01-EMPLOYEES","Employees","01A","Direct employee expenses","4","Agency Staff - Pay","3449154","201708",02/11/2016 00:00:00,446.76,"31230","Employment and Recruitment Agencies","REDACTED DATA","ADECCO UK LIMITED","593232","http://opencorporates.com/companies/gb/593232","232347975"
"London Borough of Redbridge","http://opendatacommunities.org/doc/london-borough-council/redbridge","9BNONBVO","Outside the BVACOP Objective Structure","9CNONBVO","Outside the BVACOP Objective Structure","REV","Revenue","R5214","Environmental Services Team","01-EMPLOYEES","Employees","01A","Direct employee expenses","4","Agency Staff - Pay","3449154","201708",02/11/2016 00:00:00,72.9,"31230","Employment and Recruitment Agencies","REDACTED DATA","ADECCO UK LIMITED","593232","http://opencorporates.com/companies/gb/593232","232347975"
"London Borough of Redbridge","http://opendatacommunities.org/doc/london-borough-council/redbridge","9BNONBVO","Outside the BVACOP Objective Structure","9CNONBVO","Outside the BVACOP Objective Structure","REV","Revenue","R5214","Environmental Services Team","01-EMPLOYEES","Employees","01A","Direct employee expenses","4","Agency Staff - Pay","3449154","201708",02/11/2016 00:00:00,446.76,"31230","Employment and Recruitment Agencies","REDACTED DATA","ADECCO UK LIMITED","593232","http://opencorporates.com/companies/gb/593232","232347975"
"London Borough of Redbridge","http://opendatacommunities.org/doc/london-borough-council/redbridge","9BNONBVO","Outside the BVACOP Objective Structure","9CNONBVO","Outside the BVACOP Objective Structure","REV","Revenue","R5214","Environmental Services Team","01-EMPLOYEES","Employees","01A","Direct employee expenses","4","Agency Staff - Pay","3449154","201708",02/11/2016 00:00:00,446.76,"31230","Employment and Recruitment Agencies","REDACTED DATA","ADECCO UK LIMITED","593232","http://opencorporates.com/companies/gb/593232","232347975"
"London Borough of Redbridge","http://opendatacommunities.org/doc/london-borough-council/redbridge","9BNONBVO","Outside the BVACOP Objective Structure","9CNONBVO","Outside the BVACOP Objective Structure","REV","Revenue","R5214","Environmental Services Team","01-EMPLOYEES","Employees","01A","Direct employee expenses","4","Agency Staff - Pay","3449154","201708",02/11/2016 00:00:00,446.76,"31230","Employment and Recruitment Agencies","REDACTED DATA","ADECCO UK LIMITED","593232","http://opencorporates.com/companies/gb/593232","232347975"
"London Borough of Redbridge","http://opendatacommunities.org/doc/london-borough-council/redbridge","9BNONBVO","Outside the BVACOP Objective Structure","9CNONBVO","Outside the BVACOP Objective Structure","REV","Revenue","R5214","Environmental Services Team","01-EMPLOYEES","Employees","01A","Direct employee expenses","4","Agency Staff - Pay","3449154","201708",02/11/2016 00:00:00,446.76,"31230","Employment and Recruitment Agencies","REDACTED DATA","ADECCO UK LIMITED","593232","http://opencorporates.com/companies/gb/593232","232347975"
"London Borough of Redbridge","http://opendatacommunities.org/doc/london-borough-council/redbridge","9BNONBVO","Outside the BVACOP Objective Structure","9CNONBVO","Outside the BVACOP Objective Structure","REV","Revenue","R5214","Environmental Services Team","01-EMPLOYEES","Employees","01A","Direct employee expenses","4","Agency Staff - Pay","3449154","201708",02/11/2016 00:00:00,81.7,"31230","Employment and Recruitment Agencies","REDACTED DATA","ADECCO UK LIMITED","593232","http://opencorporates.com/companies/gb/593232","232347975"
"London Borough of Redbridge","http://opendatacommunities.org/doc/london-borough-council/redbridge","9BNONBVO","Outside the BVACOP Objective Structure","9CNONBVO","Outside the BVACOP Objective Structure","REV","Revenue","R5214","Environmental Services Team","01-EMPLOYEES","Employees","01A","Direct employee expenses","4","Agency Staff - Pay","3449154","201708",02/11/2016 00:00:00,89.97,"31230","Employment and Recruitment Agencies","REDACTED DATA","ADECCO UK LIMITED","593232","http://opencorporates.com/companies/gb/593232","232347975"
"London Borough of Redbridge","http://opendatacommunities.org/doc/london-borough-council/redbridge","9BNONBVO","Outside the BVACOP Objective Structure","9CNONBVO","Outside the BVACOP Objective Structure","REV","Revenue","R5214","Environmental Services Team","01-EMPLOYEES","Employees","01A","Direct employee expenses","4","Agency Staff - Pay","3449154","201708",02/11/2016 00:00:00,446.76,"31230","Employment and Recruitment Agencies","REDACTED DATA","ADECCO UK LIMITED","593232","http://opencorporates.com/companies/gb/593232","232347975"
"London Borough of Redbridge","http://opendatacommunities.org/doc/london-borough-council/redbridge","9BNONBVO","Outside the BVACOP Objective Structure","9CNONBVO","Outside the BVACOP Objective Structure","REV","Revenue","R5214","Environmental Services Team","01-EMPLOYEES","Employees","01A","Direct employee expenses","4","Agency Staff - Pay","3449154","201708",02/11/2016 00:00:00,266.82,"31230","Employment and Recruitment Agencies","REDACTED DATA","ADECCO UK LIMITED","593232","http://opencorporates.com/companies/gb/593232","232347975"
"London Borough of Redbridge","http://opendatacommunities.org/doc/london-borough-council/redbridge","9BNONBVO","Outside the BVACOP Objective Structure","9CNONBVO","Outside the BVACOP Objective Structure","REV","Revenue","R5214","Environmental Services Team","01-EMPLOYEES","Employees","01A","Direct employee expenses","4","Agency Staff - Pay","3449154","201708",02/11/2016 00:00:00,446.76,"31230","Employment and Recruitment Agencies","REDACTED DATA","ADECCO UK LIMITED","593232","http://opencorporates.com/companies/gb/593232","232347975"
"London Borough of Redbridge","http://opendatacommunities.org/doc/london-borough-council/redbridge","9BNONBVO","Outside the BVACOP Objective Structure","9CNONBVO","Outside the BVACOP Objective Structure","REV","Revenue","R5214","Environmental Services Team","01-EMPLOYEES","Employees","01A","Direct employee expenses","4","Agency Staff - Pay","3449154","201708",02/11/2016 00:00:00,446.76,"31230","Employment and Recruitment Agencies","REDACTED DATA","ADECCO UK LIMITED","593232","http://opencorporates.com/companies/gb/593232","232347975"
"London Borough of Redbridge","http://opendatacommunities.org/doc/london-borough-council/redbridge","9BNONBVO","Outside the BVACOP Objective Structure","9CNONBVO","Outside the BVACOP Objective Structure","REV","Revenue","R5214","Environmental Services Team","01-EMPLOYEES","Employees","01A","Direct employee expenses","4","Agency Staff - Pay","3449154","201708",02/11/2016 00:00:00,359.89,"31230","Employment and Recruitment Agencies","REDACTED DATA","ADECCO UK LIMITED","593232","http://opencorporates.com/companies/gb/593232","232347975"
"London Borough of Redbridge","http://opendatacommunities.org/doc/london-borough-council/redbridge","9BNONBVO","Outside the BVACOP Objective Structure","9CNONBVO","Outside the BVACOP Objective Structure","REV","Revenue","R5214","Environmental Services Team","01-EMPLOYEES","Employees","01A","Direct employee expenses","4","Agency Staff - Pay","3449154","201708",02/11/2016 00:00:00,446.76,"31230","Employment and Recruitment Agencies","REDACTED DATA","ADECCO UK LIMITED","593232","http://opencorporates.com/companies/gb/593232","232347975"
"London Borough of Redbridge","http://opendatacommunities.org/doc/london-borough-council/redbridge","9BNONBVO","Outside the BVACOP Objective Structure","9CNONBVO","Outside the BVACOP Objective Structure","REV","Revenue","R5214","Environmental Services Team","01-EMPLOYEES","Employees","01A","Direct employee expenses","4","Agency Staff - Pay","3449154","201708",02/11/2016 00:00:00,356.79,"31230","Employment and Recruitment Agencies","REDACTED DATA","ADECCO UK LIMITED","593232","http://opencorporates.com/companies/gb/593232","232347975"
"London Borough of Redbridge","http://opendatacommunities.org/doc/london-borough-council/redbridge","9BNONBVO","Outside the BVACOP Objective Structure","9CNONBVO","Outside the BVACOP Objective Structure","REV","Revenue","R5214","Environmental Services Team","01-EMPLOYEES","Employees","01A","Direct employee expenses","4","Agency Staff - Pay","3449154","201708",02/11/2016 00:00:00,446.76,"31230","Employment and Recruitment Agencies","REDACTED DATA","ADECCO UK LIMITED","593232","http://opencorporates.com/companies/gb/593232","232347975"
"London Borough of Redbridge","http://opendatacommunities.org/doc/london-borough-council/redbridge","9BNONBVO","Outside the BVACOP Objective Structure","9CNONBVO","Outside the BVACOP Objective Structure","REV","Revenue","R5214","Environmental Services Team","01-EMPLOYEES","Employees","01A","Direct employee expenses","4","Agency Staff - Pay","3449154","201708",02/11/2016 00:00:00,446.76,"31230","Employment and Recruitment Agencies","REDACTED DATA","ADECCO UK LIMITED","593232","http://opencorporates.com/companies/gb/593232","232347975"
"London Borough of Redbridge","http://opendatacommunities.org/doc/london-borough-council/redbridge","9BNONBVO","Outside the BVACOP Objective Structure","9CNONBVO","Outside the BVACOP Objective Structure","REV","Revenue","R5217","Building Services Team","01-EMPLOYEES","Employees","01A","Direct employee expenses","4","Agency Staff - Pay","3449154","201708",02/11/2016 00:00:00,1031.04,"31230","Employment and Recruitment Agencies","REDACTED DATA","ADECCO UK LIMITED","593232","http://opencorporates.com/companies/gb/593232","232347975"
"London Borough of Redbridge","http://opendatacommunities.org/doc/london-borough-council/redbridge","9BNONBVO","Outside the BVACOP Objective Structure","9CNONBVO","Outside the BVACOP Objective Structure","REV","Revenue","R5218","Responsive Repairs Team","01-EMPLOYEES","Employees","01A","Direct employee expenses","4","Agency Staff - Pay","3449154","201708",02/11/2016 00:00:00,1171.44,"31230","Employment and Recruitment Agencies","REDACTED DATA","ADECCO UK LIMITED","593232","http://opencorporates.com/companies/gb/593232","232347975"
"London Borough of Redbridge","http://opendatacommunities.org/doc/london-borough-council/redbridge","9BNONBVO","Outside the BVACOP Objective Structure","9CNONBVO","Outside the BVACOP Objective Structure","REV","Revenue","R5218","Responsive Repairs Team","01-EMPLOYEES","Employees","01A","Direct employee expenses","4","Agency Staff - Pay","3449154","201708",02/11/2016 00:00:00,1126.08,"31230","Employment and Recruitment Agencies","REDACTED DATA","ADECCO UK LIMITED","593232","http://opencorporates.com/companies/gb/593232","232347975"
"London Borough of Redbridge","http://opendatacommunities.org/doc/london-borough-council/redbridge","9BNONBVO","Outside the BVACOP Objective Structure","9CNONBVO","Outside the BVACOP Objective Structure","REV","Revenue","R5219","Capital Programme Team","01-EMPLOYEES","Employees","01A","Direct employee expenses","4","Agency Staff - Pay","3449154","201708",02/11/2016 00:00:00,1023.48,"31230","Employment and Recruitment Agencies","REDACTED DATA","ADECCO UK LIMITED","593232","http://opencorporates.com/companies/gb/593232","232347975"
"London Borough of Redbridge","http://opendatacommunities.org/doc/london-borough-council/redbridge","9BNONBVO","Outside the BVACOP Objective Structure","9CNONBVO","Outside the BVACOP Objective Structure","REV","Revenue","R5219","Capital Programme Team","01-EMPLOYEES","Employees","01A","Direct employee expenses","4","Agency Staff - Pay","3449154","201708",02/11/2016 00:00:00,324.96,"31230","Employment and Recruitment Agencies","REDACTED DATA","ADECCO UK LIMITED","593232","http://opencorporates.com/companies/gb/593232","232347975"
"London Borough of Redbridge","http://opendatacommunities.org/doc/london-borough-council/redbridge","9BNONBVO","Outside the BVACOP Objective Structure","9CNONBVO","Outside the BVACOP Objective Structure","REV","Revenue","R5223","Income Recovery Team (HRA)","01-EMPLOYEES","Employees","01A","Direct employee expenses","4","Agency Staff - Pay","3449154","201708",02/11/2016 00:00:00,705.24,"31230","Employment and Recruitment Agencies","REDACTED DATA","ADECCO UK LIMITED","593232","http://opencorporates.com/companies/gb/593232","232347975"
"London Borough of Redbridge","http://opendatacommunities.org/doc/london-borough-council/redbridge","9BNONBVO","Outside the BVACOP Objective Structure","9CNONBVO","Outside the BVACOP Objective Structure","REV","Revenue","R5223","Income Recovery Team (HRA)","01-EMPLOYEES","Employees","01A","Direct employee expenses","4","Agency Staff - Pay","3449154","201708",02/11/2016 00:00:00,705.24,"31230","Employment and Recruitment Agencies","REDACTED DATA","ADECCO UK LIMITED","593232","http://opencorporates.com/companies/gb/593232","232347975"
"London Borough of Redbridge","http://opendatacommunities.org/doc/london-borough-council/redbridge","9BNONBVO","Outside the BVACOP Objective Structure","9CNONBVO","Outside the BVACOP Objective Structure","REV","Revenue","R5223","Income Recovery Team (HRA)","01-EMPLOYEES","Employees","01A","Direct employee expenses","4","Agency Staff - Pay","3449154","201708",02/11/2016 00:00:00,710.14,"31230","Employment and Recruitment Agencies","REDACTED DATA","ADECCO UK LIMITED","593232","http://opencorporates.com/companies/gb/593232","232347975"
"London Borough of Redbridge","http://opendatacommunities.org/doc/london-borough-council/redbridge","9BNONBVO","Outside the BVACOP Objective Structure","9CNONBVO","Outside the BVACOP Objective Structure","REV","Revenue","R5223","Income Recovery Team (HRA)","01-EMPLOYEES","Employees","01A","Direct employee expenses","4","Agency Staff - Pay","3449154","201708",02/11/2016 00:00:00,705.24,"31230","Employment and Recruitment Agencies","REDACTED DATA","ADECCO UK LIMITED","593232","http://opencorporates.com/companies/gb/593232","232347975"
"London Borough of Redbridge","http://opendatacommunities.org/doc/london-borough-council/redbridge","9BNONBVO","Outside the BVACOP Objective Structure","9CNONBVO","Outside the BVACOP Objective Structure","REV","Revenue","R5224","HRA Senior Management Team","01-EMPLOYEES","Employees","01A","Direct employee expenses","4","Agency Staff - Pay","3449154","201708",02/11/2016 00:00:00,2673.9,"31230","Employment and Recruitment Agencies","REDACTED DATA","ADECCO UK LIMITED","593232","http://opencorporates.com/companies/gb/593232","232347975"
"London Borough of Redbridge","http://opendatacommunities.org/doc/london-borough-council/redbridge","5BGFHOUSING","General Fund Housing","5CHOMELESS","Homelessness","REV","Revenue","R5630","HAC Temporary Accomodation","05-THIRD","Third Party Payments","05H","Private contractors","6900","Nightly Let Plus Charges","70090389","201708",31/10/2016 00:00:00,378208.5,"47846","Letting Agents","REDACTED DATA","LETTING INTERNATIONAL LTD","3425414","http://opencorporates.com/companies/gb/3425414","710849440"
"London Borough of Redbridge","http://opendatacommunities.org/doc/london-borough-council/redbridge","5BGFHOUSING","General Fund Housing","5CHOMELESS","Homelessness","REV","Revenue","R5630","HAC Temporary Accomodation","05-THIRD","Third Party Payments","05H","Private contractors","6900","Nightly Let Plus Charges","70089829","201708",30/09/2016 00:00:00,364116,"47846","Letting Agents","REDACTED DATA","LETTING INTERNATIONAL LTD","3425414","http://opencorporates.com/companies/gb/3425414","710849440"
"London Borough of Redbridge","http://opendatacommunities.org/doc/london-borough-council/redbridge","6BADULTSOCIA","Adult Social Care","6COLDINCMENT","Older People (65 or over) incl. Older Mentally Ill","REV","Revenue","R4435","Sanctuary Care Residential Contracts","05-THIRD","Third Party Payments","05F","Voluntary associations","6802","Residential Homes","70089968","201708",01/11/2016 00:00:00,48543.5,"64710","Residential Care Homes","REDACTED DATA","SANCTUARY CARE LTD","4231521","http://opencorporates.com/companies/gb/4231521","732012487"
"London Borough of Redbridge","http://opendatacommunities.org/doc/london-borough-council/redbridge","6BADULTSOCIA","Adult Social Care","6COLDINCMENT","Older People (65 or over) incl. Older Mentally Ill","REV","Revenue","R4435","Sanctuary Care Residential Contracts","05-THIRD","Third Party Payments","05F","Voluntary associations","6802","Residential Homes","70089968","201708",01/11/2016 00:00:00,92475.5,"64710","Residential Care Homes","REDACTED DATA","SANCTUARY CARE LTD","4231521","http://opencorporates.com/companies/gb/4231521","732012487"
"London Borough of Redbridge","http://opendatacommunities.org/doc/london-borough-council/redbridge","6BADULTSOCIA","Adult Social Care","6COLDINCMENT","Older People (65 or over) incl. Older Mentally Ill","REV","Revenue","R4435","Sanctuary Care Residential Contracts","05-THIRD","Third Party Payments","05F","Voluntary associations","6802","Residential Homes","70089968","201708",01/11/2016 00:00:00,77151.19,"64710","Residential Care Homes","REDACTED DATA","SANCTUARY CARE LTD","4231521","http://opencorporates.com/companies/gb/4231521","732012487"
"London Borough of Redbridge","http://opendatacommunities.org/doc/london-borough-council/redbridge","6BADULTSOCIA","Adult Social Care","6COLDINCMENT","Older People (65 or over) incl. Older Mentally Ill","REV","Revenue","R4435","Sanctuary Care Residential Contracts","05-THIRD","Third Party Payments","05F","Voluntary associations","6802","Residential Homes","70089968","201708",01/11/2016 00:00:00,58958.72,"64710","Residential Care Homes","REDACTED DATA","SANCTUARY CARE LTD","4231521","http://opencorporates.com/companies/gb/4231521","732012487"
"London Borough of Redbridge","http://opendatacommunities.org/doc/london-borough-council/redbridge","6BADULTSOCIA","Adult Social Care","6COLDINCMENT","Older People (65 or over) incl. Older Mentally Ill","REV","Revenue","R4435","Sanctuary Care Residential Contracts","05-THIRD","Third Party Payments","05F","Voluntary associations","6802","Residential Homes","70089968","201708",01/11/2016 00:00:00,54967.37,"64710","Residential Care Homes","REDACTED DATA","SANCTUARY CARE LTD","4231521","http://opencorporates.com/companies/gb/4231521","732012487"
"London Borough of Redbridge","http://opendatacommunities.org/doc/london-borough-council/redbridge","3BLEACENTFND","LEA Centrally Held School Funds","3CNONSCH","Non Schools","REV","Revenue","R2234","Colleges and ISP Top up fees","05-THIRD","Third Party Payments","05G","Other establishments","7433","OOB Post 16 Top Up","60326693","201708",06/08/2016 00:00:00,325617.46,"67860","Schools - Independent and Preparatory","REDACTED DATA","AMBITIOUS ABOUT AUTISM ( TREEHOUSE SCHOOL)","3375255","http://opencorporates.com/companies/gb/3375255",""
"London Borough of Redbridge","http://opendatacommunities.org/doc/london-borough-council/redbridge","9BNONBVO","Outside the BVACOP Objective Structure","9CNONBVO","Outside the BVACOP Objective Structure","CAP","Capital","C4284","Gordan Infant School","99-NONBV","Capital, Balance Sheet and Control","50E","Capital - Contract Payments","9163","Main Building / structure","60326056","201708",09/11/2016 00:00:00,242789.75,"21555","Construction Contractors - General","REDACTED DATA","COSMUR CONSTRUCTION(LONDON) LTD","1120797","http://opencorporates.com/companies/gb/1120797","240797450"
"London Borough of Redbridge","http://opendatacommunities.org/doc/london-borough-council/redbridge","3BLEACENTFND","LEA Centrally Held School Funds","3CASSURACCES","Assuring Access to Schools","REV","Revenue","R3859","PFI Sch Local Authority Liability","04-SUPPLIES","Supplies And Services","04I","PFI and Public Private Partnership Schemes","6000","PFI - Unitary Payment","60327316","201708",01/11/2016 00:00:00,199388.83,"21557","Construction Management","REDACTED DATA","NU SCHOOLS FOR REDBRIDGE LTD(MAMG)","4048932","http://opencorporates.com/companies/gb/4048932","858914279"
"London Borough of Redbridge","http://opendatacommunities.org/doc/london-borough-council/redbridge","6BPUBHEALTH","Public Health","6CCHILD519PH","Children 5-19 Public Health Programmes","REV","Revenue","R4820","Children 5 - 19 Public Health Programmes","05-THIRD","Third Party Payments","05D","Health authorities","6704","NELFT","60325677","201708",01/09/2016 00:00:00,237750,"42200","Health Authorities","REDACTED DATA","NORTH EAST LONDON NHS FOUNDATION TRUST","",,"654404447"
"London Borough of Redbridge","http://opendatacommunities.org/doc/london-borough-council/redbridge","6BPUBHEALTH","Public Health","6CCHILD519PH","Children 5-19 Public Health Programmes","REV","Revenue","R4820","Children 5 - 19 Public Health Programmes","05-THIRD","Third Party Payments","05D","Health authorities","6704","NELFT","60325678","201708",01/06/2016 00:00:00,237750,"42200","Health Authorities","REDACTED DATA","NORTH EAST LONDON NHS FOUNDATION TRUST","",,"654404447"
"London Borough of Redbridge","http://opendatacommunities.org/doc/london-borough-council/redbridge","2BCULTUR&REL","Cultural & Related Services","2CREC&SPORT","Recreation & Sport","REV","Revenue","R6999","Leisure Client","04-SUPPLIES","Supplies And Services","04K","Miscellaneous expenses","6280","Miscellaneous Expenditure","60325908","201708",08/11/2016 00:00:00,222980,"48583","Local Government","REDACTED DATA","VISION REDBRIDGE CULTURE AND LEISURE","6032714","http://opencorporates.com/companies/gb/6032714","906429031"
"London Borough of Redbridge","http://opendatacommunities.org/doc/london-borough-council/redbridge","5BGFHOUSING","General Fund Housing","5CHOMELESS","Homelessness","REV","Revenue","R5630","HAC Temporary Accomodation","05-THIRD","Third Party Payments","05H","Private contractors","6916","Leasing Payments To Landlords","70090140","201708",31/10/2016 00:00:00,183800.34,"47846","Letting Agents","REDACTED DATA","FINEFAIR CONSULTANCY  LTD(NIGHTLY LETS)","4661895","http://opencorporates.com/companies/gb/4661895","809945391"
"London Borough of Redbridge","http://opendatacommunities.org/doc/london-borough-council/redbridge","5BGFHOUSING","General Fund Housing","5CHOMELESS","Homelessness","REV","Revenue","R5630","HAC Temporary Accomodation","05-THIRD","Third Party Payments","05H","Private contractors","6916","Leasing Payments To Landlords","70090140","201708",31/10/2016 00:00:00,26485.27,"47846","Letting Agents","REDACTED DATA","FINEFAIR CONSULTANCY  LTD(NIGHTLY LETS)","4661895","http://opencorporates.com/companies/gb/4661895","809945391"
"London Borough of Redbridge","http://opendatacommunities.org/doc/london-borough-council/redbridge","5BGFHOUSING","General Fund Housing","5CHOMELESS","Homelessness","REV","Revenue","R5630","HAC Temporary Accomodation","05-THIRD","Third Party Payments","05H","Private contractors","6916","Leasing Payments To Landlords","70089970","201708",30/09/2016 00:00:00,26991.27,"47846","Letting Agents","REDACTED DATA","OMEGA LETTINGS LTD","3662604","http://opencorporates.com/companies/gb/3662604","735892103"
"London Borough of Redbridge","http://opendatacommunities.org/doc/london-borough-council/redbridge","5BGFHOUSING","General Fund Housing","5CHOMELESS","Homelessness","REV","Revenue","R5630","HAC Temporary Accomodation","05-THIRD","Third Party Payments","05H","Private contractors","6916","Leasing Payments To Landlords","70089970","201708",30/09/2016 00:00:00,151988.46,"47846","Letting Agents","REDACTED DATA","OMEGA LETTINGS LTD","3662604","http://opencorporates.com/companies/gb/3662604","735892103"
"London Borough of Redbridge","http://opendatacommunities.org/doc/london-borough-council/redbridge","3BLEACENTFND","LEA Centrally Held School Funds","3CNONSCH","Non Schools","REV","Revenue","R3257","ISS Investment Programme","04-SUPPLIES","Supplies And Services","04A","Equipment, furniture and materials","5502","Equipment Purchase","70090155","201708",09/11/2016 00:00:00,143572.46,"21555","Construction Contractors - General","REDACTED DATA","MODULEK LIMITED","7466165","http://opencorporates.com/companies/gb/7466165","233403349"
"London Borough of Redbridge","http://opendatacommunities.org/doc/london-borough-council/redbridge","5BGFHOUSING","General Fund Housing","5CHOMELESS","Homelessness","REV","Revenue","R5630","HAC Temporary Accomodation","05-THIRD","Third Party Payments","05H","Private contractors","6916","Leasing Payments To Landlords","70090063","201708",01/10/2016 00:00:00,17333.84,"47846","Letting Agents","REDACTED DATA","THEORI HOUSING MANAGEMENT SERVICES LIMITED","4048450","http://opencorporates.com/companies/gb/4048450","773898950"
"London Borough of Redbridge","http://opendatacommunities.org/doc/london-borough-council/redbridge","5BGFHOUSING","General Fund Housing","5CHOMELESS","Homelessness","REV","Revenue","R5630","HAC Temporary Accomodation","05-THIRD","Third Party Payments","05H","Private contractors","6916","Leasing Payments To Landlords","70090063","201708",01/10/2016 00:00:00,134225.35,"47846","Letting Agents","REDACTED DATA","THEORI HOUSING MANAGEMENT SERVICES LIMITED","4048450","http://opencorporates.com/companies/gb/4048450","773898950"
"London Borough of Redbridge","http://opendatacommunities.org/doc/london-borough-council/redbridge","9BNONBVO","Outside the BVACOP Objective Structure","9CNONBVO","Outside the BVACOP Objective Structure","REV","Revenue","R5131","Repairs and Maintenance - MFS","02-PREMISES","Premises","02A","Repairs, alteration and maintenance of buildings","3027","Miscellaneous Maintenance","70089900","201708",01/11/2016 00:00:00,123995.46,"61961","Property Maintenance and Repairs","REDACTED DATA","MORRISONS FACILITIES SERVICES LTD","SC120550","http://opencorporates.com/companies/gb/SC120550","297280913"
"London Borough of Redbridge","http://opendatacommunities.org/doc/london-borough-council/redbridge","9BNONBVO","Outside the BVACOP Objective Structure","9CNONBVO","Outside the BVACOP Objective Structure","CAP","Capital","C4281","Ilford County High School","99-NONBV","Capital, Balance Sheet and Control","50E","Capital - Contract Payments","9168","Windows","70090257","201708",15/11/2016 00:00:00,122742.67,"30580","Electricians and Electrical Contractors","REDACTED DATA","CBT ELECTRICAL LTD","3346394","http://opencorporates.com/companies/gb/3346394","710532970"
"London Borough of Redbridge","http://opendatacommunities.org/doc/london-borough-council/redbridge","4BTRAFMGT&RS","Traffic Management & Road Safety","4CPUBLICTRAN","Public Transport","REV","Revenue","R5810","Concessionary Travel","06-TRANSFER","Transfer Payments","06D","Housing Benefits","7100","Concessionary Fares","60326279","201708",09/11/2016 00:00:00,143655,"48583","Local Government","REDACTED DATA","CITY OF LONDON(LONDON COUNCILS)","",,"766069205"
"London Borough of Redbridge","http://opendatacommunities.org/doc/london-borough-council/redbridge","5BGFHOUSING","General Fund Housing","5CHOMELESS","Homelessness","REV","Revenue","R5630","HAC Temporary Accomodation","05-THIRD","Third Party Payments","05H","Private contractors","6916","Leasing Payments To Landlords","70090142","201708",31/10/2016 00:00:00,118523.24,"47846","Letting Agents","REDACTED DATA","DABORA CONWAY LTD","2623262","http://opencorporates.com/companies/gb/2623262",""
"London Borough of Redbridge","http://opendatacommunities.org/doc/london-borough-council/redbridge","5BGFHOUSING","General Fund Housing","5CHOMELESS","Homelessness","REV","Revenue","R5630","HAC Temporary Accomodation","05-THIRD","Third Party Payments","05H","Private contractors","6916","Leasing Payments To Landlords","70090142","201708",31/10/2016 00:00:00,16493.28,"47846","Letting Agents","REDACTED DATA","DABORA CONWAY LTD","2623262","http://opencorporates.com/companies/gb/2623262",""
"London Borough of Redbridge","http://opendatacommunities.org/doc/london-borough-council/redbridge","9BNONBVO","Outside the BVACOP Objective Structure","9CNONBVO","Outside the BVACOP Objective Structure","CAP","Capital","C4287","Redbridge Primary School","99-NONBV","Capital, Balance Sheet and Control","50E","Capital - Contract Payments","9185","Asset Under construction","70090059","201708",03/11/2016 00:00:00,110369.98,"11371","Building Refurbishment and Restoration Contractors","REDACTED DATA","JERRAM FALKUS CONSTRUCTION LTD","820289","http://opencorporates.com/companies/gb/820289","446900837"
"London Borough of Redbridge","http://opendatacommunities.org/doc/london-borough-council/redbridge","3BLEACENTFND","LEA Centrally Held School Funds","3CSUPPORTSEN","Supporting Special Education Needs","REV","Revenue","R3923","EOTAS Commissioning Service","05-THIRD","Third Party Payments","05H","Private contractors","6915","Contractor Payments","60326463","201708",14/11/2016 00:00:00,115188,"67981","Schools - Local Authority","REDACTED DATA","THE FOREST ACADEMY","7835788","http://opencorporates.com/companies/gb/7835788",""
"London Borough of Redbridge","http://opendatacommunities.org/doc/london-borough-council/redbridge","9BNONBVO","Outside the BVACOP Objective Structure","9CNONBVO","Outside the BVACOP Objective Structure","CAP","Capital","C2204","Major Resurfacing Borough Roads LBR","99-NONBV","Capital, Balance Sheet and Control","50E","Capital - Contract Payments","9157","Footways & cycle tracks","3449365","201708",02/11/2016 00:00:00,90000,"18632","Civil Engineers","REDACTED DATA","KENSON CONTRACTORS BENINGTON LTD","1314691","http://opencorporates.com/companies/gb/1314691","301629589"
"London Borough of Redbridge","http://opendatacommunities.org/doc/london-borough-council/redbridge","4BPUBLICTRAN","Public Transport","4CPARKING","Parking Services","REV","Revenue","R7037","Parking Enforcements Non CCTV","05-THIRD","Third Party Payments","05H","Private contractors","6911","Parking and Traffic Enforcement Contract","60325078","201707",31/10/2016 00:00:00,87165.76,"13750","Car Parking and Garaging","REDACTED DATA","APCOA PARKING (UK) LTD","2572947","http://opencorporates.com/companies/gb/2572947","674177607"
"London Borough of Redbridge","http://opendatacommunities.org/doc/london-borough-council/redbridge","9BNONBVO","Outside the BVACOP Objective Structure","9CNONBVO","Outside the BVACOP Objective Structure","CAP","Capital","C1779","Renewing Ilford","99-NONBV","Capital, Balance Sheet and Control","50B","Capital - Contracted Works","9050","External - Architects","60324112","201708",11/10/2016 00:00:00,85604,"4422","Architectural Services","REDACTED DATA","BURNS & NICE LTD","4691854","http://opencorporates.com/companies/gb/4691854","710 6525 65"
"London Borough of Redbridge","http://opendatacommunities.org/doc/london-borough-council/redbridge","9BNONBVO","Outside the BVACOP Objective Structure","9CNONBVO","Outside the BVACOP Objective Structure","CAP","Capital","C1779","Renewing Ilford","99-NONBV","Capital, Balance Sheet and Control","50B","Capital - Contracted Works","9050","External - Architects","60325331","201708",02/11/2016 00:00:00,85604,"4422","Architectural Services","REDACTED DATA","BURNS & NICE LTD","4691854","http://opencorporates.com/companies/gb/4691854","710 6525 65"
"London Borough of Redbridge","http://opendatacommunities.org/doc/london-borough-council/redbridge","5BGFHOUSING","General Fund Housing","5CHOMELESS","Homelessness","REV","Revenue","R5630","HAC Temporary Accomodation","05-THIRD","Third Party Payments","05H","Private contractors","6900","Nightly Let Plus Charges","70090141","201708",31/10/2016 00:00:00,101618,"47846","Letting Agents","REDACTED DATA","SMART HOTELS LTD","3408484","http://opencorporates.com/companies/gb/3408484","722747138"
"London Borough of Redbridge","http://opendatacommunities.org/doc/london-borough-council/redbridge","5BGFHOUSING","General Fund Housing","5CHOMELESS","Homelessness","REV","Revenue","R5630","HAC Temporary Accomodation","05-THIRD","Third Party Payments","05H","Private contractors","6900","Nightly Let Plus Charges","70090440","201708",31/10/2016 00:00:00,98694.6,"47846","Letting Agents","REDACTED DATA","ASSETGROVE LETTINGS LTD","4523727","http://opencorporates.com/companies/gb/4523727",""
"London Borough of Redbridge","http://opendatacommunities.org/doc/london-borough-council/redbridge","9BNONBVO","Outside the BVACOP Objective Structure","9CNONBVO","Outside the BVACOP Objective Structure","REV","Revenue","R0026","Collection Fund","05-THIRD","Third Party Payments","05E","Government departments","6283","Business Rate Supplement","60325028","201707",01/11/2016 00:00:00,97579,"48583","Local Government","REDACTED DATA","GREATER LONDON AUTHORITY","",,""
"London Borough of Redbridge","http://opendatacommunities.org/doc/london-borough-council/redbridge","9BNONBVO","Outside the BVACOP Objective Structure","9CNONBVO","Outside the BVACOP Objective Structure","CAP","Capital","C2204","Major Resurfacing Borough Roads LBR","99-NONBV","Capital, Balance Sheet and Control","50E","Capital - Contract Payments","9157","Footways & cycle tracks","3449366","201708",02/11/2016 00:00:00,80000,"18632","Civil Engineers","REDACTED DATA","KENSON CONTRACTORS BENINGTON LTD","1314691","http://opencorporates.com/companies/gb/1314691","301629589"
"London Borough of Redbridge","http://opendatacommunities.org/doc/london-borough-council/redbridge","3BINDSCHFUND","Individual School Funds","3CDELSECOND","Delegated Individual Secondary School Budgets","REV","Revenue","R3629","Woodford County High School","02-PREMISES","Premises","02A","Repairs, alteration and maintenance of buildings","3001","Major Works Programme","70090281","201708",15/11/2016 00:00:00,76228.74,"30580","Electricians and Electrical Contractors","REDACTED DATA","CBT ELECTRICAL LTD","3346394","http://opencorporates.com/companies/gb/3346394","710532970"
"London Borough of Redbridge","http://opendatacommunities.org/doc/london-borough-council/redbridge","5BGFHOUSING","General Fund Housing","5CHOMELESS","Homelessness","REV","Revenue","R5630","HAC Temporary Accomodation","05-THIRD","Third Party Payments","05H","Private contractors","6900","Nightly Let Plus Charges","70090359","201708",09/11/2016 00:00:00,84432.53,"47846","Letting Agents","REDACTED DATA","WOODLAND PROPERTIES MANAGEMENT LTD","10277627","http://opencorporates.com/companies/gb/10277627",""
"London Borough of Redbridge","http://opendatacommunities.org/doc/london-borough-council/redbridge","6BADULTSOCIA","Adult Social Care","6CADLEARNDIS","Adults Under 65 with Learning Disabilities","REV","Revenue","R4188","LD - Residential Care","05-THIRD","Third Party Payments","05F","Voluntary associations","6802","Residential Homes","90793275","201708",01/11/2016 00:00:00,77587.86,"64710","Residential Care Homes","REDACTED DATA","TLC CARE HOMES LTD","3193730","http://opencorporates.com/companies/gb/3193730",""
"London Borough of Redbridge","http://opendatacommunities.org/doc/london-borough-council/redbridge","5BGFHOUSING","General Fund Housing","5CHOMELESS","Homelessness","REV","Revenue","R5630","HAC Temporary Accomodation","05-THIRD","Third Party Payments","05H","Private contractors","6900","Nightly Let Plus Charges","70089885","201708",31/08/2016 00:00:00,62031,"47846","Letting Agents","REDACTED DATA","ALTWOOD HOUSING LTD","7199769","http://opencorporates.com/companies/gb/7199769","117931708"
"London Borough of Redbridge","http://opendatacommunities.org/doc/london-borough-council/redbridge","9BNONBVO","Outside the BVACOP Objective Structure","9CNONBVO","Outside the BVACOP Objective Structure","CAP","Capital","C2204","Major Resurfacing Borough Roads LBR","99-NONBV","Capital, Balance Sheet and Control","50E","Capital - Contract Payments","9153","Carriageways","3449367","201708",02/11/2016 00:00:00,60000,"18632","Civil Engineers","REDACTED DATA","KENSON CONTRACTORS BENINGTON LTD","1314691","http://opencorporates.com/companies/gb/1314691","301629589"
"London Borough of Redbridge","http://opendatacommunities.org/doc/london-borough-council/redbridge","3BLEACENTFND","LEA Centrally Held School Funds","3CNONSCH","Non Schools","REV","Revenue","R2004","SEN and CD Res Placements DSG","05-THIRD","Third Party Payments","05H","Private contractors","6906","Independent Schools","60327583","201708",21/10/2016 00:00:00,55897.44,"67860","Schools - Independent and Preparatory","REDACTED DATA","TRANSITIONAL CARE LTD","3872464","http://opencorporates.com/companies/gb/3872464","756871975"
"London Borough of Redbridge","http://opendatacommunities.org/doc/london-borough-council/redbridge","3BLEACENTFND","LEA Centrally Held School Funds","3CNONSCH","Non Schools","REV","Revenue","R2004","SEN and CD Res Placements DSG","05-THIRD","Third Party Payments","05H","Private contractors","6906","Independent Schools","60326014","201708",31/10/2016 00:00:00,66148.56,"67860","Schools - Independent and Preparatory","REDACTED DATA","SENAD LTD","1176549","http://opencorporates.com/companies/gb/1176549",""
"London Borough of Redbridge","http://opendatacommunities.org/doc/london-borough-council/redbridge","9BNONBVO","Outside the BVACOP Objective Structure","9CNONBVO","Outside the BVACOP Objective Structure","BAL","Balance Sheet","B2001","Insurance Fund","99-NONBV","Capital, Balance Sheet and Control","50K","Current Assets","9314","Advance To MMI","70090314","201708",14/11/2016 00:00:00,66179.41,"45415","Insurance - Other","REDACTED DATA","ZURICH MUNICIPAL","",,""
"London Borough of Redbridge","http://opendatacommunities.org/doc/london-borough-council/redbridge","9BNONBVO","Outside the BVACOP Objective Structure","9CNONBVO","Outside the BVACOP Objective Structure","REV","Revenue","R0056","Loans Fund - Revenue Exp","09-INCOME","Income","09D","Interest","8703","Interest On Temporary Investments","70090314","201708",14/11/2016 00:00:00,-37.18,"45415","Insurance - Other","REDACTED DATA","ZURICH MUNICIPAL","",,""
"London Borough of Redbridge","http://opendatacommunities.org/doc/london-borough-council/redbridge","5BGFHOUSING","General Fund Housing","5CHOMELESS","Homelessness","REV","Revenue","R5630","HAC Temporary Accomodation","05-THIRD","Third Party Payments","05H","Private contractors","6916","Leasing Payments To Landlords","70090118","201708",26/10/2016 00:00:00,50073.5,"47846","Letting Agents","REDACTED DATA","LEY DEVELOPMENTS LTD","8980074","http://opencorporates.com/companies/gb/8980074",""
"London Borough of Redbridge","http://opendatacommunities.org/doc/london-borough-council/redbridge","5BGFHOUSING","General Fund Housing","5CHOMELESS","Homelessness","REV","Revenue","R5630","HAC Temporary Accomodation","05-THIRD","Third Party Payments","05H","Private contractors","6916","Leasing Payments To Landlords","70090118","201708",26/10/2016 00:00:00,14626.5,"47846","Letting Agents","REDACTED DATA","LEY DEVELOPMENTS LTD","8980074","http://opencorporates.com/companies/gb/8980074",""
"London Borough of Redbridge","http://opendatacommunities.org/doc/london-borough-council/redbridge","3BLEACENTFND","LEA Centrally Held School Funds","3CNONSCH","Non Schools","REV","Revenue","R2231","Special School Top Up Fees","05-THIRD","Third Party Payments","05G","Other establishments","7432","OOB Pre 16 Top Up","60325862","201708",31/10/2016 00:00:00,64500,"67981","Schools - Local Authority","REDACTED DATA","WHITEFIELD ACADEMY TRUST - WHITEFIELD SCHOOLS & CENTRE","",,""
"London Borough of Redbridge","http://opendatacommunities.org/doc/london-borough-council/redbridge","9BNONBVO","Outside the BVACOP Objective Structure","9CNONBVO","Outside the BVACOP Objective Structure","CAP","Capital","C9036","R and R Capital Exp DSO Leases","99-NONBV","Capital, Balance Sheet and Control","50F","Capital - Equipment, Furniture & Fittings","9172","Vehicles","657822","201708",22/09/2016 00:00:00,52132,"20375","Commercial Vehicle Mnfrs","REDACTED DATA","HEIL EUROPE LTD","53003","http://opencorporates.com/companies/gb/53003","271085664"
"London Borough of Redbridge","http://opendatacommunities.org/doc/london-borough-council/redbridge","9BNONBVO","Outside the BVACOP Objective Structure","9CNONBVO","Outside the BVACOP Objective Structure","CAP","Capital","C9036","R and R Capital Exp DSO Leases","99-NONBV","Capital, Balance Sheet and Control","50F","Capital - Equipment, Furniture & Fittings","9172","Vehicles","657823","201708",22/09/2016 00:00:00,52132,"20375","Commercial Vehicle Mnfrs","REDACTED DATA","HEIL EUROPE LTD","53003","http://opencorporates.com/companies/gb/53003","271085664"
"London Borough of Redbridge","http://opendatacommunities.org/doc/london-borough-council/redbridge","9BNONBVO","Outside the BVACOP Objective Structure","9CNONBVO","Outside the BVACOP Objective Structure","CAP","Capital","C9036","R and R Capital Exp DSO Leases","99-NONBV","Capital, Balance Sheet and Control","50F","Capital - Equipment, Furniture & Fittings","9172","Vehicles","657824","201708",22/09/2016 00:00:00,52132,"20375","Commercial Vehicle Mnfrs","REDACTED DATA","HEIL EUROPE LTD","53003","http://opencorporates.com/companies/gb/53003","271085664"
"London Borough of Redbridge","http://opendatacommunities.org/doc/london-borough-council/redbridge","9BNONBVO","Outside the BVACOP Objective Structure","9CNONBVO","Outside the BVACOP Objective Structure","CAP","Capital","C9036","R and R Capital Exp DSO Leases","99-NONBV","Capital, Balance Sheet and Control","50F","Capital - Equipment, Furniture & Fittings","9172","Vehicles","657825","201708",29/09/2016 00:00:00,52132,"20375","Commercial Vehicle Mnfrs","REDACTED DATA","HEIL EUROPE LTD","53003","http://opencorporates.com/companies/gb/53003","271085664"
"London Borough of Redbridge","http://opendatacommunities.org/doc/london-borough-council/redbridge","9BNONBVO","Outside the BVACOP Objective Structure","9CNONBVO","Outside the BVACOP Objective Structure","CAP","Capital","C9036","R and R Capital Exp DSO Leases","99-NONBV","Capital, Balance Sheet and Control","50F","Capital - Equipment, Furniture & Fittings","9172","Vehicles","657826","201708",21/10/2016 00:00:00,52132,"20375","Commercial Vehicle Mnfrs","REDACTED DATA","HEIL EUROPE LTD","53003","http://opencorporates.com/companies/gb/53003","271085664"
"London Borough of Redbridge","http://opendatacommunities.org/doc/london-borough-council/redbridge","9BNONBVO","Outside the BVACOP Objective Structure","9CNONBVO","Outside the BVACOP Objective Structure","CAP","Capital","C9036","R and R Capital Exp DSO Leases","99-NONBV","Capital, Balance Sheet and Control","50F","Capital - Equipment, Furniture & Fittings","9172","Vehicles","657827","201708",22/09/2016 00:00:00,52132,"20375","Commercial Vehicle Mnfrs","REDACTED DATA","HEIL EUROPE LTD","53003","http://opencorporates.com/companies/gb/53003","271085664"
"London Borough of Redbridge","http://opendatacommunities.org/doc/london-borough-council/redbridge","5BGFHOUSING","General Fund Housing","5CHOMELESS","Homelessness","REV","Revenue","R5630","HAC Temporary Accomodation","05-THIRD","Third Party Payments","05H","Private contractors","6900","Nightly Let Plus Charges","70090062","201708",31/03/2016 00:00:00,48152,"47846","Letting Agents","REDACTED DATA","ALTWOOD HOUSING LTD","7199769","http://opencorporates.com/companies/gb/7199769","117931708"
"London Borough of Redbridge","http://opendatacommunities.org/doc/london-borough-council/redbridge","3BLEACENTFND","LEA Centrally Held School Funds","3CNONSCH","Non Schools","REV","Revenue","R2004","SEN and CD Res Placements DSG","05-THIRD","Third Party Payments","05H","Private contractors","6906","Independent Schools","60326880","201708",15/11/2016 00:00:00,57200,"68200","Schools - Special","REDACTED DATA","HESLEY GROUP  LTD","2665377","http://opencorporates.com/companies/gb/2665377",""
"London Borough of Redbridge","http://opendatacommunities.org/doc/london-borough-council/redbridge","9BNONBVO","Outside the BVACOP Objective Structure","9CNONBVO","Outside the BVACOP Objective Structure","REV","Revenue","R5011","Housing General Management","05-THIRD","Third Party Payments","05A","Independent units within the council","6508","Ray Lodge TMO Allowance","70089967","201708",06/10/2016 00:00:00,46025.75,"61961","Property Maintenance and Repairs","REDACTED DATA","RAY LODGE TENANT MANAGEMENT","28710R","http://opencorporates.com/companies/gb/28710R","743721634"
"London Borough of Redbridge","http://opendatacommunities.org/doc/london-borough-council/redbridge","3BINDSCHFUND","Individual School Funds","3CSCHSTRATMG","Schools Strategic Management","REV","Revenue","R3994","Primary School Based Nurseries - 3 and 4 Year Olds","05-THIRD","Third Party Payments","05G","Other establishments","7481","Perm Cont - Pupils","70090159","201708",11/11/2016 00:00:00,53183,"67981","Schools - Local Authority","REDACTED DATA","LOXFORD SCHOOL TRUST LTD","8743560","http://opencorporates.com/companies/gb/8743560","246546447"
"London Borough of Redbridge","http://opendatacommunities.org/doc/london-borough-council/redbridge","9BNONBVO","Outside the BVACOP Objective Structure","9CNONBVO","Outside the BVACOP Objective Structure","BAL","Balance Sheet","B2001","Insurance Fund","99-NONBV","Capital, Balance Sheet and Control","50K","Current Assets","9314","Advance To MMI","70090313","201708",14/11/2016 00:00:00,52252.19,"45415","Insurance - Other","REDACTED DATA","ZURICH MUNICIPAL","",,""
"London Borough of Redbridge","http://opendatacommunities.org/doc/london-borough-council/redbridge","9BNONBVO","Outside the BVACOP Objective Structure","9CNONBVO","Outside the BVACOP Objective Structure","REV","Revenue","R0056","Loans Fund - Revenue Exp","09-INCOME","Income","09D","Interest","8703","Interest On Temporary Investments","70090313","201708",14/11/2016 00:00:00,-38.02,"45415","Insurance - Other","REDACTED DATA","ZURICH MUNICIPAL","",,""
"London Borough of Redbridge","http://opendatacommunities.org/doc/london-borough-council/redbridge","5BGFHOUSING","General Fund Housing","5CHOMELESS","Homelessness","REV","Revenue","R5622","The Foyer","04-SUPPLIES","Supplies And Services","04A","Equipment, furniture and materials","5506","Furniture & Fittings - Purchase","60324108","201707",20/10/2016 00:00:00,41816,"64550","Removals - Business and Industrial","REDACTED DATA","OCN CONTRACT SERVICES","",,"726127250"
"London Borough of Redbridge","http://opendatacommunities.org/doc/london-borough-council/redbridge","5BGFHOUSING","General Fund Housing","5CHOMELESS","Homelessness","REV","Revenue","R5630","HAC Temporary Accomodation","05-THIRD","Third Party Payments","05H","Private contractors","6900","Nightly Let Plus Charges","70090006","201708",31/10/2016 00:00:00,39900.24,"47846","Letting Agents","REDACTED DATA","FINEFAIR CONSULTANCY  LTD(NIGHTLY LETS)","4661895","http://opencorporates.com/companies/gb/4661895","809945391"
"London Borough of Redbridge","http://opendatacommunities.org/doc/london-borough-council/redbridge","5BGFHOUSING","General Fund Housing","5CHOMELESS","Homelessness","REV","Revenue","R5630","HAC Temporary Accomodation","05-THIRD","Third Party Payments","05H","Private contractors","6900","Nightly Let Plus Charges","70090358","201708",18/11/2016 00:00:00,39762.77,"47846","Letting Agents","REDACTED DATA","FINEFAIR CONSULTANCY  LTD(NIGHTLY LETS)","4661895","http://opencorporates.com/companies/gb/4661895","809945391"
"London Borough of Redbridge","http://opendatacommunities.org/doc/london-borough-council/redbridge","9BNONBVO","Outside the BVACOP Objective Structure","9CNONBVO","Outside the BVACOP Objective Structure","CAP","Capital","C2107","Environmental Works","99-NONBV","Capital, Balance Sheet and Control","50E","Capital - Contract Payments","9150","Main Contract","60325652","201708",24/10/2016 00:00:00,39755,"9321","Boilers - Servicing, Replacements and Repairs","REDACTED DATA","GRAYSTONE BUILDING SERVICES LTD","4490869","http://opencorporates.com/companies/gb/4490869","798566253"
"London Borough of Redbridge","http://opendatacommunities.org/doc/london-borough-council/redbridge","9BNONBVO","Outside the BVACOP Objective Structure","9CNONBVO","Outside the BVACOP Objective Structure","CAP","Capital","C4284","Gordan Infant School","99-NONBV","Capital, Balance Sheet and Control","50E","Capital - Contract Payments","9163","Main Building / structure","60325776","201708",03/11/2016 00:00:00,39351,"11560","Buildings - Sectional and Portable","REDACTED DATA","PORTAKABIN LTD.","685303","http://opencorporates.com/companies/gb/685303","551855234"
"London Borough of Redbridge","http://opendatacommunities.org/doc/london-borough-council/redbridge","3BLEACENTFND","LEA Centrally Held School Funds","3CFACILIMPRO","Facilitating School Improvement","REV","Revenue","R3362","Young People's Substance Misuse","05-THIRD","Third Party Payments","05A","Independent units within the council","6513","Agency & Contracted Services","60325227","201708",31/10/2016 00:00:00,44232.75,"42200","Health Authorities","REDACTED DATA","NORTH EAST LONDON NHS FOUNDATION TRUST","",,"654404447"
"London Borough of Redbridge","http://opendatacommunities.org/doc/london-borough-council/redbridge","3BLEACENTFND","LEA Centrally Held School Funds","3CNONSCH","Non Schools","REV","Revenue","R3258","ISS Paid School Meals","05-THIRD","Third Party Payments","05A","Independent units within the council","6513","Agency & Contracted Services","70090164","201708",11/11/2016 00:00:00,42139.52,"16270","Catering Schools","REDACTED DATA","ISS CATERHOUSE - ISS MEDICLEAN LTD(EDUCATION CATERING CASH COLLECTIONS)","1659837","http://opencorporates.com/companies/gb/1659837",""
"London Borough of Redbridge","http://opendatacommunities.org/doc/london-borough-council/redbridge","9BNONBVO","Outside the BVACOP Objective Structure","9CNONBVO","Outside the BVACOP Objective Structure","CAP","Capital","C2222","Redbridge Quietway - TFL","99-NONBV","Capital, Balance Sheet and Control","50E","Capital - Contract Payments","9153","Carriageways","3449921","201708",09/11/2016 00:00:00,28112.89,"18632","Civil Engineers","REDACTED DATA","KENSON CONTRACTORS BENINGTON LTD","1314691","http://opencorporates.com/companies/gb/1314691","301629589"
"London Borough of Redbridge","http://opendatacommunities.org/doc/london-borough-council/redbridge","9BNONBVO","Outside the BVACOP Objective Structure","9CNONBVO","Outside the BVACOP Objective Structure","CAP","Capital","C2222","Redbridge Quietway - TFL","99-NONBV","Capital, Balance Sheet and Control","50E","Capital - Contract Payments","9157","Footways & cycle tracks","3449921","201708",09/11/2016 00:00:00,6887.12,"18632","Civil Engineers","REDACTED DATA","KENSON CONTRACTORS BENINGTON LTD","1314691","http://opencorporates.com/companies/gb/1314691","301629589"
"London Borough of Redbridge","http://opendatacommunities.org/doc/london-borough-council/redbridge","9BNONBVO","Outside the BVACOP Objective Structure","9CNONBVO","Outside the BVACOP Objective Structure","CAP","Capital","C2218","Education and Training TFL","99-NONBV","Capital, Balance Sheet and Control","50E","Capital - Contract Payments","9150","Main Contract","60326665","201708",01/11/2016 00:00:00,31366,"23700","Cycling","REDACTED DATA","CYCLE CONFIDENT LTD","6944710","http://opencorporates.com/companies/gb/6944710","975542779"
"London Borough of Redbridge","http://opendatacommunities.org/doc/london-borough-council/redbridge","1BOTHEROPI&E","Other Operating Income & Expenditure","1CTRADSURDEF","Trading Account Surpluses & Deficits","REV","Revenue","R9149","Building Cleaning (Holding)","02-PREMISES","Premises","02H","Cleaning and domestic supplies","4620","Cleaning Contract Payments","60324778","201707",26/10/2016 00:00:00,30098.16,"15269","Cleaning Services - Commercial","REDACTED DATA","LEWIS & GRAVES PARTNERSHIP LLP","8953594","http://opencorporates.com/companies/gb/8953594","135553810"
"London Borough of Redbridge","http://opendatacommunities.org/doc/london-borough-council/redbridge","5BGFHOUSING","General Fund Housing","5CHOMELESS","Homelessness","REV","Revenue","R5630","HAC Temporary Accomodation","04-SUPPLIES","Supplies And Services","04H","Grants and subscriptions","5954","Professional Fees","60327118","201708",18/11/2016 00:00:00,30000,"31230","Employment and Recruitment Agencies","REDACTED DATA","ADAM HTT LIMITED T/A ADAM","7718565","http://opencorporates.com/companies/gb/7718565","198573349"
"London Borough of Redbridge","http://opendatacommunities.org/doc/london-borough-council/redbridge","9BNONBVO","Outside the BVACOP Objective Structure","9CNONBVO","Outside the BVACOP Objective Structure","CAP","Capital","C2219","Principal Roads TFL","99-NONBV","Capital, Balance Sheet and Control","50E","Capital - Contract Payments","9153","Carriageways","3449368","201708",02/11/2016 00:00:00,30000,"18632","Civil Engineers","REDACTED DATA","KENSON CONTRACTORS BENINGTON LTD","1314691","http://opencorporates.com/companies/gb/1314691","301629589"
"London Borough of Redbridge","http://opendatacommunities.org/doc/london-borough-council/redbridge","9BNONBVO","Outside the BVACOP Objective Structure","9CNONBVO","Outside the BVACOP Objective Structure","BAL","Balance Sheet","B0343","CHILDCARE VOUCHER SCHEME","99-NONBV","Capital, Balance Sheet and Control","50Q","Other Balances & Reserves","9910","Personal Account - Debtor","70089807","201708",28/10/2016 00:00:00,31994.05,"17580","Childcare Services","REDACTED DATA","CHILDCARE VOUCHERS LTD(ACC:154321)- T/AS  EDENRED UK","2420196","http://opencorporates.com/companies/gb/2420196","649503520"
"London Borough of Redbridge","http://opendatacommunities.org/doc/london-borough-council/redbridge","9BNONBVO","Outside the BVACOP Objective Structure","9CNONBVO","Outside the BVACOP Objective Structure","REV","Revenue","R0064","Salaries Oncost","04-SUPPLIES","Supplies And Services","04K","Miscellaneous expenses","6280","Miscellaneous Expenditure","70089807","201708",28/10/2016 00:00:00,127.98,"17580","Childcare Services","REDACTED DATA","CHILDCARE VOUCHERS LTD(ACC:154321)- T/AS  EDENRED UK","2420196","http://opencorporates.com/companies/gb/2420196","649503520"
"London Borough of Redbridge","http://opendatacommunities.org/doc/london-borough-council/redbridge","9BNONBVO","Outside the BVACOP Objective Structure","9CNONBVO","Outside the BVACOP Objective Structure","REV","Revenue","R0064","Salaries Oncost","04-SUPPLIES","Supplies And Services","04K","Miscellaneous expenses","6280","Miscellaneous Expenditure","70089807","201708",28/10/2016 00:00:00,0.57,"17580","Childcare Services","REDACTED DATA","CHILDCARE VOUCHERS LTD(ACC:154321)- T/AS  EDENRED UK","2420196","http://opencorporates.com/companies/gb/2420196","649503520"
"London Borough of Redbridge","http://opendatacommunities.org/doc/london-borough-council/redbridge","9BNONBVO","Outside the BVACOP Objective Structure","9CNONBVO","Outside the BVACOP Objective Structure","REV","Revenue","R0064","Salaries Oncost","04-SUPPLIES","Supplies And Services","04K","Miscellaneous expenses","6280","Miscellaneous Expenditure","70089807","201708",28/10/2016 00:00:00,3295,"17580","Childcare Services","REDACTED DATA","CHILDCARE VOUCHERS LTD(ACC:154321)- T/AS  EDENRED UK","2420196","http://opencorporates.com/companies/gb/2420196","649503520"
"London Borough of Redbridge","http://opendatacommunities.org/doc/london-borough-council/redbridge","5BGFHOUSING","General Fund Housing","5CHOMELESS","Homelessness","REV","Revenue","R5630","HAC Temporary Accomodation","05-THIRD","Third Party Payments","05H","Private contractors","6916","Leasing Payments To Landlords","70090139","201708",08/11/2016 00:00:00,30383.44,"32695","Estate Agents and Property Buyers","REDACTED DATA","WENTWORTH HOUSING LTD T/A WENTWORTH ESTATES","44388822","http://opencorporates.com/companies/gb/44388822",""
"London Borough of Redbridge","http://opendatacommunities.org/doc/london-borough-council/redbridge","5BGFHOUSING","General Fund Housing","5CHOMELESS","Homelessness","REV","Revenue","R5630","HAC Temporary Accomodation","05-THIRD","Third Party Payments","05H","Private contractors","6916","Leasing Payments To Landlords","70090139","201708",08/11/2016 00:00:00,3826,"32695","Estate Agents and Property Buyers","REDACTED DATA","WENTWORTH HOUSING LTD T/A WENTWORTH ESTATES","44388822","http://opencorporates.com/companies/gb/44388822",""
"London Borough of Redbridge","http://opendatacommunities.org/doc/london-borough-council/redbridge","7BCDC","Corporate & Democratic Core","7CCORPMGT","Corporate Management","REV","Revenue","R8515","Transformation Smart","04-SUPPLIES","Supplies And Services","04K","Miscellaneous expenses","6280","Miscellaneous Expenditure","60327530","201708",31/10/2016 00:00:00,28800,"20703","Computer Systems and Software","REDACTED DATA","NORTHGATE PUBLIC SERVICES (UK) LTD","968498","http://opencorporates.com/companies/gb/968498","202159745"
"London Borough of Redbridge","http://opendatacommunities.org/doc/london-borough-council/redbridge","3BLEACENTFND","LEA Centrally Held School Funds","3CNONSCH","Non Schools","REV","Revenue","R3258","ISS Paid School Meals","05-THIRD","Third Party Payments","05A","Independent units within the council","6513","Agency & Contracted Services","70090493","201708",25/11/2016 00:00:00,33558.78,"16270","Catering Schools","REDACTED DATA","ISS CATERHOUSE - ISS MEDICLEAN LTD(EDUCATION CATERING CASH COLLECTIONS)","1659837","http://opencorporates.com/companies/gb/1659837",""
"London Borough of Redbridge","http://opendatacommunities.org/doc/london-borough-council/redbridge","6BADULTSOCIA","Adult Social Care","6CADMENHLTH","Adults Under 65 with Mental Health Needs","REV","Revenue","R4219","MH - Supported Living","06-TRANSFER","Transfer Payments","06B","Social Services Clients","7066","Supportive Lodgings (Transfer Payments)","90793779","201708",01/11/2016 00:00:00,34925,"64710","Residential Care Homes","REDACTED DATA","AITHRIE RESIDENTIAL HOME","",,""
"London Borough of Redbridge","http://opendatacommunities.org/doc/london-borough-council/redbridge","6BADULTSOCIA","Adult Social Care","6CADMENHLTH","Adults Under 65 with Mental Health Needs","REV","Revenue","R4219","MH - Supported Living","09-INCOME","Income","09C","Customer and Client Receipts","8553","Care Package Charges","90793779","201708",01/11/2016 00:00:00,-1817.01,"64710","Residential Care Homes","REDACTED DATA","AITHRIE RESIDENTIAL HOME","",,""
"London Borough of Redbridge","http://opendatacommunities.org/doc/london-borough-council/redbridge","3BINDSCHFUND","Individual School Funds","3CSCHSTRATMG","Schools Strategic Management","REV","Revenue","R3994","Primary School Based Nurseries - 3 and 4 Year Olds","05-THIRD","Third Party Payments","05G","Other establishments","7481","Perm Cont - Pupils","70090161","201708",11/11/2016 00:00:00,32970,"67981","Schools - Local Authority","REDACTED DATA","ST AIDAN'S CATHOLIC PRIMARY ACADEMY","",,""
"London Borough of Redbridge","http://opendatacommunities.org/doc/london-borough-council/redbridge","3BINDSCHFUND","Individual School Funds","3CSCHSTRATMG","Schools Strategic Management","REV","Revenue","R3994","Primary School Based Nurseries - 3 and 4 Year Olds","05-THIRD","Third Party Payments","05G","Other establishments","7481","Perm Cont - Pupils","70090160","201708",11/11/2016 00:00:00,32482,"67981","Schools - Local Authority","REDACTED DATA","AVANTI SCHOOLS TRUST T/A AVANTI COURT PRIMARY SCHOOL","",,"246546447"
"London Borough of Redbridge","http://opendatacommunities.org/doc/london-borough-council/redbridge","6BADULTSOCIA","Adult Social Care","6CADLEARNDIS","Adults Under 65 with Learning Disabilities","REV","Revenue","R4188","LD - Residential Care","05-THIRD","Third Party Payments","05F","Voluntary associations","6802","Residential Homes","90793268","201708",01/11/2016 00:00:00,44212.92,"17020","Charities and Voluntary Organisations","REDACTED DATA","MCCH SOCIETY LTD","IP25577R","http://opencorporates.com/companies/gb/IP25577R",""
"London Borough of Redbridge","http://opendatacommunities.org/doc/london-borough-council/redbridge","6BADULTSOCIA","Adult Social Care","6CADLEARNDIS","Adults Under 65 with Learning Disabilities","REV","Revenue","R4188","LD - Residential Care","05-THIRD","Third Party Payments","05F","Voluntary associations","6802","Residential Homes","90793268","201708",01/11/2016 00:00:00,-9545.42,"17020","Charities and Voluntary Organisations","REDACTED DATA","MCCH SOCIETY LTD","IP25577R","http://opencorporates.com/companies/gb/IP25577R",""
"London Borough of Redbridge","http://opendatacommunities.org/doc/london-borough-council/redbridge","6BADULTSOCIA","Adult Social Care","6CADLEARNDIS","Adults Under 65 with Learning Disabilities","REV","Revenue","R4188","LD - Residential Care","05-THIRD","Third Party Payments","05F","Voluntary associations","6802","Residential Homes","90793268","201708",01/11/2016 00:00:00,1835.66,"17020","Charities and Voluntary Organisations","REDACTED DATA","MCCH SOCIETY LTD","IP25577R","http://opencorporates.com/companies/gb/IP25577R",""
"London Borough of Redbridge","http://opendatacommunities.org/doc/london-borough-council/redbridge","6BADULTSOCIA","Adult Social Care","6CADLEARNDIS","Adults Under 65 with Learning Disabilities","REV","Revenue","R4188","LD - Residential Care","09-INCOME","Income","09C","Customer and Client Receipts","8555","Accommodation Charges","90793268","201708",01/11/2016 00:00:00,-5255.72,"17020","Charities and Voluntary Organisations","REDACTED DATA","MCCH SOCIETY LTD","IP25577R","http://opencorporates.com/companies/gb/IP25577R",""
"London Borough of Redbridge","http://opendatacommunities.org/doc/london-borough-council/redbridge","6BADULTSOCIA","Adult Social Care","6CADLEARNDIS","Adults Under 65 with Learning Disabilities","REV","Revenue","R4188","LD - Residential Care","09-INCOME","Income","09C","Customer and Client Receipts","8555","Accommodation Charges","90793268","201708",01/11/2016 00:00:00,1131.15,"17020","Charities and Voluntary Organisations","REDACTED DATA","MCCH SOCIETY LTD","IP25577R","http://opencorporates.com/companies/gb/IP25577R",""
"London Borough of Redbridge","http://opendatacommunities.org/doc/london-borough-council/redbridge","6BADULTSOCIA","Adult Social Care","6CADLEARNDIS","Adults Under 65 with Learning Disabilities","REV","Revenue","R4188","LD - Residential Care","09-INCOME","Income","09C","Customer and Client Receipts","8555","Accommodation Charges","90793268","201708",01/11/2016 00:00:00,-217.53,"17020","Charities and Voluntary Organisations","REDACTED DATA","MCCH SOCIETY LTD","IP25577R","http://opencorporates.com/companies/gb/IP25577R",""
"London Borough of Redbridge","http://opendatacommunities.org/doc/london-borough-council/redbridge","3BLEACENTFND","LEA Centrally Held School Funds","3CNONSCH","Non Schools","REV","Revenue","R3258","ISS Paid School Meals","05-THIRD","Third Party Payments","05A","Independent units within the council","6513","Agency & Contracted Services","70090334","201708",18/11/2016 00:00:00,31792.74,"16270","Catering Schools","REDACTED DATA","ISS CATERHOUSE - ISS MEDICLEAN LTD(EDUCATION CATERING CASH COLLECTIONS)","1659837","http://opencorporates.com/companies/gb/1659837",""
"London Borough of Redbridge","http://opendatacommunities.org/doc/london-borough-council/redbridge","5BGFHOUSING","General Fund Housing","5CHOMELESS","Homelessness","REV","Revenue","R5630","HAC Temporary Accomodation","05-THIRD","Third Party Payments","05H","Private contractors","6900","Nightly Let Plus Charges","70090273","201708",14/11/2016 00:00:00,26214.44,"47846","Letting Agents","REDACTED DATA","FINEFAIR CONSULTANCY  LTD(NIGHTLY LETS)","4661895","http://opencorporates.com/companies/gb/4661895","809945391"
"London Borough of Redbridge","http://opendatacommunities.org/doc/london-borough-council/redbridge","5BGFHOUSING","General Fund Housing","5CHOMELESS","Homelessness","REV","Revenue","R5630","HAC Temporary Accomodation","05-THIRD","Third Party Payments","05H","Private contractors","6900","Nightly Let Plus Charges","70090166","201708",01/11/2016 00:00:00,31447.02,"47846","Letting Agents","REDACTED DATA","HILLS CONSORTIUM LTD","5618521","http://opencorporates.com/companies/gb/5618521","977358461"
"London Borough of Redbridge","http://opendatacommunities.org/doc/london-borough-council/redbridge","6BADULTSOCIA","Adult Social Care","6CADLEARNDIS","Adults Under 65 with Learning Disabilities","REV","Revenue","R4241","CCG � LD Continuing Care","05-THIRD","Third Party Payments","05F","Voluntary associations","6802","Residential Homes","90793267","201708",01/11/2016 00:00:00,-9545.42,"17020","Charities and Voluntary Organisations","REDACTED DATA","MCCH SOCIETY LTD","IP25577R","http://opencorporates.com/companies/gb/IP25577R",""
"London Borough of Redbridge","http://opendatacommunities.org/doc/london-borough-council/redbridge","6BADULTSOCIA","Adult Social Care","6CADLEARNDIS","Adults Under 65 with Learning Disabilities","REV","Revenue","R4241","CCG � LD Continuing Care","05-THIRD","Third Party Payments","05F","Voluntary associations","6802","Residential Homes","90793267","201708",01/11/2016 00:00:00,1835.66,"17020","Charities and Voluntary Organisations","REDACTED DATA","MCCH SOCIETY LTD","IP25577R","http://opencorporates.com/companies/gb/IP25577R",""
"London Borough of Redbridge","http://opendatacommunities.org/doc/london-borough-council/redbridge","6BADULTSOCIA","Adult Social Care","6CADLEARNDIS","Adults Under 65 with Learning Disabilities","REV","Revenue","R4241","CCG � LD Continuing Care","05-THIRD","Third Party Payments","05F","Voluntary associations","6802","Residential Homes","90793267","201708",01/11/2016 00:00:00,39011.4,"17020","Charities and Voluntary Organisations","REDACTED DATA","MCCH SOCIETY LTD","IP25577R","http://opencorporates.com/companies/gb/IP25577R",""
"London Borough of Redbridge","http://opendatacommunities.org/doc/london-borough-council/redbridge","5BGFHOUSING","General Fund Housing","5CHOMELESS","Homelessness","REV","Revenue","R5630","HAC Temporary Accomodation","05-THIRD","Third Party Payments","05H","Private contractors","6912","Bed & Breakfast Charges","70090048","201708",21/08/2016 00:00:00,25848,"47846","Letting Agents","REDACTED DATA","ALTWOOD HOUSING LTD","7199769","http://opencorporates.com/companies/gb/7199769","117931708"
"London Borough of Redbridge","http://opendatacommunities.org/doc/london-borough-council/redbridge","5BGFHOUSING","General Fund Housing","5CHOMELESS","Homelessness","REV","Revenue","R5630","HAC Temporary Accomodation","05-THIRD","Third Party Payments","05H","Private contractors","6900","Nightly Let Plus Charges","70089912","201708",01/10/2016 00:00:00,31016.16,"47846","Letting Agents","REDACTED DATA","THEORI HOUSING MANAGEMENT SERVICES LIMITED","4048450","http://opencorporates.com/companies/gb/4048450","773898950"
"London Borough of Redbridge","http://opendatacommunities.org/doc/london-borough-council/redbridge","3BINDSCHFUND","Individual School Funds","3CDELSECOND","Delegated Individual Secondary School Budgets","REV","Revenue","S2073","TRINITY : Trips general","04-SUPPLIES","Supplies And Services","04K","Miscellaneous expenses","6221","Educational Visits","60326896","201708",18/11/2016 00:00:00,30785,"79060","Tour Operators","REDACTED DATA","SKIBOUND (HTS TOTAL SKI)","",,""
"London Borough of Redbridge","http://opendatacommunities.org/doc/london-borough-council/redbridge","9BNONBVO","Outside the BVACOP Objective Structure","9CNONBVO","Outside the BVACOP Objective Structure","REV","Revenue","R0030","Levies","05-THIRD","Third Party Payments","05B","Joint authorities","6602","London Pension Fund Authority","60325026","201707",01/11/2016 00:00:00,30562.4,"56860","Pensions","REDACTED DATA","LONDON PENSIONS FUND AUTHORITY","",,""
"London Borough of Redbridge","http://opendatacommunities.org/doc/london-borough-council/redbridge","9BNONBVO","Outside the BVACOP Objective Structure","9CNONBVO","Outside the BVACOP Objective Structure","CAP","Capital","C1041","Access Improvements Prog - DDA","99-NONBV","Capital, Balance Sheet and Control","50E","Capital - Contract Payments","9161","Internal Works","3449420","201708",25/10/2016 00:00:00,24611,"11400","Building Services","REDACTED DATA","EXPERT BUILD & MAINTENANCE SERVICES LTD","7476822","http://opencorporates.com/companies/gb/7476822","157641592"
"London Borough of Redbridge","http://opendatacommunities.org/doc/london-borough-council/redbridge","1BCENTRALPUB","Central Services to the Public","1CREGBDM","Reg. of Births, Deaths & Marriages","REV","Revenue","R3970","Corporate Policy and Performance","04-SUPPLIES","Supplies And Services","04K","Miscellaneous expenses","6215","Consultation","60325907","201708",08/11/2016 00:00:00,24500,"64700","Research Organisations","REDACTED DATA","COMMUNITY RESEARCH LIMITED","6655192","http://opencorporates.com/companies/gb/6655192","977262872"
"London Borough of Redbridge","http://opendatacommunities.org/doc/london-borough-council/redbridge","9BNONBVO","Outside the BVACOP Objective Structure","9CNONBVO","Outside the BVACOP Objective Structure","CAP","Capital","C2108","Aids and Adaptations","99-NONBV","Capital, Balance Sheet and Control","50E","Capital - Contract Payments","9150","Main Contract","60325474","201708",03/11/2016 00:00:00,24312.56,"11400","Building Services","REDACTED DATA","BUILDTRUST LTD","8075822764","http://opencorporates.com/companies/gb/8075822764","944671303"
"London Borough of Redbridge","http://opendatacommunities.org/doc/london-borough-council/redbridge","3BLEACENTFND","LEA Centrally Held School Funds","3CNONSCH","Non Schools","REV","Revenue","R2231","Special School Top Up Fees","05-THIRD","Third Party Payments","05G","Other establishments","7432","OOB Pre 16 Top Up","60326611","201708",25/10/2016 00:00:00,6166.67,"67981","Schools - Local Authority","REDACTED DATA","HORNBEAM ACADEMY TRUST T/AS BROOKFIELD HOUSE SCHOOL","",,"139827476"
"London Borough of Redbridge","http://opendatacommunities.org/doc/london-borough-council/redbridge","3BLEACENTFND","LEA Centrally Held School Funds","3CNONSCH","Non Schools","REV","Revenue","R2231","Special School Top Up Fees","05-THIRD","Third Party Payments","05G","Other establishments","7432","OOB Pre 16 Top Up","60326611","201708",25/10/2016 00:00:00,5250,"67981","Schools - Local Authority","REDACTED DATA","HORNBEAM ACADEMY TRUST T/AS BROOKFIELD HOUSE SCHOOL","",,"139827476"
"London Borough of Redbridge","http://opendatacommunities.org/doc/london-borough-council/redbridge","3BLEACENTFND","LEA Centrally Held School Funds","3CNONSCH","Non Schools","REV","Revenue","R2231","Special School Top Up Fees","05-THIRD","Third Party Payments","05G","Other establishments","7432","OOB Pre 16 Top Up","60326611","201708",25/10/2016 00:00:00,6333.33,"67981","Schools - Local Authority","REDACTED DATA","HORNBEAM ACADEMY TRUST T/AS BROOKFIELD HOUSE SCHOOL","",,"139827476"
"London Borough of Redbridge","http://opendatacommunities.org/doc/london-borough-council/redbridge","3BLEACENTFND","LEA Centrally Held School Funds","3CNONSCH","Non Schools","REV","Revenue","R2231","Special School Top Up Fees","05-THIRD","Third Party Payments","05G","Other establishments","7432","OOB Pre 16 Top Up","60326611","201708",25/10/2016 00:00:00,5250,"67981","Schools - Local Authority","REDACTED DATA","HORNBEAM ACADEMY TRUST T/AS BROOKFIELD HOUSE SCHOOL","",,"139827476"
"London Borough of Redbridge","http://opendatacommunities.org/doc/london-borough-council/redbridge","3BLEACENTFND","LEA Centrally Held School Funds","3CNONSCH","Non Schools","REV","Revenue","R2231","Special School Top Up Fees","05-THIRD","Third Party Payments","05G","Other establishments","7432","OOB Pre 16 Top Up","60326611","201708",25/10/2016 00:00:00,6166.67,"67981","Schools - Local Authority","REDACTED DATA","HORNBEAM ACADEMY TRUST T/AS BROOKFIELD HOUSE SCHOOL","",,"139827476"
"London Borough of Redbridge","http://opendatacommunities.org/doc/london-borough-council/redbridge","5BGFHOUSING","General Fund Housing","5CHOMELESS","Homelessness","REV","Revenue","R5622","The Foyer","05-THIRD","Third Party Payments","05H","Private contractors","6916","Leasing Payments To Landlords","70089941","201708",10/10/2016 00:00:00,29109.59,"44166","Housing Associations, Societies, Trusts and Co-operatives","REDACTED DATA","EAST THAMES HOUSING GROUP (EAST HOMES)","",,""
"London Borough of Redbridge","http://opendatacommunities.org/doc/london-borough-council/redbridge","5BGFHOUSING","General Fund Housing","5CHOMELESS","Homelessness","REV","Revenue","R5630","HAC Temporary Accomodation","05-THIRD","Third Party Payments","05H","Private contractors","6916","Leasing Payments To Landlords","70090117","201708",31/10/2016 00:00:00,23488.99,"47846","Letting Agents","REDACTED DATA","HOMES FOUR YOU LTD","6226694","http://opencorporates.com/companies/gb/6226694",""
"London Borough of Redbridge","http://opendatacommunities.org/doc/london-borough-council/redbridge","5BGFHOUSING","General Fund Housing","5CHOMELESS","Homelessness","REV","Revenue","R5630","HAC Temporary Accomodation","05-THIRD","Third Party Payments","05H","Private contractors","6916","Leasing Payments To Landlords","70090117","201708",31/10/2016 00:00:00,5491.16,"47846","Letting Agents","REDACTED DATA","HOMES FOUR YOU LTD","6226694","http://opencorporates.com/companies/gb/6226694",""
"London Borough of Redbridge","http://opendatacommunities.org/doc/london-borough-council/redbridge","6BADULTSOCIA","Adult Social Care","6CADLEARNDIS","Adults Under 65 with Learning Disabilities","REV","Revenue","R4185","LD - Supported Living","06-TRANSFER","Transfer Payments","06B","Social Services Clients","7066","Supportive Lodgings (Transfer Payments)","90793272","201708",01/11/2016 00:00:00,30600,"24200","Day Centres","REDACTED DATA","ACCESS LIVING LTD","6043506","http://opencorporates.com/companies/gb/6043506",""
"London Borough of Redbridge","http://opendatacommunities.org/doc/london-borough-council/redbridge","6BADULTSOCIA","Adult Social Care","6CADLEARNDIS","Adults Under 65 with Learning Disabilities","REV","Revenue","R4185","LD - Supported Living","09-INCOME","Income","09C","Customer and Client Receipts","8553","Care Package Charges","90793272","201708",01/11/2016 00:00:00,-1930.2,"24200","Day Centres","REDACTED DATA","ACCESS LIVING LTD","6043506","http://opencorporates.com/companies/gb/6043506",""
"London Borough of Redbridge","http://opendatacommunities.org/doc/london-borough-council/redbridge","9BNONBVO","Outside the BVACOP Objective Structure","9CNONBVO","Outside the BVACOP Objective Structure","CAP","Capital","C2106","External","99-NONBV","Capital, Balance Sheet and Control","50E","Capital - Contract Payments","9150","Main Contract","60325107","201708",31/10/2016 00:00:00,23878.15,"11040","Builders","REDACTED DATA","AMBER CONSTRUCTION SERVICES LTD","4184802","http://opencorporates.com/companies/gb/4184802","773990675"
"London Borough of Redbridge","http://opendatacommunities.org/doc/london-borough-council/redbridge","9BNONBVO","Outside the BVACOP Objective Structure","9CNONBVO","Outside the BVACOP Objective Structure","CAP","Capital","C2223","Highways Preventative Maintenance LBR","99-NONBV","Capital, Balance Sheet and Control","50E","Capital - Contract Payments","9153","Carriageways","3449934","201708",08/11/2016 00:00:00,23331.65,"18632","Civil Engineers","REDACTED DATA","KENSON CONTRACTORS BENINGTON LTD","1314691","http://opencorporates.com/companies/gb/1314691","301629589"
"London Borough of Redbridge","http://opendatacommunities.org/doc/london-borough-council/redbridge","9BNONBVO","Outside the BVACOP Objective Structure","9CNONBVO","Outside the BVACOP Objective Structure","CAP","Capital","C4035","SEN Reorganisation and Other SEN School Related Exp","99-NONBV","Capital, Balance Sheet and Control","50E","Capital - Contract Payments","9150","Main Contract","70090119","201708",10/11/2016 00:00:00,22914.48,"11040","Builders","REDACTED DATA","WATES CONSTRUCTION LTD","1977948","http://opencorporates.com/companies/gb/1977948",""
"London Borough of Redbridge","http://opendatacommunities.org/doc/london-borough-council/redbridge","5BGFHOUSING","General Fund Housing","5CHOMELESS","Homelessness","REV","Revenue","R5630","HAC Temporary Accomodation","05-THIRD","Third Party Payments","05H","Private contractors","6900","Nightly Let Plus Charges","70090154","201708",01/10/2016 00:00:00,27000,"47846","Letting Agents","REDACTED DATA","THEORI HOUSING MANAGEMENT SERVICES LIMITED","4048450","http://opencorporates.com/companies/gb/4048450","773898950"
"London Borough of Redbridge","http://opendatacommunities.org/doc/london-borough-council/redbridge","3BNONSCHFUND","Non-School Funding","3CNONSCH","Non Schools","REV","Revenue","R3962","Early Years - 3 and 4 Year Olds","05-THIRD","Third Party Payments","05A","Independent units within the council","6517","Non-Maintained Schools","3451270","201708",15/11/2016 00:00:00,25614.48,"53088","Nurseries and Creches","REDACTED DATA","A.M.A.B LIMITED - GREENLANE NURSERY & PRE-SCHOOL","3499061","http://opencorporates.com/companies/gb/3499061",""
"London Borough of Redbridge","http://opendatacommunities.org/doc/london-borough-council/redbridge","9BNONBVO","Outside the BVACOP Objective Structure","9CNONBVO","Outside the BVACOP Objective Structure","CAP","Capital","C1001","Customer Access Strategy Capital","99-NONBV","Capital, Balance Sheet and Control","50A","Capital - Employee Costs","9006","Employee Costs - Other","60325167","201708",01/11/2016 00:00:00,20673.95,"20620","Computer Consultants","REDACTED DATA","REQUIRED EXPERIENCE LIMITED","4347037","http://opencorporates.com/companies/gb/4347037","GB989059356"
"London Borough of Redbridge","http://opendatacommunities.org/doc/london-borough-council/redbridge","9BNONBVO","Outside the BVACOP Objective Structure","9CNONBVO","Outside the BVACOP Objective Structure","CAP","Capital","C2204","Major Resurfacing Borough Roads LBR","99-NONBV","Capital, Balance Sheet and Control","50E","Capital - Contract Payments","9153","Carriageways","3449933","201708",08/11/2016 00:00:00,20000,"18632","Civil Engineers","REDACTED DATA","KENSON CONTRACTORS BENINGTON LTD","1314691","http://opencorporates.com/companies/gb/1314691","301629589"
"London Borough of Redbridge","http://opendatacommunities.org/doc/london-borough-council/redbridge","3BINDSCHFUND","Individual School Funds","3CDELSECOND","Delegated Individual Secondary School Budgets","REV","Revenue","S3703","KING SOLOMON -  New Construction Conversion & Renovation","05-THIRD","Third Party Payments","05G","Other establishments","7407","Capital Expenditure","60327373","201708",06/09/2016 00:00:00,19972.5,"11371","Building Refurbishment and Restoration Contractors","REDACTED DATA","MITRE CONSTRUCTION CO LTD","1928863","http://opencorporates.com/companies/gb/1928863","415680553"
"London Borough of Redbridge","http://opendatacommunities.org/doc/london-borough-council/redbridge","9BNONBVO","Outside the BVACOP Objective Structure","9CNONBVO","Outside the BVACOP Objective Structure","CAP","Capital","C4210","Ark Primary School","99-NONBV","Capital, Balance Sheet and Control","50B","Capital - Contracted Works","9094","ICT","60324973","201708",31/08/2016 00:00:00,23596.98,"29300","Education Agencies and Authorities","REDACTED DATA","ARK SCHOOLS","5112090","http://opencorporates.com/companies/gb/5112090","859151405"
"London Borough of Redbridge","http://opendatacommunities.org/doc/london-borough-council/redbridge","3BNONSCHFUND","Non-School Funding","3CNONSCH","Non Schools","REV","Revenue","R3962","Early Years - 3 and 4 Year Olds","05-THIRD","Third Party Payments","05A","Independent units within the council","6517","Non-Maintained Schools","3451314","201708",15/11/2016 00:00:00,23233.1,"59760","Playgroups, Nurseries and Creches","REDACTED DATA","TAMBA DAY NURSERY LIMITED","",,""
"London Borough of Redbridge","http://opendatacommunities.org/doc/london-borough-council/redbridge","7BCDC","Corporate & Democratic Core","7CCORPMGT","Corporate Management","REV","Revenue","R8501","Corporate Director of Place","01-EMPLOYEES","Employees","01A","Direct employee expenses","4","Agency Staff - Pay","60324665","201708",27/10/2016 00:00:00,19184,"12100","Business and Management Consultants","REDACTED DATA","GREEN PARK INTERIM & EXECUTIVE LTD","5672094","http://opencorporates.com/companies/gb/5672094","888243284"
"London Borough of Redbridge","http://opendatacommunities.org/doc/london-borough-council/redbridge","3BNONSCHFUND","Non-School Funding","3CNONSCH","Non Schools","REV","Revenue","R3962","Early Years - 3 and 4 Year Olds","05-THIRD","Third Party Payments","05A","Independent units within the council","6517","Non-Maintained Schools","3451320","201708",15/11/2016 00:00:00,22811.03,"59760","Playgroups, Nurseries and Creches","REDACTED DATA","ST AUBYNS SCHOOL","1218766","http://opencorporates.com/companies/gb/1218766",""
"London Borough of Redbridge","http://opendatacommunities.org/doc/london-borough-council/redbridge","6BADULTSOCIA","Adult Social Care","6CADLEARNDIS","Adults Under 65 with Learning Disabilities","REV","Revenue","R4185","LD - Supported Living","06-TRANSFER","Transfer Payments","06B","Social Services Clients","7066","Supportive Lodgings (Transfer Payments)","90793312","201708",01/11/2016 00:00:00,21528,"64710","Residential Care Homes","REDACTED DATA","SEBOTT SOLUTIONS LTD T/A DIVINE LODGE","5783753","http://opencorporates.com/companies/gb/5783753",""
"London Borough of Redbridge","http://opendatacommunities.org/doc/london-borough-council/redbridge","1BCENTRALPUB","Central Services to the Public","1CTRADSURDEF","Trading Account Surpluses & Deficits","REV","Revenue","R5825","Support for Social Fund Reform","05-THIRD","Third Party Payments","05A","Independent units within the council","6513","Agency & Contracted Services","60326003","201708",20/10/2016 00:00:00,21250,"17020","Charities and Voluntary Organisations","REDACTED DATA","DISABLEMENT ASSOCIATION OF BARKING & DAGENHAM - DABD(UK)","2800290","http://opencorporates.com/companies/gb/2800290",""
